NUMERO_MANDATO;RIGA_MANDATO;QUIET;IMPORTO_RIGA;IMPORTO_MANDATO;BENEFICIARIO;CIG;TITOLO_PAGAMENTO;DATA_MANDATO;CAPITOLO;ARTICOLO;NUMERO_IMPEGNO;TITOLO;DESCR_TITOLO;LIVELLO_II;DESCR_LIVELLO_II;LIVELLO_III;DESCR_LIVELLO_III;LIVELLO_IV;DESCR_LIVELLO_IV;LIVELLO_V;DESCR_LIVELLO_V;DATA_PAG_EFF
1;1;0;280;900;ASSOCIAZIONE COMUNI DELLA MARCA TREVIGIANA; ;ADESIONE PER L'ANNO 2018 ALL'ASSOCIAZIONE COMUNI DELLA MARCA TREVIGIANA E AL CENTRO STUDI AMMINISTRATIVI DELLA MARCA TREVIGIANA DI TREVISO - DET. 18 DEL 10.1.2018.;10/01/2018;15003;0;34;1;Spese correnti;4;Trasferimenti correnti;1;Trasferimenti correnti a Amministrazioni Pubbliche;2;Trasferimenti correnti a Amministrazioni Locali;999;Trasferimenti correnti a altre Amministrazioni Locali n.a.c.;10/01/2018
1;2;0;620;900;CENTRO STUDI AMMINISTRATIVI DELLA MARCA TREVIGIANA; ;ADESIONE PER L'ANNO 2018 ALL'ASSOCIAZIONE COMUNI DELLA MARCA TREVIGIANA E AL CENTRO STUDI AMMINISTRATIVI DELLA MARCA TREVIGIANA DI TREVISO - DET. 18 DEL 10.1.2018.;10/01/2018;15003;0;34;1;Spese correnti;4;Trasferimenti correnti;1;Trasferimenti correnti a Amministrazioni Pubbliche;2;Trasferimenti correnti a Amministrazioni Locali;999;Trasferimenti correnti a altre Amministrazioni Locali n.a.c.;10/01/2018
2;1;0;175;175;ANUTEL Ass.ne Nazionale Uffici Tributi Enti Locali;ZAB218C99B;Pagamento quota adesione all'A.N.U.T.E.L. (Associazione Nazionale Uffici Tributi Enti Locali) di tipo A  per anno 2018.;15/01/2018;15060;0;383;1;Spese correnti;3;Acquisto di beni e servizi;1;Acquisto di beni;1;Giornali, riviste e pubblicazioni;1;Giornali e riviste;15/01/2018
3;1;0;940;940;GRUPPO ALPINI DI MORIAGO-PRES. FURLAN DANIELE; ;ATTIVAZIONE SERVIZIO DI VOLONTARIATO VIGILANZA STRADALE ALUNNI PRESSO LE SCUOLE DELL'OBBLIGO DEL COMUNE DI MORIAGO DELLA BATTAGLIA ANNO SCOLASTICO 2017/2018.  INTEGRATO DA DET. N.  379/2017;15/01/2018;16104;0;332;1;Spese correnti;4;Trasferimenti correnti;4;Trasferimenti correnti a Istituzioni Sociali Private;1;Trasferimenti correnti a Istituzioni Sociali Private;1;Trasferimenti correnti a Istituzioni Sociali Private;15/01/2018
5;1;0;27,26;27,26;COMUNE DI CONEGLIANO; ;Compartecipazione spese legali ricorso TAR Lazio avverso DM 2.5.2017;17/01/2018;15090;0;403;1;Spese correnti;3;Acquisto di beni e servizi;2;Acquisto di servizi;11;Prestazioni professionali e specialistiche;6;Patrocinio legale;17/01/2018
6;1;0;1.708,00;1.708,00;STUDIO CAVAGGIONI SCARL;Z9F20C0A50;SALDO Fatt.n. 440/FE/2017  del 20/12/2017 AGGIORNAMENTO STIMA;17/01/2018;17166;0;346;1;Spese correnti;3;Acquisto di beni e servizi;2;Acquisto di servizi;11;Prestazioni professionali e specialistiche;999;Altre prestazioni professionali e specialistiche n.a.c.;17/01/2018
7;1;0;1.306,41;1.306,41;COOPERATIVA CSA - CENTRO SERVIZI ASSOCIATI;Z741E7298E;SALDO Fatt.n. 129/E  del 14/12/2017 Servizio di assisstenza domiciliare mese di NOVEMBRE 2017 (68,15 ORE);17/01/2018;15990;0;184;1;Spese correnti;3;Acquisto di beni e servizi;2;Acquisto di servizi;15;Contratti di servizio pubblico;9;Contratti di servizio di assistenza sociale domiciliare;17/01/2018
9;1;0;1.161,56;1.161,56;DIPENDENTI COMUNALI - STIPENDI; ;STIPENDI MESE DI: GENNAIO 18;17/01/2018;15000;0;1;1;Spese correnti;3;Acquisto di beni e servizi;2;Acquisto di servizi;1;Organi e incarichi istituzionali dell'amministrazione;1;Organi istituzionali dell'amministrazione - Indennità;17/01/2018
10;1;0;276,59;276,59;DIPENDENTI COMUNALI - STIPENDI; ;STIPENDI MESE DI: GENNAIO 18;17/01/2018;15000;0;1;1;Spese correnti;3;Acquisto di beni e servizi;2;Acquisto di servizi;1;Organi e incarichi istituzionali dell'amministrazione;1;Organi istituzionali dell'amministrazione - Indennità;17/01/2018
50;1;0;250;250;SCUOLA MATERNA SAN FRANCESCO; ;CONTRIBUTO ECONOMICO A SOSTEGNO DELLA GENITORIALITA' DI CUI ALLA DELIBERAZIONE DI G.C. N. 146 DEL 29.11.2017;17/01/2018;16025;0;405;1;Spese correnti;4;Trasferimenti correnti;2;Trasferimenti correnti a Famiglie;5;Altri trasferimenti a famiglie;999;Altri trasferimenti a famiglie n.a.c.;17/01/2018
51;1;0;589;885;ASSOCIAZIONE TEA - PRES. ROMEO BREDA; ;RIMBORSO DELLE SPESE SOSTENUTE PER SERVIZIO DI TRASPORTO NEL IV^ TRIMESTRE 2017;22/01/2018;15980;0;406;1;Spese correnti;4;Trasferimenti correnti;2;Trasferimenti correnti a Famiglie;2;Interventi assistenziali;999;Altri assegni e sussidi assistenziali;22/01/2018
51;2;0;296;885;AUSER VOLONTARIATO DI TREVISO; ;RIMBORSO DELLE SPESE SOSTENUTE PER SERVIZIO DI TRASPORTO NEL IV^ TRIMESTRE 2017;22/01/2018;15980;0;406;1;Spese correnti;4;Trasferimenti correnti;2;Trasferimenti correnti a Famiglie;2;Interventi assistenziali;999;Altri assegni e sussidi assistenziali;22/01/2018
52;1;0;500;1.000,00;ASSOCIAZIONE TEA - PRES. ROMEO BREDA; ;CONTRIBUTO PER SERVIZIO DI TRASPORTO ANZIANI ANNO 2017;22/01/2018;15980;0;407;1;Spese correnti;4;Trasferimenti correnti;2;Trasferimenti correnti a Famiglie;2;Interventi assistenziali;999;Altri assegni e sussidi assistenziali;22/01/2018
52;2;0;500;1.000,00;AUSER VOLONTARIATO DI TREVISO; ;CONTRIBUTO PER SERVIZIO DI TRASPORTO ANZIANI ANNO 2017;22/01/2018;15980;0;407;1;Spese correnti;4;Trasferimenti correnti;2;Trasferimenti correnti a Famiglie;2;Interventi assistenziali;999;Altri assegni e sussidi assistenziali;22/01/2018
53;1;0;1.317,22;1.317,22;MANPOWER Srl;ZA21FD532E;SALDO Fatt.n. 2017-0081280  del 30/11/2017 Costo mensile, oneri amministrativi e previdenziali, bollo mese di NOVEMBRE 2017;22/01/2018;15653;0;327;1;Spese correnti;3;Acquisto di beni e servizi;2;Acquisto di servizi;12;Lavoro flessibile, quota LSU e acquisto di servizi da agenzie di lavoro interinale;1;Acquisto di servizi da agenzie di lavoro interinale;22/01/2018
55;1;0;951,6;951,6;NUOVA STAMPA 3 Snc;ZCA21621AC;SALDO Fatt.n. 000020-2017-2  del 28/12/2017 Fornitura buste adesive fto 11x22;22/01/2018;15018;0;401;1;Spese correnti;3;Acquisto di beni e servizi;1;Acquisto di beni;2;Altri beni di consumo;999;Altri beni e materiali di consumo n.a.c.;22/01/2018
56;1;0;746,23;746,23;"FONDAZIONE ""CASA PER ANZIANI"" ONLUS"; ;SALDO Fatt.n. 103/PA  del 29/12/2017 Retta ricovero G.V. mese di DICEMBRE 2017;22/01/2018;15970;0;206;1;Spese correnti;4;Trasferimenti correnti;1;Trasferimenti correnti a Amministrazioni Pubbliche;2;Trasferimenti correnti a Amministrazioni Locali;14;Trasferimenti correnti a Istituti di ricovero e cura a carattere scientifico pubblici n.a.f.;22/01/2018
57;1;0;262,4;262,4;FONDAZIONE S. AUGUSTA ONLUS - Ist. F. Botteselle; ;SALDO Fatt.n. 287/PA  del 31/12/2017 Retta ricovero camera doppia sig.ra VMG mese di dicembre 2017;22/01/2018;15970;0;90;1;Spese correnti;4;Trasferimenti correnti;1;Trasferimenti correnti a Amministrazioni Pubbliche;2;Trasferimenti correnti a Amministrazioni Locali;14;Trasferimenti correnti a Istituti di ricovero e cura a carattere scientifico pubblici n.a.f.;22/01/2018
58;1;0;4.489,39;4.489,39;SOLIGO VIAGGI Sas;6318150E4E;SALDO Fatt.n. PA/219  del 23/12/2017 Trasporto scolastico mese di DICEMBRE 2017;22/01/2018;15861;0;272;1;Spese correnti;3;Acquisto di beni e servizi;2;Acquisto di servizi;15;Contratti di servizio pubblico;2;Contratti di servizio di trasporto scolastico;22/01/2018
59;1;0;183;183;PITNEY BOWES ITALIA Srl;Z3F1030374;SALDO Fatt.n. BL01707788  del 09/12/2017 Canone noleggio affrancatrice;22/01/2018;15083;0;153;1;Spese correnti;3;Acquisto di beni e servizi;2;Acquisto di servizi;5;Utenze e canoni;999;Utenze e canoni per altri servizi n.a.c.;22/01/2018
60;1;0;93,72;93,72;MAGGIOLI SPA;Z662116169;SALDO Fatt.n. 0002148042  del 20/12/2017 Fogli per registri stato civile stampati su carta fabriano con stemma della repubblica in filigrana;22/01/2018;15130;0;394;1;Spese correnti;3;Acquisto di beni e servizi;1;Acquisto di beni;2;Altri beni di consumo;1;Carta, cancelleria e stampati;22/01/2018
61;1;0;370,25;370,25;INTERNET BOOKSHOP ITALIA Srl;ZED216EE38;SALDO Fatt.n. 52523/C  del 22/12/2017 Libri e dvd per la biblioteca comunale;22/01/2018;16050;0;376;1;Spese correnti;3;Acquisto di beni e servizi;1;Acquisto di beni;1;Giornali, riviste e pubblicazioni;2;Pubblicazioni;22/01/2018
62;1;0;462;462;EbiCo - SocietÃ  Cooperativa Sociale - ONLUS;Z5D207C9DA;SALDO Fatt.n. FatPAM 22  del 20/12/2017 Incontri con studenti e genitori sul tema del bullismo;22/01/2018;16105;0;402;1;Spese correnti;3;Acquisto di beni e servizi;2;Acquisto di servizi;99;Altri servizi;999;Altri servizi diversi n.a.c.;22/01/2018
63;1;0;88,97;88,97;BIGATELLO Sas;Z1415528B9;ACCONTO Fatt.n. FATTPA 44_17  del 12/12/2017 Noleggio trimestrale fotocopiatore MP4054;22/01/2018;15013;0;151;1;Spese correnti;3;Acquisto di beni e servizi;2;Acquisto di servizi;7;Utilizzo di beni di terzi;8;Noleggi di impianti e macchinari;22/01/2018
64;1;0;163,57;163,57;BIGATELLO Sas;Z1415528B9;SALDO Fatt.n. FATTPA 44_17  del 12/12/2017 Noleggio trimestrale fotocopiatore MP4054;22/01/2018;15013;0;151;1;Spese correnti;3;Acquisto di beni e servizi;2;Acquisto di servizi;7;Utilizzo di beni di terzi;8;Noleggi di impianti e macchinari;22/01/2018
65;1;0;261,78;261,78;BIGATELLO Sas;Z1415528B9;SALDO Fatt.n. FATTPA 47_17  del 29/12/2017 Costo copia 4^ trim. 2017 fotocopiatore MP4054;22/01/2018;15013;0;173;1;Spese correnti;3;Acquisto di beni e servizi;2;Acquisto di servizi;7;Utilizzo di beni di terzi;8;Noleggi di impianti e macchinari;22/01/2018
66;1;0;181,58;181,58;EURORISTORAZIONE Srl;67023000EE;SALDO Fatt.n. 17CPA03714  del 31/12/2017 Fornitura n. 45 pasti agli INSEGNANTI nel mese di dicembre 2017;22/01/2018;16437;0;317;1;Spese correnti;3;Acquisto di beni e servizi;1;Acquisto di beni;2;Altri beni di consumo;999;Altri beni e materiali di consumo n.a.c.;22/01/2018
67;1;0;1.767,42;1.767,42;EURORISTORAZIONE Srl;67023000EE;SALDO Fatt.n. 17CPA03715  del 31/12/2017 Fornitura n. 438 pasti agli ALUNNI nel mese di dicembre 2017;22/01/2018;15598;0;315;1;Spese correnti;3;Acquisto di beni e servizi;2;Acquisto di servizi;15;Contratti di servizio pubblico;6;Contratti di servizio per le mense scolastiche;22/01/2018
68;1;0;199,2;199,2;MEDI.LAV Srl;Z9B1AF8217;SALDO Fatt.n. 194/PA  del 28/12/2017 Visite mediche anno 2017;22/01/2018;17180;0;291;1;Spese correnti;3;Acquisto di beni e servizi;2;Acquisto di servizi;18;Servizi sanitari;1;Spese per accertamenti sanitari resi necessari dall'attività lavorativa;22/01/2018
69;1;0;622,2;622,2;OTIS SERVIZI Srl c/o Centro Direzionale Cassina Plaza;Z2C1C0F2A4;SALDO Fatt.n. 3FO17124942  del 20/12/2017 Canone di manutenzione ascensore municipio periodo lug/dic 2017;22/01/2018;16501;0;348;1;Spese correnti;3;Acquisto di beni e servizi;2;Acquisto di servizi;99;Altri servizi;999;Altri servizi diversi n.a.c.;22/01/2018
70;1;0;341,6;341,6;TECNOTENDA Srl; ;SALDO Fatt.n. 19/PA  del 22/12/2017 Binari tende verticali per scuola primaria;22/01/2018;16551;0;40;1;Spese correnti;3;Acquisto di beni e servizi;2;Acquisto di servizi;9;Manutenzione ordinaria e riparazioni;8;Manutenzione ordinaria e riparazioni di beni immobili;22/01/2018
71;1;0;305;305;CENTRO STUDI AMMINISTRATIVI DELLA MARCA TREVIGIANA;Z081E04504;SALDO Fatt.n. 665/2017  del 12/12/2017 Adesione servizio modulista appalti;22/01/2018;17190;0;144;1;Spese correnti;3;Acquisto di beni e servizi;1;Acquisto di beni;2;Altri beni di consumo;999;Altri beni e materiali di consumo n.a.c.;22/01/2018
72;1;0;757,9;2.058,68;EFFEBI DI MICHELE BOTTEGA & C. S.N.C.;Z1A216E469;SALDO Fatt.n. 2A  del 12/01/2018 Valigia beta utensili, valigetta pronto soccorso, segaccio serramanico, punte...;22/01/2018;17191;0;61;1;Spese correnti;3;Acquisto di beni e servizi;1;Acquisto di beni;2;Altri beni di consumo;999;Altri beni e materiali di consumo n.a.c.;22/01/2018
72;2;0;1.189,20;2.058,68;EFFEBI DI MICHELE BOTTEGA & C. S.N.C.;Z8A216E399;SALDO Fatt.n. 1A  del 10/01/2018 Tassellatore, troncatrice, transpallet e trapano;22/01/2018;17191;0;61;1;Spese correnti;3;Acquisto di beni e servizi;1;Acquisto di beni;2;Altri beni di consumo;999;Altri beni e materiali di consumo n.a.c.;22/01/2018
72;3;0;111,58;2.058,68;REPRO Srl; ;SALDO Fatt.n. 000046-2017-6  del 30/11/2017 Nastro adesivo, punta muro, tasselli,...;22/01/2018;17191;0;61;1;Spese correnti;3;Acquisto di beni e servizi;1;Acquisto di beni;2;Altri beni di consumo;999;Altri beni e materiali di consumo n.a.c.;22/01/2018
73;1;0;102,48;102,48;BIGATELLO Sas;ZC41AD13C2;SALDO Fatt.n. FATTPA 43_17  del 12/12/2017 Noleggio trimestrale fotocopiatore MPC2051;22/01/2018;17193;0;308;1;Spese correnti;3;Acquisto di beni e servizi;2;Acquisto di servizi;7;Utilizzo di beni di terzi;8;Noleggi di impianti e macchinari;22/01/2018
74;1;0;3.001,20;3.001,20;DALLE PASQUALINE ANTONIO;Z2121125A2;SALDO Fatt.n. 69  del 05/12/2017 SALE PER DISGELO;25/01/2018;17230;0;65;1;Spese correnti;3;Acquisto di beni e servizi;1;Acquisto di beni;2;Altri beni di consumo;999;Altri beni e materiali di consumo n.a.c.;25/01/2018
75;1;0;641,11;641,11;EUROPIAVE Sas di Battistella L. & C.;Z8C1FEA46A;SALDO Fatt.n. 7/PA  del 27/12/2017 Cinghie traino, asta freno, pistone pedali e sensore posteriore;25/01/2018;17022;0;55;1;Spese correnti;3;Acquisto di beni e servizi;2;Acquisto di servizi;9;Manutenzione ordinaria e riparazioni;1;Manutenzione ordinaria e riparazioni di mezzi di trasporto ad uso civile, di sicurezza e ordine pubblico;25/01/2018
76;1;0;134,92;134,92;SOLICUM Snc di Zuan Mario; ;SALDO Fatt.n. 141/E  del 01/12/2017 MANUTENZIONE IMPIANTI PRESSO EDIFICI/AREE COMUNALI;25/01/2018;17251;0;67;1;Spese correnti;3;Acquisto di beni e servizi;2;Acquisto di servizi;9;Manutenzione ordinaria e riparazioni;8;Manutenzione ordinaria e riparazioni di beni immobili;25/01/2018
77;1;0;5,76;5,76;INTERNET BOOKSHOP ITALIA Srl;ZED216EE38;ACCONTO Fatt.n. 143/C  del 01/01/2018 Libri e dvd per la biblioteca;25/01/2018;16050;0;416;1;Spese correnti;3;Acquisto di beni e servizi;1;Acquisto di beni;1;Giornali, riviste e pubblicazioni;2;Pubblicazioni;25/01/2018
78;1;0;112,42;112,42;INTERNET BOOKSHOP ITALIA Srl;ZED216EE38;SALDO Fatt.n. 143/C  del 01/01/2018 Libri e dvd per la biblioteca;25/01/2018;16050;0;376;1;Spese correnti;3;Acquisto di beni e servizi;1;Acquisto di beni;1;Giornali, riviste e pubblicazioni;2;Pubblicazioni;25/01/2018
79;1;0;1.342,04;1.342,04;MANPOWER Srl;ZA21FD532E;SALDO Fatt.n. 2017-0089676  del 31/12/2017 Costo mensile, oneri amministrativi e previdenziali, bollo mese di DICEMBRE 2017;25/01/2018;15653;0;327;1;Spese correnti;3;Acquisto di beni e servizi;2;Acquisto di servizi;12;Lavoro flessibile, quota LSU e acquisto di servizi da agenzie di lavoro interinale;1;Acquisto di servizi da agenzie di lavoro interinale;25/01/2018
84;1;0;502,64;502,64;ASCO TLC Spa;ZB21CFE445;SALDO Fatt.n. 09036150  del 31/12/2017 Asconauta gold e servizio ip pubblico periodo novembre/dicembre 2017;25/01/2018;16516;0;72;1;Spese correnti;3;Acquisto di beni e servizi;2;Acquisto di servizi;5;Utenze e canoni;999;Utenze e canoni per altri servizi n.a.c.;25/01/2018
85;1;0;221,71;221,71;ASCOTRADE Spa (metano); ;SALDO Fatt.n. 1653396  del 15/12/2017 Metano MUNICIPIO periodo ottobre/novembre 2017;25/01/2018;16521;0;115;1;Spese correnti;3;Acquisto di beni e servizi;2;Acquisto di servizi;5;Utenze e canoni;4;Energia elettrica;25/01/2018
86;1;0;738,98;738,98;ASCOTRADE Spa (metano); ;SALDO Fatt.n. 1650812  del 15/12/2017 Metano SALA POLIFUNZIONALE periodo ottobre/novembre 2017;25/01/2018;16771;0;120;1;Spese correnti;3;Acquisto di beni e servizi;2;Acquisto di servizi;5;Utenze e canoni;6;Gas;25/01/2018
87;1;0;134,91;485,53;ASCOTRADE Spa (metano); ;SALDO Fatt.n. 1763374  del 22/12/2017 Metano MUSICHIERE 2B periodo ottobre/novembre 2017;25/01/2018;16676;0;119;1;Spese correnti;3;Acquisto di beni e servizi;2;Acquisto di servizi;5;Utenze e canoni;6;Gas;25/01/2018
87;2;0;350,62;485,53;ASCOTRADE Spa (metano); ;SALDO Fatt.n. 1763375  del 22/12/2017 Metano MUSICHIERE 2 periodo ottobre/novembre 2017;25/01/2018;16676;0;119;1;Spese correnti;3;Acquisto di beni e servizi;2;Acquisto di servizi;5;Utenze e canoni;6;Gas;25/01/2018
88;1;0;768,62;768,62;ASCOTRADE Spa (metano); ;SALDO Fatt.n. 1738584  del 22/12/2017 Metano IMPIANTI SPORTIVI periodo ottobre/novembre 2017;25/01/2018;17011;0;122;1;Spese correnti;3;Acquisto di beni e servizi;2;Acquisto di servizi;5;Utenze e canoni;6;Gas;25/01/2018
89;1;0;452,95;452,95;Dolomiti Energia S.p.a.;ZBD1F4B0A3;ACCONTO Fatt.n. 41704607784  del 28/12/2017 Energia elettrica SCUOLA ELEMENTARE e PALESTRA mese di novembre 2017;25/01/2018;16561;0;103;1;Spese correnti;3;Acquisto di beni e servizi;2;Acquisto di servizi;5;Utenze e canoni;4;Energia elettrica;25/01/2018
90;1;0;226,47;226,47;Dolomiti Energia S.p.a.;ZBD1F4B0A3;SALDO Fatt.n. 41704607784  del 28/12/2017 Energia elettrica SCUOLA ELEMENTARE e PALESTRA mese di novembre 2017;25/01/2018;16651;0;105;1;Spese correnti;3;Acquisto di beni e servizi;2;Acquisto di servizi;5;Utenze e canoni;4;Energia elettrica;25/01/2018
91;1;0;677,34;677,34;Dolomiti Energia S.p.a.;ZBD1F4B0A3;SALDO Fatt.n. 41704607781  del 28/12/2017 Energia elettrica IMPIANTI SPORTIVI mese di novembre 2017;25/01/2018;17001;0;113;1;Spese correnti;3;Acquisto di beni e servizi;2;Acquisto di servizi;5;Utenze e canoni;4;Energia elettrica;25/01/2018
92;1;0;699,54;699,54;Dolomiti Energia S.p.a.;ZBD1F4B0A3;SALDO Fatt.n. 41704607778  del 28/12/2017 Energia elettrica SALA POLIFUNZIONALE mese di novembre 2017;25/01/2018;16761;0;109;1;Spese correnti;3;Acquisto di beni e servizi;2;Acquisto di servizi;5;Utenze e canoni;4;Energia elettrica;25/01/2018
93;1;0;42,8;42,8;Dolomiti Energia S.p.a.;ZBD1F4B0A3;SALDO Fatt.n. 41704607776  del 28/12/2017 Energia elettrica EX MAGAZZINO mese di novembre 2017;25/01/2018;16691;0;107;1;Spese correnti;3;Acquisto di beni e servizi;2;Acquisto di servizi;5;Utenze e canoni;4;Energia elettrica;25/01/2018
94;1;0;65,28;143,26;Dolomiti Energia S.p.a.;ZBD1F4B0A3;SALDO Fatt.n. 41704607779  del 28/12/2017 Energia elettrica CIMITERO MORIAGO mese di novembre 2017;25/01/2018;16941;0;111;1;Spese correnti;3;Acquisto di beni e servizi;2;Acquisto di servizi;5;Utenze e canoni;4;Energia elettrica;25/01/2018
94;2;0;77,98;143,26;Dolomiti Energia S.p.a.;ZBD1F4B0A3;SALDO Fatt.n. 41704607777  del 28/12/2017 Energia elettrica CIMITERO MOSNIGO mese di novembre 2017;25/01/2018;16941;0;111;1;Spese correnti;3;Acquisto di beni e servizi;2;Acquisto di servizi;5;Utenze e canoni;4;Energia elettrica;25/01/2018
95;1;0;568,08;8.082,51;Dolomiti Energia S.p.a.;ZBD1F4B0A3;SALDO Fatt.n. 41704644675  del 28/12/2017 Energia elettrica PUBBLICA ILLNE (via Papa Giovanni XXIII) novembre 2017;25/01/2018;17241;0;114;1;Spese correnti;3;Acquisto di beni e servizi;2;Acquisto di servizi;5;Utenze e canoni;4;Energia elettrica;25/01/2018
95;2;0;7.514,43;8.082,51;Dolomiti Energia S.p.a.;ZBD1F4B0A3;SALDO Fatt.n. 41704644674  del 28/12/2017 Energia elettrica PUBBLICA ILLNE novembre 2017;25/01/2018;17241;0;114;1;Spese correnti;3;Acquisto di beni e servizi;2;Acquisto di servizi;5;Utenze e canoni;4;Energia elettrica;25/01/2018
96;1;0;390,86;390,86;Dolomiti Energia S.p.a.;ZBD1F4B0A3;SALDO Fatt.n. 41704607782  del 28/12/2017 Energia elettrica SCUOLA MEDIA mese di novembre 2017;25/01/2018;16611;0;104;1;Spese correnti;3;Acquisto di beni e servizi;2;Acquisto di servizi;5;Utenze e canoni;4;Energia elettrica;25/01/2018
97;1;0;235,3;235,3;Dolomiti Energia S.p.a.;ZBD1F4B0A3;SALDO Fatt.n. 41704607783  del 28/12/2017 Energia elettrica MUSICHIERE mese di novembre 2017;25/01/2018;16675;0;106;1;Spese correnti;3;Acquisto di beni e servizi;2;Acquisto di servizi;5;Utenze e canoni;4;Energia elettrica;25/01/2018
98;1;0;75,31;75,31;Dolomiti Energia S.p.a.;ZBD1F4B0A3;SALDO Fatt.n. 41704607780  del 28/12/2017 Energia elettrica ASSOCIAZIONI mese di novembre 2017;25/01/2018;16731;0;108;1;Spese correnti;3;Acquisto di beni e servizi;2;Acquisto di servizi;5;Utenze e canoni;4;Energia elettrica;25/01/2018
99;1;0;43,74;43,74;Dolomiti Energia S.p.a.;ZBD1F4B0A3;SALDO Fatt.n. 41704607785  del 28/12/2017 Energia elettrica LOCALI BANDA mese di novembre 2017;25/01/2018;16821;0;110;1;Spese correnti;3;Acquisto di beni e servizi;2;Acquisto di servizi;5;Utenze e canoni;4;Energia elettrica;25/01/2018
100;1;0;269,19;269,19;Dolomiti Energia S.p.a.;ZBD1F4B0A3;SALDO Fatt.n. 41704607786  del 28/12/2017 Energia elettrica MUNICIPIO mese di novembre 2017;25/01/2018;16511;0;102;1;Spese correnti;3;Acquisto di beni e servizi;2;Acquisto di servizi;5;Utenze e canoni;4;Energia elettrica;25/01/2018
101;1;0;286,42;286,42;Dolomiti Energia S.p.a.;ZBD1F4B0A3;SALDO Fatt.n. 41704607775  del 28/12/2017 Energia elettrica ISOLA DEI MORTI mese di novembre 2017;25/01/2018;16945;0;112;1;Spese correnti;3;Acquisto di beni e servizi;2;Acquisto di servizi;5;Utenze e canoni;4;Energia elettrica;25/01/2018
102;1;0;4.697,00;4.697,00;ACCATRE Srl;ZD11F94E97;SALDO Fatt.n. 1/171276  del 14/12/2017 Apertura stato patrimoniale e riclassificazione inventario;25/01/2018;17341;0;263;1;Spese correnti;3;Acquisto di beni e servizi;2;Acquisto di servizi;5;Utenze e canoni;999;Utenze e canoni per altri servizi n.a.c.;25/01/2018
103;1;0;336,72;336,72;ABS COMPUTERS S.R.L.;ZC9214ACD3;SALDO Fatt.n. 222/2017E  del 20/12/2017 Fornitura di uno switch per il municipio;25/01/2018;20318;0;364;2;Spese in conto capitale;2;Investimenti fissi lordi e acquisto di terreni;1;Beni materiali;4;Impianti e macchinari;1;Macchinari;25/01/2018
104;1;0;362,05;362,05;TIM Spa;ZF519442C8;SALDO Fatt.n. 7X05424753  del 15/12/2017 Telefonia mobile Consip 6 - periodo ottobre/novembre 2017;26/01/2018;15891;0;133;1;Spese correnti;3;Acquisto di beni e servizi;2;Acquisto di servizi;5;Utenze e canoni;2;Telefonia mobile;26/01/2018
105;1;0;2.105,50;2.105,50;CIMOLATO Snc di Cimolato Michela & C.;Z80216CBF0;ACCONTO Fatt.n. VPA18-02  del 09/01/2018 ATTREZZI PER LA MANUTENZIONE DEL VERDE     GARA MEPA N. 361729;26/01/2018;19770;0;369;2;Spese in conto capitale;5;Altre spese in conto capitale;99;Altre spese in conto capitale n.a.c.;99;Altre spese in conto capitale n.a.c.;999;Altre spese in conto capitale n.a.c.;26/01/2018
106;1;0;283,48;283,48;CIMOLATO Snc di Cimolato Michela & C.;Z80216CBF0;SALDO Fatt.n. VPA18-02  del 09/01/2018 ATTREZZI PER LA MANUTENZIONE DEL VERDE     GARA MEPA N. 361729;26/01/2018;17191;0;370;1;Spese correnti;3;Acquisto di beni e servizi;1;Acquisto di beni;2;Altri beni di consumo;999;Altri beni e materiali di consumo n.a.c.;26/01/2018
107;1;0;1.220,00;1.220,00;ACCATRE Srl;Z75214ABC1;SALDO Fatt.n. 1/171497  del 29/12/2017 Attivazione servizi aggiornamento annuale inventario beni 118/2011 e redazione stato patrimoniale e conto economico 118/2011 effettuati nel 2017;26/01/2018;17341;0;384;1;Spese correnti;3;Acquisto di beni e servizi;2;Acquisto di servizi;5;Utenze e canoni;999;Utenze e canoni per altri servizi n.a.c.;26/01/2018
108;1;0;402,6;402,6;KONE Spa;Z95178075D;SALDO Fatt.n. 0093727051  del 29/12/2017 Manutenzione impianto ascensore SCUOLA MEDIA lug/dic 2017;26/01/2018;16601;0;377;1;Spese correnti;3;Acquisto di beni e servizi;2;Acquisto di servizi;9;Manutenzione ordinaria e riparazioni;8;Manutenzione ordinaria e riparazioni di beni immobili;26/01/2018
109;1;0;1.203,03;1.203,03;SOLICUM Snc di Zuan Mario; ;SALDO Fatt.n. 149/E  del 29/12/2017 MANUTENZIONE IMPIANTO ELETTRICO ILLUMINAZIONE IMPIANTI SPORTIVI VIA DEGLI ALPINI;26/01/2018;16991;0;53;1;Spese correnti;3;Acquisto di beni e servizi;2;Acquisto di servizi;9;Manutenzione ordinaria e riparazioni;8;Manutenzione ordinaria e riparazioni di beni immobili;26/01/2018
110;1;0;386,13;386,13;SOLICUM Snc di Zuan Mario; ;SALDO Fatt.n. 150/E  del 29/12/2017 INTERVENTI PRESSO SCUOLA PRIMARIA;26/01/2018;16551;0;40;1;Spese correnti;3;Acquisto di beni e servizi;2;Acquisto di servizi;9;Manutenzione ordinaria e riparazioni;8;Manutenzione ordinaria e riparazioni di beni immobili;26/01/2018
111;1;0;625,1;625,1;SOLICUM Snc di Zuan Mario; ;SALDO Fatt.n. 148/E  del 29/12/2017 MANUTENZIONE IMPIANTO ELETTRICO ILLUMINAZIONE PUBBLICA.;26/01/2018;17251;0;67;1;Spese correnti;3;Acquisto di beni e servizi;2;Acquisto di servizi;9;Manutenzione ordinaria e riparazioni;8;Manutenzione ordinaria e riparazioni di beni immobili;26/01/2018
112;1;0;1.232,20;1.232,20;PRESTI SCAVI Snc di Presti Mirco e Fabrizio;Z9C208631E;ACCONTO Fatt.n. 24/E  del 30/12/2017 Interventi spargisale, rimozione pianta cimitero Mosnigo e sistemazione strade;26/01/2018;16932;0;51;1;Spese correnti;3;Acquisto di beni e servizi;2;Acquisto di servizi;99;Altri servizi;999;Altri servizi diversi n.a.c.;26/01/2018
113;1;0;2.192,95;2.192,95;PRESTI SCAVI Snc di Presti Mirco e Fabrizio;Z9C208631E;SALDO Fatt.n. 24/E  del 30/12/2017 Interventi spargisale, rimozione pianta cimitero Mosnigo e sistemazione strade;26/01/2018;17231;0;66;1;Spese correnti;3;Acquisto di beni e servizi;2;Acquisto di servizi;9;Manutenzione ordinaria e riparazioni;8;Manutenzione ordinaria e riparazioni di beni immobili;26/01/2018
114;1;0;315,81;315,81;REPRO Srl; ;SALDO Fatt.n. 000052-2017-6  del 31/12/2017 Colla di montaggio, guanti, cemento, tubi pvc...;26/01/2018;17230;0;65;1;Spese correnti;3;Acquisto di beni e servizi;1;Acquisto di beni;2;Altri beni di consumo;999;Altri beni e materiali di consumo n.a.c.;26/01/2018
115;1;0;788,12;788,12;O.N.P.P.I. Snc di Pessot Paola & C.;Z201F5B549;SALDO Fatt.n. 63/E-17  del 28/12/2017 Controllo periodico estintori;26/01/2018;17015;0;54;1;Spese correnti;3;Acquisto di beni e servizi;2;Acquisto di servizi;9;Manutenzione ordinaria e riparazioni;8;Manutenzione ordinaria e riparazioni di beni immobili;26/01/2018
116;1;0;471,77;471,77;O.N.P.P.I. Snc di Pessot Paola & C.;Z471DD7A91;ACCONTO Fatt.n. 64/E-17  del 28/12/2017 Vestiario vario ad uso del personale operaio;26/01/2018;17200;0;142;1;Spese correnti;3;Acquisto di beni e servizi;1;Acquisto di beni;2;Altri beni di consumo;4;Vestiario;26/01/2018
117;1;0;230,1;230,1;O.N.P.P.I. Snc di Pessot Paola & C.;Z471DD7A91;SALDO Fatt.n. 64/E-17  del 28/12/2017 Vestiario vario ad uso del personale operaio;26/01/2018;17200;0;63;1;Spese correnti;3;Acquisto di beni e servizi;1;Acquisto di beni;2;Altri beni di consumo;4;Vestiario;26/01/2018
118;1;0;721,02;721,02;SICURITALIA S.P.A.;Z391F0B0BF;SALDO Fatt.n. 9117000074  del 02/01/2018 Vigilanza stabili comunali;26/01/2018;15181;0;215;1;Spese correnti;3;Acquisto di beni e servizi;2;Acquisto di servizi;99;Altri servizi;999;Altri servizi diversi n.a.c.;26/01/2018
119;1;0;362,1;362,1;KUWAIT PETROLEUM ITALIA SPA;Z22175C158;ACCONTO Fatt.n. PJ00108708  del 31/12/2017 Carburante mese di DICEMBRE 2017;26/01/2018;17030;0;73;1;Spese correnti;3;Acquisto di beni e servizi;1;Acquisto di beni;2;Altri beni di consumo;2;Carburanti, combustibili e lubrificanti;26/01/2018
120;1;0;128,04;128,04;KUWAIT PETROLEUM ITALIA SPA;Z22175C158;SALDO Fatt.n. PJ00108708  del 31/12/2017 Carburante mese di DICEMBRE 2017;26/01/2018;17031;0;74;1;Spese correnti;3;Acquisto di beni e servizi;1;Acquisto di beni;2;Altri beni di consumo;2;Carburanti, combustibili e lubrificanti;26/01/2018
121;1;0;313,31;313,31;BIGATELLO Sas;ZC41AD13C2;SALDO Fatt.n. FATTPA 46_17  del 29/12/2017 Costo copia e assistenza fotocopiatore MPC2051 dell'Ufficio Tecnico nel corso del 4^ trim. 2017;26/01/2018;17193;0;62;1;Spese correnti;3;Acquisto di beni e servizi;2;Acquisto di servizi;7;Utilizzo di beni di terzi;8;Noleggi di impianti e macchinari;26/01/2018
122;1;0;829,6;829,6;BATT Sistemi di Sicurezza;ZA01C07DDB;SALDO Fatt.n. 8/PA  del 30/12/2017 Verifiche periodiche funzionali a sistemi di sicurezza (antifurto e antincendio) presso stabili comunali;26/01/2018;17015;0;355;1;Spese correnti;3;Acquisto di beni e servizi;2;Acquisto di servizi;9;Manutenzione ordinaria e riparazioni;8;Manutenzione ordinaria e riparazioni di beni immobili;26/01/2018
125;1;0;958,22;958,22;MORETTO & PIVA Snc;Z7B1537E87;ACCONTO Fatt.n. 33/E  del 31/12/2017 LAVORI ESEGUITI SU SKODA YETI TARGATA YA628AL E SUZUKI IGNIS TARGATA CV094RD;26/01/2018;17023;0;56;1;Spese correnti;3;Acquisto di beni e servizi;2;Acquisto di servizi;9;Manutenzione ordinaria e riparazioni;1;Manutenzione ordinaria e riparazioni di mezzi di trasporto ad uso civile, di sicurezza e ordine pubblico;26/01/2018
126;1;0;398,03;398,03;MORETTO & PIVA Snc;Z7B1537E87;SALDO Fatt.n. 33/E  del 31/12/2017 LAVORI ESEGUITI SU SKODA YETI TARGATA YA628AL E SUZUKI IGNIS TARGATA CV094RD;26/01/2018;17022;0;55;1;Spese correnti;3;Acquisto di beni e servizi;2;Acquisto di servizi;9;Manutenzione ordinaria e riparazioni;1;Manutenzione ordinaria e riparazioni di mezzi di trasporto ad uso civile, di sicurezza e ordine pubblico;26/01/2018
128;1;0;5.000,00;5.000,00;BATTISTON PAOLO;ZD12120398;ACCONTO Fatt.n. 2/A  del 12/01/2018 Noleggio luminarie ed abete anno 2017/18;26/01/2018;17252;0;360;1;Spese correnti;3;Acquisto di beni e servizi;2;Acquisto di servizi;9;Manutenzione ordinaria e riparazioni;8;Manutenzione ordinaria e riparazioni di beni immobili;26/01/2018
129;1;0;233,8;233,8;BATTISTON PAOLO;ZD12120398;SALDO Fatt.n. 2/A  del 12/01/2018 Noleggio luminarie ed abete anno 2017/18;26/01/2018;17231;0;66;1;Spese correnti;3;Acquisto di beni e servizi;2;Acquisto di servizi;9;Manutenzione ordinaria e riparazioni;8;Manutenzione ordinaria e riparazioni di beni immobili;26/01/2018
130;1;0;1.036,55;1.036,55;PENSIONE BORGOCHIARO di Barel Michela;ZDB1EB229C;ACCONTO Fatt.n. FATTPA 19_18  del 18/01/2018 Permanenza presso canile consortile periodo set/dic 2017;26/01/2018;17080;0;57;1;Spese correnti;3;Acquisto di beni e servizi;2;Acquisto di servizi;99;Altri servizi;999;Altri servizi diversi n.a.c.;26/01/2018
131;1;0;4,02;4,02;PENSIONE BORGOCHIARO di Barel Michela;Z7A1389095;SALDO Fatt.n. FATTPA 19_18  del 18/01/2018 Permanenza presso canile consortile periodo set/dic 2017;26/01/2018;17290;0;59;1;Spese correnti;3;Acquisto di beni e servizi;2;Acquisto di servizi;11;Prestazioni professionali e specialistiche;999;Altre prestazioni professionali e specialistiche n.a.c.;26/01/2018
132;1;0;11,94;11,94;TIM Spa; ;SALDO Fatt.n. 8E00058319  del 09/01/2018 Telefono SCUOLA MEDIA novembre/dicembre 2017;26/01/2018;16631;0;71;1;Spese correnti;3;Acquisto di beni e servizi;2;Acquisto di servizi;5;Utenze e canoni;1;Telefonia fissa;26/01/2018
133;1;0;0,09;658,48;TIM Spa; ;SALDO Fatt.n. 8E00057037  del 09/01/2018 Telefono ASCENSORE novembre/dicembre 2017;26/01/2018;16541;0;69;1;Spese correnti;3;Acquisto di beni e servizi;2;Acquisto di servizi;5;Utenze e canoni;1;Telefonia fissa;26/01/2018
133;2;0;73,2;658,48;TIM Spa; ;SALDO Fatt.n. 8E00055856  del 09/01/2018 Telefono MUNICIPIO 3 novembre/dicembre 2017;26/01/2018;16541;0;69;1;Spese correnti;3;Acquisto di beni e servizi;2;Acquisto di servizi;5;Utenze e canoni;1;Telefonia fissa;26/01/2018
133;3;0;79,12;658,48;TIM Spa; ;SALDO Fatt.n. 8E00052112  del 09/01/2018 Telefono FAX novembre/dicembre 2017;26/01/2018;16541;0;69;1;Spese correnti;3;Acquisto di beni e servizi;2;Acquisto di servizi;5;Utenze e canoni;1;Telefonia fissa;26/01/2018
133;4;0;79,12;658,48;TIM Spa; ;SALDO Fatt.n. 8E00058679  del 09/01/2018 Telefono MUNICIPIO 2 novembre/dicembre 2017;26/01/2018;16541;0;69;1;Spese correnti;3;Acquisto di beni e servizi;2;Acquisto di servizi;5;Utenze e canoni;1;Telefonia fissa;26/01/2018
133;5;0;426,95;658,48;TIM Spa; ;SALDO Fatt.n. 8E00052841  del 09/01/2018 Telefono MUNICIPIO 1 novembre/dicembre 2017;26/01/2018;16541;0;69;1;Spese correnti;3;Acquisto di beni e servizi;2;Acquisto di servizi;5;Utenze e canoni;1;Telefonia fissa;26/01/2018
134;1;0;31,11;31,11;TIM Spa; ;SALDO Fatt.n. 8E00056364  del 09/01/2018 Telefono SCUOLA ELEMENTARE novembre/dicembre 2017;26/01/2018;16581;0;70;1;Spese correnti;3;Acquisto di beni e servizi;2;Acquisto di servizi;5;Utenze e canoni;1;Telefonia fissa;26/01/2018
135;1;0;339,1;339,1;COMUNE DI PIEVE DI SOLIGO; ;INTESA PROGRAMMATICA D'AREA DELLE TERRE ALTE DELLA MARCA TREVIGIANA - QUOTA DI ADESIONE ANNO 2018;26/01/2018;17331;0;39;1;Spese correnti;4;Trasferimenti correnti;1;Trasferimenti correnti a Amministrazioni Pubbliche;2;Trasferimenti correnti a Amministrazioni Locali;3;Trasferimenti correnti a Comuni;26/01/2018
136;1;0;270;270;CONTESSOTTO ANGELO; ;CANONE ANNUO PER LA LOCAZIONE DI UNA AREA ADIBITA A PARCO GIOCHI. ANNO 2018;26/01/2018;17100;0;40;1;Spese correnti;10;Altre spese correnti;99;Altre spese correnti n.a.c.;99;Altre spese correnti n.a.c.;999;Altre spese correnti n.a.c.;26/01/2018
138;1;0;101;266,2;ALTROCONSUMO EDIZIONI Srl; ;ABBONAMENTI  RIVISTE AD USO BIBLIOTECA COMUNALE. ANNO 2018;26/01/2018;16050;0;44;1;Spese correnti;3;Acquisto di beni e servizi;1;Acquisto di beni;1;Giornali, riviste e pubblicazioni;2;Pubblicazioni;26/01/2018
138;2;0;27;266,2;MESSAGGERO DEI RAGAZZI - BASILICA DEL SANTO; ;ABBONAMENTI  RIVISTE AD USO BIBLIOTECA COMUNALE. ANNO 2018;26/01/2018;16050;0;44;1;Spese correnti;3;Acquisto di beni e servizi;1;Acquisto di beni;1;Giornali, riviste e pubblicazioni;2;Pubblicazioni;26/01/2018
138;3;0;34,5;266,2;PANINI S.P.A.   ABBONAMENTI DISNEY; ;ABBONAMENTI  RIVISTE AD USO BIBLIOTECA COMUNALE. ANNO 2018;26/01/2018;16050;0;44;1;Spese correnti;3;Acquisto di beni e servizi;1;Acquisto di beni;1;Giornali, riviste e pubblicazioni;2;Pubblicazioni;26/01/2018
138;4;0;29,9;266,2;PRESS-DI DISTRIBUZIONE STAMPA E MULTIMEDIA Srl; ;ABBONAMENTI  RIVISTE AD USO BIBLIOTECA COMUNALE. ANNO 2018;26/01/2018;16050;0;44;1;Spese correnti;3;Acquisto di beni e servizi;1;Acquisto di beni;1;Giornali, riviste e pubblicazioni;2;Pubblicazioni;26/01/2018
138;5;0;34,8;266,2;PRESS-DI DISTRIBUZIONE STAMPA E MULTIMEDIA Srl; ;ABBONAMENTI  RIVISTE AD USO BIBLIOTECA COMUNALE. ANNO 2018;26/01/2018;16050;0;44;1;Spese correnti;3;Acquisto di beni e servizi;1;Acquisto di beni;1;Giornali, riviste e pubblicazioni;2;Pubblicazioni;26/01/2018
138;6;0;39;266,2;Abbonamenti National Geographic; ;ABBONAMENTI  RIVISTE AD USO BIBLIOTECA COMUNALE. ANNO 2018;26/01/2018;16050;0;44;1;Spese correnti;3;Acquisto di beni e servizi;1;Acquisto di beni;1;Giornali, riviste e pubblicazioni;2;Pubblicazioni;26/01/2018
140;1;0;12,5;600,96;PILLON MARIKA  ECONOMO COMUNALE; ;Rimborso bolletta N.   129 del  23-11-17 Fornitura materiale per organizzazione mostra centenario grande guerra - scontr.fisc.n. 18 del 23.11.2017 Cartoleria MI.DA di Farra di Soligo (TV);29/01/2018;15018;0;408;1;Spese correnti;3;Acquisto di beni e servizi;1;Acquisto di beni;2;Altri beni di consumo;999;Altri beni e materiali di consumo n.a.c.;29/01/2018
140;2;0;22,6;600,96;PILLON MARIKA  ECONOMO COMUNALE; ;Rimborso bolletta N.   131 del  25-11-17 Spesa rinfresco mostra su Caporetto  c/o Casa del Musichiere - forn. pane come da scontrino fisc. n. 171 e n, 148 del  25.11.2017 Panificio Collanega  di Moriago della Battaglia (TV);29/01/2018;15018;0;408;1;Spese correnti;3;Acquisto di beni e servizi;1;Acquisto di beni;2;Altri beni di consumo;999;Altri beni e materiali di consumo n.a.c.;29/01/2018
140;3;0;34;600,96;PILLON MARIKA  ECONOMO COMUNALE; ;Rimborso bolletta N.   127 del  15-11-17 Rinfresco offerto dall'Amm.ne per serata le vie dell'acqua con la Regione Veneto - scontr.fisc.n. 3 del 15.11.2017 Pasticceria Artigianale Col San Martino snc di Col San Martino (TV);29/01/2018;15018;0;408;1;Spese correnti;3;Acquisto di beni e servizi;1;Acquisto di beni;2;Altri beni di consumo;999;Altri beni e materiali di consumo n.a.c.;29/01/2018
140;4;0;36,3;600,96;PILLON MARIKA  ECONOMO COMUNALE; ;Rimborso bolletta N.   130 del  25-11-17 Spesa rinfresco mostra su Caporetto  c/o Casa del Musichiere - forn.salumi ed affettati vari come da scontrino fisc. n.219 del  25.11.2017 Colomberotto Spa di Moriago della Battaglia (TV);29/01/2018;15018;0;408;1;Spese correnti;3;Acquisto di beni e servizi;1;Acquisto di beni;2;Altri beni di consumo;999;Altri beni e materiali di consumo n.a.c.;29/01/2018
140;5;0;41,06;600,96;PILLON MARIKA  ECONOMO COMUNALE; ;Rimborso bolletta N.   128 del  15-11-17 Rinfresco offerto dall'Amm.ne per serata le vie dell'acqua con la Regione Veneto - scontr.fisc.n. 38 del 15.11.2017 Alì di Vidor  (TV);29/01/2018;15018;0;408;1;Spese correnti;3;Acquisto di beni e servizi;1;Acquisto di beni;2;Altri beni di consumo;999;Altri beni e materiali di consumo n.a.c.;29/01/2018
140;6;0;49,5;600,96;PILLON MARIKA  ECONOMO COMUNALE; ;Rimborso bolletta N.   113 del  13-10-17 Pranzo offerto dall'Amm.ne com.le allo scultore Balljana post installazione statue nel territorio comunale - scontr.fisc.n. 18 del 13.10.2017 Caffè Centrale  di Moriago d.B. (TV);29/01/2018;15018;0;408;1;Spese correnti;3;Acquisto di beni e servizi;1;Acquisto di beni;2;Altri beni di consumo;999;Altri beni e materiali di consumo n.a.c.;29/01/2018
140;7;0;125;600,96;PILLON MARIKA  ECONOMO COMUNALE; ;Rimborso bolletta N.   136 del  18-12-17 Fornitura piante verdi ornamentali di grandi dimensioni per inaugurazione festival della cultura 2017/2018 come da scontrino fisc.n. 26 del 17.10.2017 Floricoltura Gallonetto Flora di Pieve di Soligo (TV);29/01/2018;15018;0;408;1;Spese correnti;3;Acquisto di beni e servizi;1;Acquisto di beni;2;Altri beni di consumo;999;Altri beni e materiali di consumo n.a.c.;29/01/2018
140;8;0;280;600,96;PILLON MARIKA  ECONOMO COMUNALE; ;Rimborso bolletta N.   135 del  18-12-17 Fornitura stampe per mostra Grande Guerra - come da scontr.fisc.n. 8 del 1.12.2017 Foto Munari sas di Pieve di Soligo;29/01/2018;15018;0;408;1;Spese correnti;3;Acquisto di beni e servizi;1;Acquisto di beni;2;Altri beni di consumo;999;Altri beni e materiali di consumo n.a.c.;29/01/2018
141;1;0;2;148,4;PILLON MARIKA  ECONOMO COMUNALE; ;Rimborso bolletta N.   138 del  20-12-17 Parcheggio a pagamento a Treviso - con auto comunale Suzuki Ignis - nr.ricevuta 17171 n.posto auto 1511 del 20.12.2017;29/01/2018;15130;0;410;1;Spese correnti;3;Acquisto di beni e servizi;1;Acquisto di beni;2;Altri beni di consumo;1;Carta, cancelleria e stampati;29/01/2018
141;2;0;34,4;148,4;PILLON MARIKA  ECONOMO COMUNALE; ;Rimborso bolletta N.   140 del  29-12-17 Pagamento mediante mav elettronico bancario pagamento relativo al rinnovo 2018 abbonamento annuo per polizia locale - cod.cl. 031178 come da ricevuta del 29.12.2017;29/01/2018;15130;0;410;1;Spese correnti;3;Acquisto di beni e servizi;1;Acquisto di beni;2;Altri beni di consumo;1;Carta, cancelleria e stampati;29/01/2018
141;3;0;42;148,4;PILLON MARIKA  ECONOMO COMUNALE; ;"Rimborso bolletta N.   105 del  02-10-17 Acquisto di nr. 1 manuale pratico ""Codice di procedura penale forze dell'ordine vigile urbano  2017"" - fattura nr. 24132/2017 del 29.9.2017 La Tribuna srl di Milano";29/01/2018;15130;0;410;1;Spese correnti;3;Acquisto di beni e servizi;1;Acquisto di beni;2;Altri beni di consumo;1;Carta, cancelleria e stampati;29/01/2018
141;4;0;70;148,4;PILLON MARIKA  ECONOMO COMUNALE; ;Rimborso bolletta N.   126 del  06-11-17 Acquisto nr. 3 prontuari per la polizia municipale - come da buono di vendita nr. 5985/VE3 del 6.11.2017 Egaf Edizioni srl di Forlì (FC) n. 1 prontuario dell'autotrasporto - n. 1 prontuario del trasporto me;29/01/2018;15130;0;410;1;Spese correnti;3;Acquisto di beni e servizi;1;Acquisto di beni;2;Altri beni di consumo;1;Carta, cancelleria e stampati;29/01/2018
142;1;0;7,74;244,56;PILLON MARIKA  ECONOMO COMUNALE; ;Rimborso bolletta N.   111 del  09-10-17 Acquisto nr. 3 pezzi Mastro Lindo Gomma magica per pulizia righe muri Casa del Musichiere - scontr.fisc. 12 del 9.10.2017 Supermercato Rosa di Col San Martino (TV);29/01/2018;15880;0;389;1;Spese correnti;3;Acquisto di beni e servizi;1;Acquisto di beni;2;Altri beni di consumo;1;Carta, cancelleria e stampati;29/01/2018
142;2;0;9;244,56;PILLON MARIKA  ECONOMO COMUNALE; ;Rimborso bolletta N.   109 del  05-10-17 Doppione chiavi operai comunali - scontr.fisc. N. 3 del 5.10.17 Zoopiave di Sernaglia (TV);29/01/2018;15880;0;389;1;Spese correnti;3;Acquisto di beni e servizi;1;Acquisto di beni;2;Altri beni di consumo;1;Carta, cancelleria e stampati;29/01/2018
142;3;0;10,32;244,56;PILLON MARIKA  ECONOMO COMUNALE; ;Rimborso bolletta N.   110 del  09-10-17 Acquisto nr. 4 pezzi Mastro Lindo Gomma magica per pulizia righe muri Casa del Musichiere - scontr.fisc. 101 del 9.10.2017 Supermercato Rosa di Col San Martino (TV);29/01/2018;15880;0;389;1;Spese correnti;3;Acquisto di beni e servizi;1;Acquisto di beni;2;Altri beni di consumo;1;Carta, cancelleria e stampati;29/01/2018
142;4;0;23,7;244,56;PILLON MARIKA  ECONOMO COMUNALE; ;Rimborso bolletta N.   118 del  19-10-17 Fornitura nr. 3 pattumiere per cucina Casa del Musichiere corsi festival della cultura sui finger food - scontr.fisc.n. 112 del 19.10.2017 SME Spa di Susegana (TV);29/01/2018;15880;0;389;1;Spese correnti;3;Acquisto di beni e servizi;1;Acquisto di beni;2;Altri beni di consumo;1;Carta, cancelleria e stampati;29/01/2018
142;5;0;30;244,56;PILLON MARIKA  ECONOMO COMUNALE; ;Rimborso bolletta N.   139 del  28-12-17 Fornitura bouquet floreale per sposi matrimonio civile del 28.10.2017 - scontr.fisc.n. 1 del 28.10.2017 Fioreria Antonella di Sernaglia (TV);29/01/2018;15880;0;389;1;Spese correnti;3;Acquisto di beni e servizi;1;Acquisto di beni;2;Altri beni di consumo;1;Carta, cancelleria e stampati;29/01/2018
142;6;0;44;244,56;PILLON MARIKA  ECONOMO COMUNALE; ;Rimborso bolletta N.   112 del  10-10-17 Fornitura n. 1 microfono per Casa del Musichiere - scontr.fisc. 12 del 10.10.2017 Esse Music Store srl di Montebelluna (TV);29/01/2018;15880;0;389;1;Spese correnti;3;Acquisto di beni e servizi;1;Acquisto di beni;2;Altri beni di consumo;1;Carta, cancelleria e stampati;29/01/2018
142;7;0;119,8;244,56;PILLON MARIKA  ECONOMO COMUNALE; ;Rimborso bolletta N.   114 del  14-10-17 Acquisto nr. 2 supporti TV per monitor acquistati per Casa del Musichiere - scontr.fisc.n. 35 del 14.10.2017 Expert City Lineauto di Pieve di Soligo (TV);29/01/2018;15880;0;389;1;Spese correnti;3;Acquisto di beni e servizi;1;Acquisto di beni;2;Altri beni di consumo;1;Carta, cancelleria e stampati;29/01/2018
143;1;0;14,5;99;PILLON MARIKA  ECONOMO COMUNALE; ;Rimborso bolletta N.   107 del  02-10-17 Pagamento diritti per pubbliche affissioni - per il Comune di Vittorio Veneto - inaugurazione mostra Balljana - come da versamento ccp 261313 per  13,00, + spese ccp  1,50;29/01/2018;16105;0;77;1;Spese correnti;3;Acquisto di beni e servizi;2;Acquisto di servizi;99;Altri servizi;999;Altri servizi diversi n.a.c.;29/01/2018
143;2;0;30;99;PILLON MARIKA  ECONOMO COMUNALE; ;"Rimborso bolletta N.   108 del  03-10-17 Spesa per ricarica telefonica SiM  cellulare ""Moriago Racconta"" - come da ric.fisc. N. sport.0205 N. oper. 0024512/666 Popolare di VI del 3.10.17";29/01/2018;16105;0;77;1;Spese correnti;3;Acquisto di beni e servizi;2;Acquisto di servizi;99;Altri servizi;999;Altri servizi diversi n.a.c.;29/01/2018
143;3;0;54,5;99;PILLON MARIKA  ECONOMO COMUNALE; ;Rimborso bolletta N.   106 del  02-10-17 Pagamento diritti per pubbliche affissioni mostra Balljana - come da versamento ccp 261313 per  53,00, + spese ccp  1,50 per pagamento relativo a vari comuni;29/01/2018;16105;0;77;1;Spese correnti;3;Acquisto di beni e servizi;2;Acquisto di servizi;99;Altri servizi;999;Altri servizi diversi n.a.c.;29/01/2018
144;1;0;11,23;862,73;PILLON MARIKA  ECONOMO COMUNALE; ;Rimborso bolletta N.   122 del  25-10-17 Rinfresco per cerimonia di consegna borse di studio alunni meritevoli - scontr.fisc.n. 72 del 25.10.2017 Alì di Vidor (TV);29/01/2018;16105;0;409;1;Spese correnti;3;Acquisto di beni e servizi;2;Acquisto di servizi;99;Altri servizi;999;Altri servizi diversi n.a.c.;29/01/2018
144;2;0;16,5;862,73;PILLON MARIKA  ECONOMO COMUNALE; ;Rimborso bolletta N.   123 del  26-10-17 Acquisto bibite per castagnata presso la scuola elementare organizzata dall'Amm.ne Com.le - scontr.fisc. N. 129 del 26.10.2017 Alì di Vidor (TV);29/01/2018;16105;0;409;1;Spese correnti;3;Acquisto di beni e servizi;2;Acquisto di servizi;99;Altri servizi;999;Altri servizi diversi n.a.c.;29/01/2018
144;3;0;30;862,73;PILLON MARIKA  ECONOMO COMUNALE; ;"Rimborso bolletta N.   124 del  27-10-17 Ricarica telefonica sim dedicata a ""Moriago Racconta"" - come da ric. Veneto Banca n.sport. 7066 n. oper. 00199430064 del 27.10.2017";29/01/2018;16105;0;409;1;Spese correnti;3;Acquisto di beni e servizi;2;Acquisto di servizi;99;Altri servizi;999;Altri servizi diversi n.a.c.;29/01/2018
144;4;0;30;862,73;PILLON MARIKA  ECONOMO COMUNALE; ;"Rimborso bolletta N.   125 del  27-10-17 Ricarica telefonica sim dedicata a ""Moriago Racconta"" - come da ric. Cassa Centrale Banca n.sport. 6217 n. oper.transazione 00031 del 27.10.2017";29/01/2018;16105;0;409;1;Spese correnti;3;Acquisto di beni e servizi;2;Acquisto di servizi;99;Altri servizi;999;Altri servizi diversi n.a.c.;29/01/2018
144;5;0;60;862,73;PILLON MARIKA  ECONOMO COMUNALE; ;Rimborso bolletta N.   116 del  15-10-17 Fornitura addobbi floreali per inaugurazione festival della cultura 2017 - come da scontrino fisc.n. 37 del 15.10.2017 Fioreria Dolce Pensiero di Covolo di Pederobba (TV);29/01/2018;16105;0;409;1;Spese correnti;3;Acquisto di beni e servizi;2;Acquisto di servizi;99;Altri servizi;999;Altri servizi diversi n.a.c.;29/01/2018
144;6;0;105;862,73;PILLON MARIKA  ECONOMO COMUNALE; ;Rimborso bolletta N.   141 del  29-12-17 Pagamento spese soggiorno relatrice incontri sul cyberbullismo presso scuole locali e serata in occasione Festival della Cultura, come da ricevuta fiscale n. REM 443848/09 del 6.12.2017 Locanda Toronto di M;29/01/2018;16105;0;409;1;Spese correnti;3;Acquisto di beni e servizi;2;Acquisto di servizi;99;Altri servizi;999;Altri servizi diversi n.a.c.;29/01/2018
144;7;0;120;862,73;PILLON MARIKA  ECONOMO COMUNALE; ;Rimborso bolletta N.   120 del  25-10-17 Acquisto castagne per castagnata presso la scuola elementare organizzata dall'Amm.ne Com.le - scontr.fisc. N. 12 del 25.10.2017 Ortofrutta Frezza Gianluigi di Sernaglia della Battaglia (TV);29/01/2018;16105;0;409;1;Spese correnti;3;Acquisto di beni e servizi;2;Acquisto di servizi;99;Altri servizi;999;Altri servizi diversi n.a.c.;29/01/2018
144;8;0;240;862,73;PILLON MARIKA  ECONOMO COMUNALE; ;Rimborso bolletta N.   115 del  14-10-17 Acquisto da parte dell'Amm.ne com.le   targhe con incisioni a colori - come da ric.fiscale . 22 del 14.10.2017 Il Traguardo di Conegliano (TV);29/01/2018;16105;0;409;1;Spese correnti;3;Acquisto di beni e servizi;2;Acquisto di servizi;99;Altri servizi;999;Altri servizi diversi n.a.c.;29/01/2018
144;9;0;250;862,73;PILLON MARIKA  ECONOMO COMUNALE; ;Rimborso bolletta N.   117 del  18-10-17 Organizzazione rinfresco inaugurazione festival della cultura 2017 con mostra Balljana e Sgarbi - ric.risc. REM 443743/09 del 18.10.2017 Locanda Toronto di Moriago (TV);29/01/2018;16105;0;409;1;Spese correnti;3;Acquisto di beni e servizi;2;Acquisto di servizi;99;Altri servizi;999;Altri servizi diversi n.a.c.;29/01/2018
145;1;0;97,07;97,07;PILLON MARIKA  ECONOMO COMUNALE; ;"Rimborso bolletta N.   104 del  02-10-17 Rinfresco per manifestazione ""puliamo il mondo 2017"" del 23.9.2017 - scontr.fisc. N. 4302 0041/006/050 del 23.9.2017 Bennet Spa di Pieve di Soligo (TV)";29/01/2018;16896;0;233;1;Spese correnti;3;Acquisto di beni e servizi;2;Acquisto di servizi;99;Altri servizi;999;Altri servizi diversi n.a.c.;29/01/2018
146;1;0;5;5;PILLON MARIKA  ECONOMO COMUNALE; ;Rimborso bolletta N.   119 del  23-10-17 Spesa lavaggio esterno auto polizia municipale - scontr.fisc.n. 2 del 23/10/2017 Autolavaggio de Lazzari Flavio di Postioma (TV);29/01/2018;17023;0;411;1;Spese correnti;3;Acquisto di beni e servizi;2;Acquisto di servizi;9;Manutenzione ordinaria e riparazioni;1;Manutenzione ordinaria e riparazioni di mezzi di trasporto ad uso civile, di sicurezza e ordine pubblico;29/01/2018
147;1;0;10;30;PILLON MARIKA  ECONOMO COMUNALE; ;Rimborso bolletta N.   137 del  20-12-17 Fornitura tanica benzina per operai comunali - ricevuta stazione di servizio Repsol di Sernaglia della Battaglia (TV) scontrino n. 848020 del 20.12.2017;29/01/2018;17030;0;73;1;Spese correnti;3;Acquisto di beni e servizi;1;Acquisto di beni;2;Altri beni di consumo;2;Carburanti, combustibili e lubrificanti;29/01/2018
147;2;0;20;30;PILLON MARIKA  ECONOMO COMUNALE; ;Rimborso bolletta N.   133 del  18-12-17 Fornitura straordinaria carburante automezzo comunale Suzuki Ignis in occasione trasferta assistente sociale come da apposita attestazione;29/01/2018;17030;0;73;1;Spese correnti;3;Acquisto di beni e servizi;1;Acquisto di beni;2;Altri beni di consumo;2;Carburanti, combustibili e lubrificanti;29/01/2018
148;1;0;46,68;46,68;PILLON MARIKA  ECONOMO COMUNALE; ;Rimborso bolletta N.   132 del  15-12-17 Pagamento modello F24 accise pagamento codice tributo 2813 - codice identificativo TVE01547V di  23,24 e codice identificativo TVE02392J di  23,24 eseguito in data 15.12.2017;29/01/2018;17190;0;412;1;Spese correnti;3;Acquisto di beni e servizi;1;Acquisto di beni;2;Altri beni di consumo;999;Altri beni e materiali di consumo n.a.c.;29/01/2018
149;1;0;96,7;239,9;PILLON MARIKA  ECONOMO COMUNALE; ;Rimborso bolletta N.   134 del  18-12-17 Fornitura materiale ad uso operai comunali: guanti, mascherine e tute - come da scontr.fisc.n. 13 del 11.12.2017 Consorzio Agrario TV/BL di Col San Martino (TV);29/01/2018;17191;0;61;1;Spese correnti;3;Acquisto di beni e servizi;1;Acquisto di beni;2;Altri beni di consumo;999;Altri beni e materiali di consumo n.a.c.;29/01/2018
149;2;0;143,2;239,9;PILLON MARIKA  ECONOMO COMUNALE; ;Rimborso bolletta N.   121 del  25-10-17 Acquisto nr. 20 cassette impilabili per trasloco sede municipale - scontr.fisc.n. 5 del 25.10.2017 Olivi Agricoltura srl di Colbertaldo di Vidor (TV);29/01/2018;17191;0;61;1;Spese correnti;3;Acquisto di beni e servizi;1;Acquisto di beni;2;Altri beni di consumo;999;Altri beni e materiali di consumo n.a.c.;29/01/2018
150;1;0;9.500,00;9.500,00;A.S.D. UNION Q.D.P.; ;CONVENZIONE TRA LA A.S.D. UNION QDP  ED IL COMUNE DI MORIAGO DELLA BATTAGLIA PER LA  GESTIONE DEGLI IMPIANTI SPORTIVI COMUNALI . IMPEGNO DI SPESA E LIQUIDAZIONE GENNAIO - GIUGNO 2018.;02/02/2018;16154;0;62;1;Spese correnti;4;Trasferimenti correnti;4;Trasferimenti correnti a Istituzioni Sociali Private;1;Trasferimenti correnti a Istituzioni Sociali Private;1;Trasferimenti correnti a Istituzioni Sociali Private;02/02/2018
151;1;0;927,2;927,2;MINETTO Srl;Z07208B198;SALDO Fatt.n. 000001  del 17/01/2018 Fornitura schermi tv led;05/02/2018;20318;0;359;2;Spese in conto capitale;2;Investimenti fissi lordi e acquisto di terreni;1;Beni materiali;4;Impianti e macchinari;1;Macchinari;05/02/2018
152;1;0;120,78;131,76;CISL VENETO SERVIZI Srl; ;SALDO Fatt.n. TVP/199  del 31/12/2017 Pratiche bonus energia (n. 13) e bonus gas (n. 9) periodo lug/ago 2017;05/02/2018;16010;0;309;1;Spese correnti;3;Acquisto di beni e servizi;2;Acquisto di servizi;99;Altri servizi;999;Altri servizi diversi n.a.c.;05/02/2018
152;2;0;10,98;131,76;IMPRESA VERDE TREVISO Srl;Z640E5068D;SALDO Fatt.n. 18VFAEL-000011  del 25/01/2018 Pratiche prestazioni sociali - modelli e dichirazioni ISE/ISEU;05/02/2018;16010;0;309;1;Spese correnti;3;Acquisto di beni e servizi;2;Acquisto di servizi;99;Altri servizi;999;Altri servizi diversi n.a.c.;05/02/2018
153;1;0;1.162,84;1.162,84;COOPERATIVA CSA - CENTRO SERVIZI ASSOCIATI;Z741E7298E;SALDO Fatt.n. 5/E  del 24/01/2018 Servizio di assistenza domiciliare mese di DICEMBRE 2017 (60,45 ore);05/02/2018;15990;0;184;1;Spese correnti;3;Acquisto di beni e servizi;2;Acquisto di servizi;15;Contratti di servizio pubblico;9;Contratti di servizio di assistenza sociale domiciliare;05/02/2018
163;1;0;83,36;83,36;VARAGO RENATO; ;SALDO Fatt.n. 2  del 09/01/2018 Partecipazione Commissione Edilizia anno 2017;06/02/2018;17270;0;385;1;Spese correnti;3;Acquisto di beni e servizi;2;Acquisto di servizi;11;Prestazioni professionali e specialistiche;999;Altre prestazioni professionali e specialistiche n.a.c.;06/02/2018
165;1;0;180;180;CENTRO STUDI AMMINISTRATIVI DELLA MARCA TREVIGIANA; ;SALDO Fatt.n. 625/2017  del 07/12/2017 Partecipazione convegno su gestione impianti sportivi;06/02/2018;15070;0;415;1;Spese correnti;3;Acquisto di beni e servizi;2;Acquisto di servizi;4;Acquisto di servizi per formazione e addestramento del personale dell'ente;999;Acquisto di servizi per altre spese per formazione e addestramento n.a.c.;06/02/2018
166;1;0;209;209;CENTRO STUDI AMMINISTRATIVI DELLA MARCA TREVIGIANA; ;ACCONTO Fatt.n. 688/2017  del 13/12/2017 Adesione offerta formativa Marca Contabile anno 2017;06/02/2018;15070;0;83;1;Spese correnti;3;Acquisto di beni e servizi;2;Acquisto di servizi;4;Acquisto di servizi per formazione e addestramento del personale dell'ente;999;Acquisto di servizi per altre spese per formazione e addestramento n.a.c.;06/02/2018
167;1;0;191;191;CENTRO STUDI AMMINISTRATIVI DELLA MARCA TREVIGIANA; ;SALDO Fatt.n. 688/2017  del 13/12/2017 Adesione offerta formativa Marca Contabile anno 2017;06/02/2018;15070;0;430;1;Spese correnti;3;Acquisto di beni e servizi;2;Acquisto di servizi;4;Acquisto di servizi per formazione e addestramento del personale dell'ente;999;Acquisto di servizi per altre spese per formazione e addestramento n.a.c.;06/02/2018
168;1;0;49,25;49,25;Dolomiti Energia S.p.a.;ZBD1F4B0A3;SALDO Fatt.n. 41800309296  del 25/01/2018 Energia elettrica LOCALI BANDA dicembre 2017;06/02/2018;16821;0;110;1;Spese correnti;3;Acquisto di beni e servizi;2;Acquisto di servizi;5;Utenze e canoni;4;Energia elettrica;06/02/2018
169;1;0;16,26;368,9;Dolomiti Energia S.p.a.;ZBD1F4B0A3;ACCONTO Fatt.n. 41800304139  del 25/01/2018 Energia elettrica SCUOLA MEDIA dicembre 2017;06/02/2018;16511;0;102;1;Spese correnti;3;Acquisto di beni e servizi;2;Acquisto di servizi;5;Utenze e canoni;4;Energia elettrica;06/02/2018
169;2;0;33,52;368,9;Dolomiti Energia S.p.a.;ZBD1F4B0A3;ACCONTO Fatt.n. 41800309294  del 25/01/2018 Energia elettrica MUSICHIERE dicembre 2017;06/02/2018;16511;0;102;1;Spese correnti;3;Acquisto di beni e servizi;2;Acquisto di servizi;5;Utenze e canoni;4;Energia elettrica;06/02/2018
169;3;0;319,12;368,9;Dolomiti Energia S.p.a.;ZBD1F4B0A3;SALDO Fatt.n. 41800309297  del 25/01/2018 Energia elettrica MUNICIPIO dicembre 2017;06/02/2018;16511;0;102;1;Spese correnti;3;Acquisto di beni e servizi;2;Acquisto di servizi;5;Utenze e canoni;4;Energia elettrica;06/02/2018
170;1;0;203,87;203,87;Dolomiti Energia S.p.a.;ZBD1F4B0A3;SALDO Fatt.n. 41800309294  del 25/01/2018 Energia elettrica MUSICHIERE dicembre 2017;06/02/2018;16675;0;106;1;Spese correnti;3;Acquisto di beni e servizi;2;Acquisto di servizi;5;Utenze e canoni;4;Energia elettrica;06/02/2018
171;1;0;163,12;599,5;Dolomiti Energia S.p.a.;ZBD1F4B0A3;ACCONTO Fatt.n. 41800304139  del 25/01/2018 Energia elettrica SCUOLA MEDIA dicembre 2017;06/02/2018;16561;0;103;1;Spese correnti;3;Acquisto di beni e servizi;2;Acquisto di servizi;5;Utenze e canoni;4;Energia elettrica;06/02/2018
171;2;0;436,38;599,5;Dolomiti Energia S.p.a.;ZBD1F4B0A3;ACCONTO Fatt.n. 41800309295  del 25/01/2018 Energia elettrica SCUOLA ELEMENTARE e PALESTRA dicembre 2017;06/02/2018;16561;0;103;1;Spese correnti;3;Acquisto di beni e servizi;2;Acquisto di servizi;5;Utenze e canoni;4;Energia elettrica;06/02/2018
172;1;0;55;273,19;Dolomiti Energia S.p.a.;ZBD1F4B0A3;ACCONTO Fatt.n. 41800304138  del 25/01/2018 Energia elettrica IMPIANTI SPORTIVI dicembre 2017;06/02/2018;16651;0;105;1;Spese correnti;3;Acquisto di beni e servizi;2;Acquisto di servizi;5;Utenze e canoni;4;Energia elettrica;06/02/2018
172;2;0;218,19;273,19;Dolomiti Energia S.p.a.;ZBD1F4B0A3;SALDO Fatt.n. 41800309295  del 25/01/2018 Energia elettrica SCUOLA ELEMENTARE e PALESTRA dicembre 2017;06/02/2018;16651;0;105;1;Spese correnti;3;Acquisto di beni e servizi;2;Acquisto di servizi;5;Utenze e canoni;4;Energia elettrica;06/02/2018
173;1;0;432,45;432,45;Dolomiti Energia S.p.a.;ZBD1F4B0A3;SALDO Fatt.n. 41800304135  del 25/01/2018 Energia elettrica POLIFUNZIONALE dicembre 2017;06/02/2018;16761;0;109;1;Spese correnti;3;Acquisto di beni e servizi;2;Acquisto di servizi;5;Utenze e canoni;4;Energia elettrica;06/02/2018
174;1;0;282,76;282,76;Dolomiti Energia S.p.a.;ZBD1F4B0A3;SALDO Fatt.n. 41800304132  del 25/01/2018 Energia elettrica ISOLA DEI MORTI dicembre 2017;06/02/2018;16945;0;112;1;Spese correnti;3;Acquisto di beni e servizi;2;Acquisto di servizi;5;Utenze e canoni;4;Energia elettrica;06/02/2018
175;1;0;67,36;147,94;Dolomiti Energia S.p.a.;ZBD1F4B0A3;SALDO Fatt.n. 41800304136  del 25/01/2018 Energia elettrica CIMITERO MORIAGO dicembre 2017;06/02/2018;16941;0;111;1;Spese correnti;3;Acquisto di beni e servizi;2;Acquisto di servizi;5;Utenze e canoni;4;Energia elettrica;06/02/2018
175;2;0;80,58;147,94;Dolomiti Energia S.p.a.;ZBD1F4B0A3;SALDO Fatt.n. 41800304134  del 25/01/2018 Energia elettrica CIMITERO MOSNIGO dicembre 2017;06/02/2018;16941;0;111;1;Spese correnti;3;Acquisto di beni e servizi;2;Acquisto di servizi;5;Utenze e canoni;4;Energia elettrica;06/02/2018
176;1;0;87,5;87,5;Dolomiti Energia S.p.a.;ZBD1F4B0A3;SALDO Fatt.n. 41800304137  del 25/01/2018 Energia elettrica ASSOCIAZIONI dicembre 2017;06/02/2018;16731;0;108;1;Spese correnti;3;Acquisto di beni e servizi;2;Acquisto di servizi;5;Utenze e canoni;4;Energia elettrica;06/02/2018
177;1;0;426,13;426,13;Dolomiti Energia S.p.a.;ZBD1F4B0A3;SALDO Fatt.n. 41800304138  del 25/01/2018 Energia elettrica IMPIANTI SPORTIVI dicembre 2017;06/02/2018;17001;0;113;1;Spese correnti;3;Acquisto di beni e servizi;2;Acquisto di servizi;5;Utenze e canoni;4;Energia elettrica;06/02/2018
178;1;0;42,8;42,8;Dolomiti Energia S.p.a.;ZBD1F4B0A3;SALDO Fatt.n. 41800304133  del 25/01/2018 Energia elettrica EX MAGAZZINO dicembre 2017;06/02/2018;16691;0;107;1;Spese correnti;3;Acquisto di beni e servizi;2;Acquisto di servizi;5;Utenze e canoni;4;Energia elettrica;06/02/2018
179;1;0;358,02;358,02;Dolomiti Energia S.p.a.;ZBD1F4B0A3;SALDO Fatt.n. 41800304139  del 25/01/2018 Energia elettrica SCUOLA MEDIA dicembre 2017;06/02/2018;16611;0;104;1;Spese correnti;3;Acquisto di beni e servizi;2;Acquisto di servizi;5;Utenze e canoni;4;Energia elettrica;06/02/2018
180;1;0;722,56;9.004,42;Dolomiti Energia S.p.a.;ZBD1F4B0A3;SALDO Fatt.n. 41800284656  del 25/01/2018 Energia elettrica PUBBLICA ILLNE (via Papa Giovanni XXIII) dicembre 2017;06/02/2018;17241;0;114;1;Spese correnti;3;Acquisto di beni e servizi;2;Acquisto di servizi;5;Utenze e canoni;4;Energia elettrica;06/02/2018
180;2;0;8.281,86;9.004,42;Dolomiti Energia S.p.a.;ZBD1F4B0A3;SALDO Fatt.n. 41800289393  del 25/01/2018 Energia elettrica PUBBLICA ILLNE dicembre 2017;06/02/2018;17241;0;114;1;Spese correnti;3;Acquisto di beni e servizi;2;Acquisto di servizi;5;Utenze e canoni;4;Energia elettrica;06/02/2018
181;1;0;5.709,60;5.709,60;TOFFOLI LUIGI di Toffoli Graziano;Z372004C99;SALDO Fatt.n. 1/PA/2018  del 20/01/2018 Lavori di adeguamento sismico della sede municipale, servizio di trasloco mobili ai sensi dell'art. 14 completamento della fase 1;08/02/2018;20351;0;262;2;Spese in conto capitale;2;Investimenti fissi lordi e acquisto di terreni;1;Beni materiali;9;Beni immobili;999;Beni immobili n.a.c.;08/02/2018
182;1;0;5.249,54;5.249,54;SOLIGO VIAGGI Sas;6318150E4E;SALDO Fatt.n. PA/011  del 31/01/2018 Trasporto scolastico mese di GENNAIO 2018;09/02/2018;15861;0;67;1;Spese correnti;3;Acquisto di beni e servizi;2;Acquisto di servizi;15;Contratti di servizio pubblico;2;Contratti di servizio di trasporto scolastico;09/02/2018
185;1;0;19.286,44;19.286,44;LA EDILSCAVI S.R.L.;6862859268;ACCONTO Fatt.n. 03/PA  del 01/02/2018 LAVORI DI REALIZZAZIONE PERCORSO PEDONALE PROTETTO IN VI VIA CALMENTERA;09/02/2018;20353;0;344;2;Spese in conto capitale;2;Investimenti fissi lordi e acquisto di terreni;3;Beni immateriali;99;Spese di investimento per beni immateriali n.a.c.;1;Spese di investimento per beni immateriali n.a.c.;09/02/2018
186;1;0;141.612,76;141.612,76;LA EDILSCAVI S.R.L.;6862859268;SALDO Fatt.n. 03/PA  del 01/02/2018 LAVORI DI REALIZZAZIONE PERCORSO PEDONALE PROTETTO IN VI VIA CALMENTERA;09/02/2018;20353;0;344;2;Spese in conto capitale;2;Investimenti fissi lordi e acquisto di terreni;3;Beni immateriali;99;Spese di investimento per beni immateriali n.a.c.;1;Spese di investimento per beni immateriali n.a.c.;09/02/2018
187;1;0;1.146,45;1.146,45;PROCED Srl;Z352199AFF;SALDO Fatt.n. 000059  del 31/01/2018 Cancelleria varia ad uso degli uffici;09/02/2018;15880;0;389;1;Spese correnti;3;Acquisto di beni e servizi;1;Acquisto di beni;2;Altri beni di consumo;1;Carta, cancelleria e stampati;09/02/2018
188;1;0;888,86;888,86;ASCOTRADE Spa (metano); ;SALDO Fatt.n. 4193  del 16/01/2018 Metano SALA POLIFUNZIONALE periodo novembre/dicembre 2017;09/02/2018;16771;0;120;1;Spese correnti;3;Acquisto di beni e servizi;2;Acquisto di servizi;5;Utenze e canoni;6;Gas;09/02/2018
189;1;0;793,17;793,17;ASCOTRADE Spa (metano); ;SALDO Fatt.n. 6746  del 16/01/2018 Metano MUNICIPIO (via Aldo Moro 26) periodo novembre/dicembre 2017;09/02/2018;16521;0;115;1;Spese correnti;3;Acquisto di beni e servizi;2;Acquisto di servizi;5;Utenze e canoni;4;Energia elettrica;09/02/2018
190;1;0;345,99;345,99;KUWAIT PETROLEUM ITALIA SPA;Z22175C158;ACCONTO Fatt.n. PJ00112691  del 31/01/2018 Carburante mese di GENNAIO 2018;09/02/2018;17030;0;42;1;Spese correnti;3;Acquisto di beni e servizi;1;Acquisto di beni;2;Altri beni di consumo;2;Carburanti, combustibili e lubrificanti;09/02/2018
191;1;0;140,02;140,02;KUWAIT PETROLEUM ITALIA SPA;Z22175C158;SALDO Fatt.n. PJ00112691  del 31/01/2018 Carburante mese di GENNAIO 2018;09/02/2018;17031;0;43;1;Spese correnti;3;Acquisto di beni e servizi;1;Acquisto di beni;2;Altri beni di consumo;2;Carburanti, combustibili e lubrificanti;09/02/2018
192;1;0;1.161,56;1.161,56;DIPENDENTI COMUNALI - STIPENDI; ;STIPENDI MESE DI: FEBBRAIO 18;13/02/2018;15000;0;1;1;Spese correnti;3;Acquisto di beni e servizi;2;Acquisto di servizi;1;Organi e incarichi istituzionali dell'amministrazione;1;Organi istituzionali dell'amministrazione - Indennità;13/02/2018
197;1;0;412,2;412,2;DIPENDENTI COMUNALI - STIPENDI; ;STIPENDI MESE DI: FEBBRAIO 18;13/02/2018;15520;0;417;1;Spese correnti;3;Acquisto di beni e servizi;2;Acquisto di servizi;99;Altri servizi;999;Altri servizi diversi n.a.c.;13/02/2018
198;1;0;284,21;284,21;DIPENDENTI COMUNALI - STIPENDI; ;STIPENDI MESE DI: FEBBRAIO 18;13/02/2018;15521;0;418;1;Spese correnti;3;Acquisto di beni e servizi;2;Acquisto di servizi;99;Altri servizi;999;Altri servizi diversi n.a.c.;13/02/2018
232;1;0;192;192;COMUNE DI SERNAGLIA DELLA BATTAGLIA; ;INTERVENTO OBBLIGATORIO FORMATIVO IN MATERIA DI ANTICORRUZIONE, AI SENSI L. 06-11-2012 N. 190, AL PERSONALE DIPENDENT;16/02/2018;15070;0;426;1;Spese correnti;3;Acquisto di beni e servizi;2;Acquisto di servizi;4;Acquisto di servizi per formazione e addestramento del personale dell'ente;999;Acquisto di servizi per altre spese per formazione e addestramento n.a.c.;16/02/2018
233;1;0;40;40;CENTRO STUDI BELLUNESE; ;SALDO Fatt.n. 38  del 02/02/2018 Corso novita' in materia di personale dott. Bertagna 2 feb. 2018;16/02/2018;15070;0;77;1;Spese correnti;3;Acquisto di beni e servizi;2;Acquisto di servizi;4;Acquisto di servizi per formazione e addestramento del personale dell'ente;999;Acquisto di servizi per altre spese per formazione e addestramento n.a.c.;16/02/2018
234;1;0;238,08;238,08;EURORISTORAZIONE Srl;67023000EE;SALDO Fatt.n. 18CPA00312  del 31/01/2018 Pasti INSEGNANTI mese di gennaio 2018 (n. 59 pasti);16/02/2018;16437;0;36;1;Spese correnti;3;Acquisto di beni e servizi;1;Acquisto di beni;2;Altri beni di consumo;999;Altri beni e materiali di consumo n.a.c.;16/02/2018
235;1;0;2.195,15;2.195,15;EURORISTORAZIONE Srl;67023000EE;SALDO Fatt.n. 18CPA00311  del 31/01/2018 Pasti ALUNNI mese di gennaio 2018 (n. 544 pasti);16/02/2018;15598;0;37;1;Spese correnti;3;Acquisto di beni e servizi;2;Acquisto di servizi;15;Contratti di servizio pubblico;6;Contratti di servizio per le mense scolastiche;16/02/2018
236;1;0;1.308,94;1.308,94;MANPOWER Srl;ZA21FD532E;SALDO Fatt.n. 2018-0002868  del 31/01/2018 Costo mensile, oneri amministrativi e previdenziali, bollo mese di GENNAIO 2018;16/02/2018;15653;0;327;1;Spese correnti;3;Acquisto di beni e servizi;2;Acquisto di servizi;12;Lavoro flessibile, quota LSU e acquisto di servizi da agenzie di lavoro interinale;1;Acquisto di servizi da agenzie di lavoro interinale;16/02/2018
238;1;0;1.009,18;1.009,18;CASA SERVICE di Granzotto Nicola;ZB019449AD;SALDO Fatt.n. 3/E  del 12/01/2018 Chiavi, targhette, lucchetti e materiale vario;16/02/2018;17191;0;61;1;Spese correnti;3;Acquisto di beni e servizi;1;Acquisto di beni;2;Altri beni di consumo;999;Altri beni e materiali di consumo n.a.c.;16/02/2018
239;1;0;26,84;26,84;DAL ZOTTO Srl; ;SALDO Fatt.n. 1/PA  del 31/01/2018 Pietrisco frantumato;16/02/2018;17230;0;65;1;Spese correnti;3;Acquisto di beni e servizi;1;Acquisto di beni;2;Altri beni di consumo;999;Altri beni e materiali di consumo n.a.c.;16/02/2018
240;1;0;355,59;355,59;SOLICUM Snc di Zuan Mario; ;SALDO Fatt.n. 12/E  del 31/01/2018 MANUTENZIONE IMPIANTO ELETTRICO ILLUMINAZIONE C/O PALESTRA;16/02/2018;16641;0;43;1;Spese correnti;3;Acquisto di beni e servizi;2;Acquisto di servizi;9;Manutenzione ordinaria e riparazioni;8;Manutenzione ordinaria e riparazioni di beni immobili;16/02/2018
241;1;0;122,85;122,85;SOLICUM Snc di Zuan Mario; ;SALDO Fatt.n. 11/E  del 31/01/2018 MANUTENZIONI IMPIANTI ELETTRICI C/O EDIFICI COMUNALI;16/02/2018;17015;0;54;1;Spese correnti;3;Acquisto di beni e servizi;2;Acquisto di servizi;9;Manutenzione ordinaria e riparazioni;8;Manutenzione ordinaria e riparazioni di beni immobili;16/02/2018
242;1;0;878,68;878,68;"FONDAZIONE ""CASA PER ANZIANI"" ONLUS"; ;SALDO Fatt.n. 8/PA  del 31/01/2018 Retta ricovero G.V. mese di GENNAIO 2018;16/02/2018;15970;0;68;1;Spese correnti;4;Trasferimenti correnti;1;Trasferimenti correnti a Amministrazioni Pubbliche;2;Trasferimenti correnti a Amministrazioni Locali;14;Trasferimenti correnti a Istituti di ricovero e cura a carattere scientifico pubblici n.a.f.;16/02/2018
243;1;0;49,41;49,41;ACLI SERVICE TREVISO Srl;Z640E5068D;SALDO Fatt.n. 015_PA  del 08/02/2018 Bonus energia (n. 6) e bonus gas (n. 3);16/02/2018;16010;0;309;1;Spese correnti;3;Acquisto di beni e servizi;2;Acquisto di servizi;99;Altri servizi;999;Altri servizi diversi n.a.c.;16/02/2018
244;1;0;200;200;MINISTERO DELLO SVILUPPO ECONOMICO; ;Pagamento pratica n, 5619/fo/SPI  Comune di Moriago della Battaglia - TV;16/02/2018;17015;0;54;1;Spese correnti;3;Acquisto di beni e servizi;2;Acquisto di servizi;9;Manutenzione ordinaria e riparazioni;8;Manutenzione ordinaria e riparazioni di beni immobili;16/02/2018
245;1;0;1.367,21;4.531,28;PRESTI SCAVI Snc di Presti Mirco e Fabrizio;ZCC22104B4;ACCONTO Fatt.n. 1/E  del 31/01/2018 Preparazione aree per installazione giochi in via XXV Aprile e via Papa Luciano;16/02/2018;17231;0;66;1;Spese correnti;3;Acquisto di beni e servizi;2;Acquisto di servizi;9;Manutenzione ordinaria e riparazioni;8;Manutenzione ordinaria e riparazioni di beni immobili;16/02/2018
245;2;0;3.164,07;4.531,28;PRESTI SCAVI Snc di Presti Mirco e Fabrizio;ZCC22104B4;SALDO Fatt.n. 2/E  del 31/01/2018 Interventi per sistemazione strade sterrate varie;16/02/2018;17231;0;66;1;Spese correnti;3;Acquisto di beni e servizi;2;Acquisto di servizi;9;Manutenzione ordinaria e riparazioni;8;Manutenzione ordinaria e riparazioni di beni immobili;16/02/2018
246;1;0;735,46;735,46;PRESTI SCAVI Snc di Presti Mirco e Fabrizio;ZCC22104B4;SALDO Fatt.n. 1/E  del 31/01/2018 Preparazione aree per installazione giochi in via XXV Aprile e via Papa Luciano;16/02/2018;17231;0;106;1;Spese correnti;3;Acquisto di beni e servizi;2;Acquisto di servizi;9;Manutenzione ordinaria e riparazioni;8;Manutenzione ordinaria e riparazioni di beni immobili;16/02/2018
247;1;0;793;793;GHIN ANTIFURTI S.R.L.;Z56216FC6D;SALDO Fatt.n. 09/EL  del 16/02/2018 AMPLIAMENTO IMPIANTO DI SICUREZZA SEDE MUNICIPALE PROVVISORIA;16/02/2018;17195;0;371;1;Spese correnti;3;Acquisto di beni e servizi;2;Acquisto di servizi;99;Altri servizi;999;Altri servizi diversi n.a.c.;16/02/2018
248;1;0;735,9;735,9;BARON PAOLO - STUDIO DI ARCHITTETTURA & DESIGN;Z131A6914C;SALDO Fatt.n. FATTPA 1_18  del 15/02/2018 Rilievo plani altimetrico via Calmentera;16/02/2018;20357;0;239;2;Spese in conto capitale;5;Altre spese in conto capitale;99;Altre spese in conto capitale n.a.c.;99;Altre spese in conto capitale n.a.c.;999;Altre spese in conto capitale n.a.c.;16/02/2018
250;1;0;1.679,82;3.394,53;SOLICUM Snc di Zuan Mario; ;SALDO Fatt.n. 13/E  del 31/01/2018 MANUTENZIONE STRAORDINARIA IMPIANTO ELETTRICO ILLUMINAZIONE PUBBLICA: AGGIUNTA N.1 LAMPADA INCROCIO TRA VIA CALMENTERA E VIA MONTEGRAPPA.;19/02/2018;17251;0;67;1;Spese correnti;3;Acquisto di beni e servizi;2;Acquisto di servizi;9;Manutenzione ordinaria e riparazioni;8;Manutenzione ordinaria e riparazioni di beni immobili;19/02/2018
250;2;0;1.714,71;3.394,53;SOLICUM Snc di Zuan Mario; ;ACCONTO Fatt.n. 14/E  del 31/01/2018 MANUTENZIONE IMPIANTO ELETTRICO ILLUMINAZIONE PUBBLICA;19/02/2018;17251;0;67;1;Spese correnti;3;Acquisto di beni e servizi;2;Acquisto di servizi;9;Manutenzione ordinaria e riparazioni;8;Manutenzione ordinaria e riparazioni di beni immobili;19/02/2018
251;1;0;1.245,61;1.245,61;SOLICUM Snc di Zuan Mario; ;SALDO Fatt.n. 14/E  del 31/01/2018 MANUTENZIONE IMPIANTO ELETTRICO ILLUMINAZIONE PUBBLICA;19/02/2018;17251;0;107;1;Spese correnti;3;Acquisto di beni e servizi;2;Acquisto di servizi;9;Manutenzione ordinaria e riparazioni;8;Manutenzione ordinaria e riparazioni di beni immobili;19/02/2018
252;1;0;286,94;286,94;REPRO Srl; ;SALDO Fatt.n. 000005-2018-6  del 31/01/2018 Guanti, bobina, batterie, viti...;19/02/2018;17191;0;61;1;Spese correnti;3;Acquisto di beni e servizi;1;Acquisto di beni;2;Altri beni di consumo;999;Altri beni e materiali di consumo n.a.c.;19/02/2018
253;1;0;529,09;529,09;GRUPPO MANARA SPA;Z3921CE165;SALDO Fatt.n. 1/PA  del 31/01/2018 Pali torniti e mezzi pali;19/02/2018;17230;0;65;1;Spese correnti;3;Acquisto di beni e servizi;1;Acquisto di beni;2;Altri beni di consumo;999;Altri beni e materiali di consumo n.a.c.;19/02/2018
254;1;0;788,94;788,94;ASCOTRADE Spa (metano); ;SALDO Fatt.n. 129776  del 15/02/2018 Metano SALA POLIFUNZIONALE mese di gennaio 2018;19/02/2018;16771;0;114;1;Spese correnti;3;Acquisto di beni e servizi;2;Acquisto di servizi;5;Utenze e canoni;6;Gas;19/02/2018
255;1;0;853,88;853,88;ASCOTRADE Spa (metano); ;SALDO Fatt.n. 132295  del 15/02/2018 Metano MUNICIPIO mese di gennaio 2018;19/02/2018;16521;0;109;1;Spese correnti;3;Acquisto di beni e servizi;2;Acquisto di servizi;5;Utenze e canoni;4;Energia elettrica;19/02/2018
256;1;0;213,6;213,6;DE BIASI COSTRUZIONI Srl;Z01EA3C64;"SALDO Fatt.n. 06  del 30/11/2017 Rafforzamento locale centro infanzia ""Il Sorriso"" per prevenzione del rischio sismico - STATO FINALE";19/02/2018;20320;0;224;2;Spese in conto capitale;2;Investimenti fissi lordi e acquisto di terreni;3;Beni immateriali;99;Spese di investimento per beni immateriali n.a.c.;1;Spese di investimento per beni immateriali n.a.c.;19/02/2018
259;1;0;162,43;162,43;CONSORZIO BIM PIAVE DI TREVISO; ;Quota INTERESSI  mutui Consorzio BIM Piave in scadenza al 31.12.2017 - addebito preautorizzato a copertura parziale bolletta nr. 2 del 9.1.2018.;19/02/2018;16400;0;241;1;Spese correnti;7;Interessi passivi;5;Interessi su Mutui e altri finanziamenti a medio lungo termine;5;Interessi passivi su mutui e altri finanziamenti a medio lungo termine ad altri soggetti;999;Interessi passivi su mutui e altri finanziamenti a medio lungo termine ad altri soggetti;19/02/2018
260;1;0;262,61;262,61;CONSORZIO BIM PIAVE DI TREVISO; ;Quota INTERESSI  mutui Consorzio BIM Piave in scadenza al 31.12.2017 - addebito preautorizzato a copertura parziale bolletta nr. 2 del 9.1.2018.;19/02/2018;16410;0;242;1;Spese correnti;7;Interessi passivi;5;Interessi su Mutui e altri finanziamenti a medio lungo termine;5;Interessi passivi su mutui e altri finanziamenti a medio lungo termine ad altri soggetti;999;Interessi passivi su mutui e altri finanziamenti a medio lungo termine ad altri soggetti;19/02/2018
261;1;0;768,18;768,18;CONSORZIO BIM PIAVE DI TREVISO; ;Quota INTERESSI  mutui Consorzio BIM Piave in scadenza al 31.12.2017 - addebito preautorizzato a copertura parziale bolletta nr. 2 del 9.1.2018.;19/02/2018;16455;0;243;1;Spese correnti;7;Interessi passivi;5;Interessi su Mutui e altri finanziamenti a medio lungo termine;5;Interessi passivi su mutui e altri finanziamenti a medio lungo termine ad altri soggetti;999;Interessi passivi su mutui e altri finanziamenti a medio lungo termine ad altri soggetti;19/02/2018
262;1;0;480,63;480,63;CONSORZIO BIM PIAVE DI TREVISO; ;Quota INTERESSI  mutui Consorzio BIM Piave in scadenza al 31.12.2017 - addebito preautorizzato a copertura parziale bolletta nr. 2 del 9.1.2018.;19/02/2018;16440;0;244;1;Spese correnti;7;Interessi passivi;5;Interessi su Mutui e altri finanziamenti a medio lungo termine;5;Interessi passivi su mutui e altri finanziamenti a medio lungo termine ad altri soggetti;999;Interessi passivi su mutui e altri finanziamenti a medio lungo termine ad altri soggetti;19/02/2018
263;1;0;2.188,68;2.188,68;BM&A Studio Legale;Z1A1F6A4DD;SALDO Fatt.n. 5/2018/P  del 06/02/2018 Supporto al RUP per opera di messa in sicurezza sismica del Municipio di Moriago;22/02/2018;15090;0;439;1;Spese correnti;3;Acquisto di beni e servizi;2;Acquisto di servizi;11;Prestazioni professionali e specialistiche;6;Patrocinio legale;22/02/2018
266;1;0;145;2.736,00;BOTTAREL LAURA; ;LIQUIDAZIONE ONORARI AI PRESIDENTI, SEGRETARI E SCRUTATORI DEI SEGGI PER L'ELEZIONE DELLA CAMERA DEI DEPUTATI E DEL SENATO DELLA REPUBBLICA DEL 04-03-2018 - DETERMINAZIONE N. 59 DEL 28.02.2018.;02/03/2018;15036;0;123;1;Spese correnti;3;Acquisto di beni e servizi;2;Acquisto di servizi;99;Altri servizi;4;Altre spese per consultazioni elettorali dell'ente;02/03/2018
266;2;0;145;2.736,00;BRESSAN VALENTINA; ;LIQUIDAZIONE ONORARI AI PRESIDENTI, SEGRETARI E SCRUTATORI DEI SEGGI PER L'ELEZIONE DELLA CAMERA DEI DEPUTATI E DEL SENATO DELLA REPUBBLICA DEL 04-03-2018 - DETERMINAZIONE N. 59 DEL 28.02.2018.;02/03/2018;15036;0;123;1;Spese correnti;3;Acquisto di beni e servizi;2;Acquisto di servizi;99;Altri servizi;4;Altre spese per consultazioni elettorali dell'ente;02/03/2018
266;3;0;145;2.736,00;COLLODET GIUSEPPE; ;LIQUIDAZIONE ONORARI AI PRESIDENTI, SEGRETARI E SCRUTATORI DEI SEGGI PER L'ELEZIONE DELLA CAMERA DEI DEPUTATI E DEL SENATO DELLA REPUBBLICA DEL 04-03-2018 - DETERMINAZIONE N. 59 DEL 28.02.2018.;02/03/2018;15036;0;123;1;Spese correnti;3;Acquisto di beni e servizi;2;Acquisto di servizi;99;Altri servizi;4;Altre spese per consultazioni elettorali dell'ente;02/03/2018
266;4;0;145;2.736,00;CORAZZIN STEFANO; ;LIQUIDAZIONE ONORARI AI PRESIDENTI, SEGRETARI E SCRUTATORI DEI SEGGI PER L'ELEZIONE DELLA CAMERA DEI DEPUTATI E DEL SENATO DELLA REPUBBLICA DEL 04-03-2018 - DETERMINAZIONE N. 59 DEL 28.02.2018.;02/03/2018;15036;0;123;1;Spese correnti;3;Acquisto di beni e servizi;2;Acquisto di servizi;99;Altri servizi;4;Altre spese per consultazioni elettorali dell'ente;02/03/2018
266;5;0;145;2.736,00;DAL CORTIVO SARA; ;LIQUIDAZIONE ONORARI AI PRESIDENTI, SEGRETARI E SCRUTATORI DEI SEGGI PER L'ELEZIONE DELLA CAMERA DEI DEPUTATI E DEL SENATO DELLA REPUBBLICA DEL 04-03-2018 - DETERMINAZIONE N. 59 DEL 28.02.2018.;02/03/2018;15036;0;123;1;Spese correnti;3;Acquisto di beni e servizi;2;Acquisto di servizi;99;Altri servizi;4;Altre spese per consultazioni elettorali dell'ente;02/03/2018
266;6;0;145;2.736,00;DAL GALLO FABIO; ;LIQUIDAZIONE ONORARI AI PRESIDENTI, SEGRETARI E SCRUTATORI DEI SEGGI PER L'ELEZIONE DELLA CAMERA DEI DEPUTATI E DEL SENATO DELLA REPUBBLICA DEL 04-03-2018 - DETERMINAZIONE N. 59 DEL 28.02.2018.;02/03/2018;15036;0;123;1;Spese correnti;3;Acquisto di beni e servizi;2;Acquisto di servizi;99;Altri servizi;4;Altre spese per consultazioni elettorali dell'ente;02/03/2018
266;7;0;145;2.736,00;DE BIASI MICHELA; ;LIQUIDAZIONE ONORARI AI PRESIDENTI, SEGRETARI E SCRUTATORI DEI SEGGI PER L'ELEZIONE DELLA CAMERA DEI DEPUTATI E DEL SENATO DELLA REPUBBLICA DEL 04-03-2018 - DETERMINAZIONE N. 59 DEL 28.02.2018.;02/03/2018;15036;0;123;1;Spese correnti;3;Acquisto di beni e servizi;2;Acquisto di servizi;99;Altri servizi;4;Altre spese per consultazioni elettorali dell'ente;02/03/2018
266;8;0;145;2.736,00;DE FAVERI CLARA; ;LIQUIDAZIONE ONORARI AI PRESIDENTI, SEGRETARI E SCRUTATORI DEI SEGGI PER L'ELEZIONE DELLA CAMERA DEI DEPUTATI E DEL SENATO DELLA REPUBBLICA DEL 04-03-2018 - DETERMINAZIONE N. 59 DEL 28.02.2018.;02/03/2018;15036;0;123;1;Spese correnti;3;Acquisto di beni e servizi;2;Acquisto di servizi;99;Altri servizi;4;Altre spese per consultazioni elettorali dell'ente;02/03/2018
266;9;0;145;2.736,00;DEON ORIANA; ;LIQUIDAZIONE ONORARI AI PRESIDENTI, SEGRETARI E SCRUTATORI DEI SEGGI PER L'ELEZIONE DELLA CAMERA DEI DEPUTATI E DEL SENATO DELLA REPUBBLICA DEL 04-03-2018 - DETERMINAZIONE N. 59 DEL 28.02.2018.;02/03/2018;15036;0;123;1;Spese correnti;3;Acquisto di beni e servizi;2;Acquisto di servizi;99;Altri servizi;4;Altre spese per consultazioni elettorali dell'ente;02/03/2018
266;10;0;145;2.736,00;FREGOLENT GIULIANO; ;LIQUIDAZIONE ONORARI AI PRESIDENTI, SEGRETARI E SCRUTATORI DEI SEGGI PER L'ELEZIONE DELLA CAMERA DEI DEPUTATI E DEL SENATO DELLA REPUBBLICA DEL 04-03-2018 - DETERMINAZIONE N. 59 DEL 28.02.2018.;02/03/2018;15036;0;123;1;Spese correnti;3;Acquisto di beni e servizi;2;Acquisto di servizi;99;Altri servizi;4;Altre spese per consultazioni elettorali dell'ente;02/03/2018
266;11;0;145;2.736,00;FREGOLENT KARIN; ;LIQUIDAZIONE ONORARI AI PRESIDENTI, SEGRETARI E SCRUTATORI DEI SEGGI PER L'ELEZIONE DELLA CAMERA DEI DEPUTATI E DEL SENATO DELLA REPUBBLICA DEL 04-03-2018 - DETERMINAZIONE N. 59 DEL 28.02.2018.;02/03/2018;15036;0;123;1;Spese correnti;3;Acquisto di beni e servizi;2;Acquisto di servizi;99;Altri servizi;4;Altre spese per consultazioni elettorali dell'ente;02/03/2018
266;12;0;145;2.736,00;GIOTTO IRENE; ;LIQUIDAZIONE ONORARI AI PRESIDENTI, SEGRETARI E SCRUTATORI DEI SEGGI PER L'ELEZIONE DELLA CAMERA DEI DEPUTATI E DEL SENATO DELLA REPUBBLICA DEL 04-03-2018 - DETERMINAZIONE N. 59 DEL 28.02.2018.;02/03/2018;15036;0;123;1;Spese correnti;3;Acquisto di beni e servizi;2;Acquisto di servizi;99;Altri servizi;4;Altre spese per consultazioni elettorali dell'ente;02/03/2018
266;13;0;145;2.736,00;PILLON GIANFRANCO; ;LIQUIDAZIONE ONORARI AI PRESIDENTI, SEGRETARI E SCRUTATORI DEI SEGGI PER L'ELEZIONE DELLA CAMERA DEI DEPUTATI E DEL SENATO DELLA REPUBBLICA DEL 04-03-2018 - DETERMINAZIONE N. 59 DEL 28.02.2018.;02/03/2018;15036;0;123;1;Spese correnti;3;Acquisto di beni e servizi;2;Acquisto di servizi;99;Altri servizi;4;Altre spese per consultazioni elettorali dell'ente;02/03/2018
266;14;0;187;2.736,00;PILLON NICOLA; ;LIQUIDAZIONE ONORARI AI PRESIDENTI, SEGRETARI E SCRUTATORI DEI SEGGI PER L'ELEZIONE DELLA CAMERA DEI DEPUTATI E DEL SENATO DELLA REPUBBLICA DEL 04-03-2018 - DETERMINAZIONE N. 59 DEL 28.02.2018.;02/03/2018;15036;0;123;1;Spese correnti;3;Acquisto di beni e servizi;2;Acquisto di servizi;99;Altri servizi;4;Altre spese per consultazioni elettorali dell'ente;02/03/2018
266;15;0;187;2.736,00;RUGGERI EZIO; ;LIQUIDAZIONE ONORARI AI PRESIDENTI, SEGRETARI E SCRUTATORI DEI SEGGI PER L'ELEZIONE DELLA CAMERA DEI DEPUTATI E DEL SENATO DELLA REPUBBLICA DEL 04-03-2018 - DETERMINAZIONE N. 59 DEL 28.02.2018.;02/03/2018;15036;0;123;1;Spese correnti;3;Acquisto di beni e servizi;2;Acquisto di servizi;99;Altri servizi;4;Altre spese per consultazioni elettorali dell'ente;02/03/2018
266;16;0;145;2.736,00;TRINCA ANNALISA; ;LIQUIDAZIONE ONORARI AI PRESIDENTI, SEGRETARI E SCRUTATORI DEI SEGGI PER L'ELEZIONE DELLA CAMERA DEI DEPUTATI E DEL SENATO DELLA REPUBBLICA DEL 04-03-2018 - DETERMINAZIONE N. 59 DEL 28.02.2018.;02/03/2018;15036;0;123;1;Spese correnti;3;Acquisto di beni e servizi;2;Acquisto di servizi;99;Altri servizi;4;Altre spese per consultazioni elettorali dell'ente;02/03/2018
266;17;0;187;2.736,00;TRINCA AUGUSTO; ;LIQUIDAZIONE ONORARI AI PRESIDENTI, SEGRETARI E SCRUTATORI DEI SEGGI PER L'ELEZIONE DELLA CAMERA DEI DEPUTATI E DEL SENATO DELLA REPUBBLICA DEL 04-03-2018 - DETERMINAZIONE N. 59 DEL 28.02.2018.;02/03/2018;15036;0;123;1;Spese correnti;3;Acquisto di beni e servizi;2;Acquisto di servizi;99;Altri servizi;4;Altre spese per consultazioni elettorali dell'ente;02/03/2018
266;18;0;145;2.736,00;ZALAMENA IRENE NOEMI; ;LIQUIDAZIONE ONORARI AI PRESIDENTI, SEGRETARI E SCRUTATORI DEI SEGGI PER L'ELEZIONE DELLA CAMERA DEI DEPUTATI E DEL SENATO DELLA REPUBBLICA DEL 04-03-2018 - DETERMINAZIONE N. 59 DEL 28.02.2018.;02/03/2018;15036;0;123;1;Spese correnti;3;Acquisto di beni e servizi;2;Acquisto di servizi;99;Altri servizi;4;Altre spese per consultazioni elettorali dell'ente;02/03/2018
267;1;0;1.836,00;4.642,00;INDUSTRIE ARREDO S.R.L.; ;ACCONTO Fatt.n. 49  del 25/01/2018 AFFITTO DAL 10/02/18 AL 9/03/18;07/03/2018;17194;0;293;1;Spese correnti;3;Acquisto di beni e servizi;2;Acquisto di servizi;7;Utilizzo di beni di terzi;1;Locazione di beni immobili;07/03/2018
267;2;0;2.806,00;4.642,00;INDUSTRIE ARREDO S.R.L.; ;SALDO Fatt.n. 1253  del 27/12/2017 AFFITTO DAL 10/01/18 AL 9/02/18;07/03/2018;17194;0;293;1;Spese correnti;3;Acquisto di beni e servizi;2;Acquisto di servizi;7;Utilizzo di beni di terzi;1;Locazione di beni immobili;07/03/2018
268;1;0;970;970;INDUSTRIE ARREDO S.R.L.; ;SALDO Fatt.n. 49  del 25/01/2018 AFFITTO DAL 10/02/18 AL 9/03/18;07/03/2018;17194;0;78;1;Spese correnti;3;Acquisto di beni e servizi;2;Acquisto di servizi;7;Utilizzo di beni di terzi;1;Locazione di beni immobili;07/03/2018
269;1;0;318;318;IMPRESA EDILE RIZZETTO RUDI;ZDD2035AA7;SALDO Fatt.n. FATTPA 2_18  del 20/02/2018 Tumulazione Frezza Biagio in tomba di famiglia;09/03/2018;16932;0;51;1;Spese correnti;3;Acquisto di beni e servizi;2;Acquisto di servizi;99;Altri servizi;999;Altri servizi diversi n.a.c.;09/03/2018
270;1;0;2.535,16;2.535,16;IMPRESA EDILE RIZZETTO RUDI;ZDD2035AA7;SALDO Fatt.n. FATTPA 1_18  del 20/02/2018 Manutenzione marciapiede e pozzetti stradali;09/03/2018;17231;0;106;1;Spese correnti;3;Acquisto di beni e servizi;2;Acquisto di servizi;9;Manutenzione ordinaria e riparazioni;8;Manutenzione ordinaria e riparazioni di beni immobili;09/03/2018
271;1;0;39,49;39,49;SICURITALIA S.P.A.;Z391F0B0BF;SALDO Fatt.n. 9117000625  del 23/02/2018 Servizio di pronto intervento presso la sede municipale temporanea;09/03/2018;15181;0;215;1;Spese correnti;3;Acquisto di beni e servizi;2;Acquisto di servizi;99;Altri servizi;999;Altri servizi diversi n.a.c.;09/03/2018
272;1;0;1.012,82;1.012,82;ASCOTRADE Spa (metano); ;SALDO Fatt.n. 199394  del 22/02/2018 Metano IMPIANTI SPORTIVI periodo dicembre 2017 - febbraio 2018;09/03/2018;17011;0;122;1;Spese correnti;3;Acquisto di beni e servizi;2;Acquisto di servizi;5;Utenze e canoni;6;Gas;09/03/2018
273;1;0;19,23;380,9;ASCOTRADE Spa (metano); ;SALDO Fatt.n. 223917  del 22/02/2018 Metano MUSICHIERE 2B periodo dicembre 2017 - febbraio 2018;09/03/2018;16676;0;119;1;Spese correnti;3;Acquisto di beni e servizi;2;Acquisto di servizi;5;Utenze e canoni;6;Gas;09/03/2018
273;2;0;361,67;380,9;ASCOTRADE Spa (metano); ;SALDO Fatt.n. 223918  del 22/02/2018 Metano MUSICHIERE periodo dicembre 2017 - febbraio 2018;09/03/2018;16676;0;119;1;Spese correnti;3;Acquisto di beni e servizi;2;Acquisto di servizi;5;Utenze e canoni;6;Gas;09/03/2018
274;1;0;84,91;84,91;EDILCEMENTI SRL UNIPERSONALE; ;SALDO Fatt.n. 1/A  del 15/02/2018 Asfalto a freddo e guanto ninja;09/03/2018;17230;0;105;1;Spese correnti;3;Acquisto di beni e servizi;1;Acquisto di beni;2;Altri beni di consumo;999;Altri beni e materiali di consumo n.a.c.;09/03/2018
275;1;0;2.420,48;2.420,48;HALLEY VENETO Srl;Z8721215E3;SALDO Fatt.n. 1/180013  del 17/01/2018 Realizzazione sito web comunale;09/03/2018;17341;0;363;1;Spese correnti;3;Acquisto di beni e servizi;2;Acquisto di servizi;5;Utenze e canoni;999;Utenze e canoni per altri servizi n.a.c.;09/03/2018
276;1;0;558,76;558,76;GRAFICHE E. GASPARI Srl;ZB12242C32;SALDO Fatt.n. 03241  del 27/02/2018 Tabelloni 200x200 cm;09/03/2018;15035;0;121;1;Spese correnti;3;Acquisto di beni e servizi;1;Acquisto di beni;2;Altri beni di consumo;10;Beni per consultazioni elettorali;09/03/2018
277;1;0;72,06;72,06;CENTRO STUDI AMMINISTRATIVI DELLA MARCA TREVIGIANA; ;ACCONTO Fatt.n. 62/2018  del 07/02/2018 Espletamento pratiche di pensione;09/03/2018;15183;0;243;1;Spese correnti;3;Acquisto di beni e servizi;2;Acquisto di servizi;99;Altri servizi;999;Altri servizi diversi n.a.c.;09/03/2018
278;1;0;470,84;470,84;CENTRO STUDI AMMINISTRATIVI DELLA MARCA TREVIGIANA; ;SALDO Fatt.n. 62/2018  del 07/02/2018 Espletamento pratiche di pensione;09/03/2018;15183;0;416;1;Spese correnti;3;Acquisto di beni e servizi;2;Acquisto di servizi;99;Altri servizi;999;Altri servizi diversi n.a.c.;09/03/2018
279;1;0;530,7;530,7;DUEFFE SPORT Sas di Faggin Francesca & C.;ZD82273E42;SALDO Fatt.n. 403  del 23/02/2018 Bandiere varie;09/03/2018;15018;0;420;1;Spese correnti;3;Acquisto di beni e servizi;1;Acquisto di beni;2;Altri beni di consumo;999;Altri beni e materiali di consumo n.a.c.;09/03/2018
280;1;0;165,74;165,74;PITNEY BOWES ITALIA Srl;Z54223B501;SALDO Fatt.n. 000592  del 15/02/2018 Cartucce non fluorescenti blue;09/03/2018;15018;0;420;1;Spese correnti;3;Acquisto di beni e servizi;1;Acquisto di beni;2;Altri beni di consumo;999;Altri beni e materiali di consumo n.a.c.;09/03/2018
281;1;0;-0,01;195,2;MAGGIOLI SPA;ZEC22096B1;SALDO Fatt.n. 0002108980  del 28/02/2018 Raccolta di tutta la modulistica necessaria allo svolgimento delle elezioni politiche del 04.3.2018 - parte prima;09/03/2018;15035;0;66;1;Spese correnti;3;Acquisto di beni e servizi;1;Acquisto di beni;2;Altri beni di consumo;10;Beni per consultazioni elettorali;09/03/2018
281;2;0;86,17;195,2;MAGGIOLI SPA;ZEC22096B1;SALDO Fatt.n. 0002108980  del 28/02/2018 Raccolta di tutta la modulistica necessaria allo svolgimento delle elezioni politiche del 04.3.2018 - parte prima;09/03/2018;15035;0;66;1;Spese correnti;3;Acquisto di beni e servizi;1;Acquisto di beni;2;Altri beni di consumo;10;Beni per consultazioni elettorali;09/03/2018
281;3;0;109,04;195,2;MAGGIOLI SPA;ZEC22096B1;SALDO Fatt.n. 0002108981  del 28/02/2018 Cartella degli stampati per l'arredo del seggio eleettorale e per le comunicazioni della sezione e Raccolta di tutta la modulistica necessaria allo svolgimento delle elezioni politiche del 04.3.2018 - formular;09/03/2018;15035;0;66;1;Spese correnti;3;Acquisto di beni e servizi;1;Acquisto di beni;2;Altri beni di consumo;10;Beni per consultazioni elettorali;09/03/2018
282;1;0;58,56;58,56;MAGGIOLI SPA;ZC82250B14;SALDO Fatt.n. 0002110001  del 28/02/2018 Cartelle fascicolazione atti stato civile 50 nascita, 50 matrimonio, 50 morte e 50 cittadinanza;09/03/2018;15130;0;419;1;Spese correnti;3;Acquisto di beni e servizi;1;Acquisto di beni;2;Altri beni di consumo;1;Carta, cancelleria e stampati;09/03/2018
283;1;0;5.473,12;5.473,12;SOLIGO VIAGGI Sas;6318150E4E;SALDO Fatt.n. PA/031  del 28/02/2018 Trasporto scolastico mese di FEBBRAIO 2018;09/03/2018;15861;0;67;1;Spese correnti;3;Acquisto di beni e servizi;2;Acquisto di servizi;15;Contratti di servizio pubblico;2;Contratti di servizio di trasporto scolastico;09/03/2018
284;1;0;-110,18;6,48;ALTO TREVIGIANO SERVIZI Srl (servizio idrico); ;SALDO Fatt.n. M7201800000891  del 23/02/2018 Consumi servizio idrico SPOGLIATOI periodo nov 2017/gen 2018 - cod. utenza 27000100-01-004;09/03/2018;16981;0;52;1;Spese correnti;3;Acquisto di beni e servizi;2;Acquisto di servizi;5;Utenze e canoni;5;Acqua;09/03/2018
284;2;0;6,48;6,48;ALTO TREVIGIANO SERVIZI Srl (servizio idrico); ;SALDO Fatt.n. M7201800000892  del 23/02/2018 Consumi servizio idrico STADIO periodo nov 2017/gen 2018 - cod. utenza 27000100-01-005;09/03/2018;16981;0;52;1;Spese correnti;3;Acquisto di beni e servizi;2;Acquisto di servizi;5;Utenze e canoni;5;Acqua;09/03/2018
284;3;0;110,18;6,48;ALTO TREVIGIANO SERVIZI Srl (servizio idrico); ;ACCONTO Fatt.n. M7201800000893  del 23/02/2018 Consumi servizio idrico SC. ELEMENTARE e PALESTRA periodo nov 2017/gen 2018 - cod. utenza 27000100-01-003;09/03/2018;16981;0;52;1;Spese correnti;3;Acquisto di beni e servizi;2;Acquisto di servizi;5;Utenze e canoni;5;Acqua;09/03/2018
285;1;0;6,48;378,08;ALTO TREVIGIANO SERVIZI Srl (servizio idrico); ;SALDO Fatt.n. M7201800000895  del 23/02/2018 Consumi servizio idrico MUNICIPIO periodo nov 2017/gen 2018 - cod. utenza 27000100-01-002;09/03/2018;16892;0;46;1;Spese correnti;3;Acquisto di beni e servizi;2;Acquisto di servizi;5;Utenze e canoni;5;Acqua;09/03/2018
285;2;0;8,51;378,08;ALTO TREVIGIANO SERVIZI Srl (servizio idrico); ;SALDO Fatt.n. M7201800000894  del 23/02/2018 Consumi servizio idrico AMBULATORI MORIAGO periodo nov 2017/gen 2018 - cod. utenza 27000100-01-001;09/03/2018;16892;0;46;1;Spese correnti;3;Acquisto di beni e servizi;2;Acquisto di servizi;5;Utenze e canoni;5;Acqua;09/03/2018
285;3;0;10,45;378,08;ALTO TREVIGIANO SERVIZI Srl (servizio idrico); ;SALDO Fatt.n. M7201800000912  del 23/02/2018 Consumi servizio idrico MUSICHIERE periodo nov 2017/gen 2018 - cod. utenza 27000100-01-031;09/03/2018;16892;0;46;1;Spese correnti;3;Acquisto di beni e servizi;2;Acquisto di servizi;5;Utenze e canoni;5;Acqua;09/03/2018
285;4;0;30,59;378,08;ALTO TREVIGIANO SERVIZI Srl (servizio idrico); ;SALDO Fatt.n. M7201800000915  del 23/02/2018 Consumi servizio idrico ISOLA DEI MORTI periodo nov 2017/gen 2018 - cod. utenza 27000100-01-023;09/03/2018;16892;0;46;1;Spese correnti;3;Acquisto di beni e servizi;2;Acquisto di servizi;5;Utenze e canoni;5;Acqua;09/03/2018
285;5;0;98,35;378,08;ALTO TREVIGIANO SERVIZI Srl (servizio idrico); ;SALDO Fatt.n. M7201800000893  del 23/02/2018 Consumi servizio idrico SC. ELEMENTARE e PALESTRA periodo nov 2017/gen 2018 - cod. utenza 27000100-01-003;09/03/2018;16892;0;46;1;Spese correnti;3;Acquisto di beni e servizi;2;Acquisto di servizi;5;Utenze e canoni;5;Acqua;09/03/2018
285;6;0;105,48;378,08;ALTO TREVIGIANO SERVIZI Srl (servizio idrico); ;SALDO Fatt.n. M7201800000896  del 23/02/2018 Consumi servizio idrico MUSICHIERE (antincendio) periodo nov 2017/gen 2018 - cod. utenza 27000100-01-030;09/03/2018;16892;0;46;1;Spese correnti;3;Acquisto di beni e servizi;2;Acquisto di servizi;5;Utenze e canoni;5;Acqua;09/03/2018
285;7;0;118,22;378,08;ALTO TREVIGIANO SERVIZI Srl (servizio idrico); ;SALDO Fatt.n. M7201800000917  del 23/02/2018 Consumi servizio idrico MUNICIPIO MOSNIGO periodo nov 2017/gen 2018 - cod. utenza 27000100-01-033;09/03/2018;16892;0;46;1;Spese correnti;3;Acquisto di beni e servizi;2;Acquisto di servizi;5;Utenze e canoni;5;Acqua;09/03/2018
286;1;0;6,27;1.081,65;ALTO TREVIGIANO SERVIZI Srl (servizio idrico); ;SALDO Fatt.n. M7201800000906  del 23/02/2018 Consumi servizio idrico VIA MONTE CESEN periodo nov 2017/gen 2018 - cod. utenza 27000100-01-021;09/03/2018;16893;0;47;1;Spese correnti;3;Acquisto di beni e servizi;2;Acquisto di servizi;5;Utenze e canoni;5;Acqua;09/03/2018
286;2;0;6,34;1.081,65;ALTO TREVIGIANO SERVIZI Srl (servizio idrico); ;SALDO Fatt.n. M7201800000905  del 23/02/2018 Consumi servizio idrico VIA ALDO MORO periodo nov 2017/gen 2018 - cod. utenza 27000100-01-013;09/03/2018;16893;0;47;1;Spese correnti;3;Acquisto di beni e servizi;2;Acquisto di servizi;5;Utenze e canoni;5;Acqua;09/03/2018
286;3;0;6,47;1.081,65;ALTO TREVIGIANO SERVIZI Srl (servizio idrico); ;SALDO Fatt.n. M7201800000897  del 23/02/2018 Consumi servizio idrico VIA RABOSO periodo nov 2017/gen 2018 - cod. utenza 27000100-01-014;09/03/2018;16893;0;47;1;Spese correnti;3;Acquisto di beni e servizi;2;Acquisto di servizi;5;Utenze e canoni;5;Acqua;09/03/2018
286;4;0;6,48;1.081,65;ALTO TREVIGIANO SERVIZI Srl (servizio idrico); ;SALDO Fatt.n. M7201800000911  del 23/02/2018 Consumi servizio idrico P.LE CARLO CONTE periodo nov 2017/gen 2018 - cod. utenza 27000100-01-027;09/03/2018;16893;0;47;1;Spese correnti;3;Acquisto di beni e servizi;2;Acquisto di servizi;5;Utenze e canoni;5;Acqua;09/03/2018
286;5;0;6,48;1.081,65;ALTO TREVIGIANO SERVIZI Srl (servizio idrico); ;SALDO Fatt.n. M7201800000913  del 23/02/2018 Consumi servizio idrico VIA DEI ZANIN periodo nov 2017/gen 2018 - cod. utenza 27000100-01-007;09/03/2018;16893;0;47;1;Spese correnti;3;Acquisto di beni e servizi;2;Acquisto di servizi;5;Utenze e canoni;5;Acqua;09/03/2018
286;6;0;6,48;1.081,65;ALTO TREVIGIANO SERVIZI Srl (servizio idrico); ;SALDO Fatt.n. M7201800000904  del 23/02/2018 Consumi servizio idrico VIA BROLET periodo nov 2017/gen 2018 - cod. utenza 27000100-01-026;09/03/2018;16893;0;47;1;Spese correnti;3;Acquisto di beni e servizi;2;Acquisto di servizi;5;Utenze e canoni;5;Acqua;09/03/2018
286;7;0;6,48;1.081,65;ALTO TREVIGIANO SERVIZI Srl (servizio idrico); ;SALDO Fatt.n. M7201800000909  del 23/02/2018 Consumi servizio idrico VIA SAN GAETANO periodo nov 2017/gen 2018 - cod. utenza 27000100-01-012;09/03/2018;16893;0;47;1;Spese correnti;3;Acquisto di beni e servizi;2;Acquisto di servizi;5;Utenze e canoni;5;Acqua;09/03/2018
286;8;0;6,48;1.081,65;ALTO TREVIGIANO SERVIZI Srl (servizio idrico); ;SALDO Fatt.n. M7201800000907  del 23/02/2018 Consumi servizio idrico P.ZA DELLA VITTORIA periodo nov 2017/gen 2018 - cod. utenza 27000100-01-010;09/03/2018;16893;0;47;1;Spese correnti;3;Acquisto di beni e servizi;2;Acquisto di servizi;5;Utenze e canoni;5;Acqua;09/03/2018
286;9;0;6,48;1.081,65;ALTO TREVIGIANO SERVIZI Srl (servizio idrico); ;SALDO Fatt.n. M7201800000916  del 23/02/2018 Consumi servizio idrico VIA CROCE periodo nov 2017/gen 2018 - cod. utenza 27000100-01-024;09/03/2018;16893;0;47;1;Spese correnti;3;Acquisto di beni e servizi;2;Acquisto di servizi;5;Utenze e canoni;5;Acqua;09/03/2018
286;10;0;6,48;1.081,65;ALTO TREVIGIANO SERVIZI Srl (servizio idrico); ;SALDO Fatt.n. M7201800000900  del 23/02/2018 Consumi servizio idrico VIA CHIESA periodo nov 2017/gen 2018 - cod. utenza 27000100-01-017;09/03/2018;16893;0;47;1;Spese correnti;3;Acquisto di beni e servizi;2;Acquisto di servizi;5;Utenze e canoni;5;Acqua;09/03/2018
286;11;0;6,48;1.081,65;ALTO TREVIGIANO SERVIZI Srl (servizio idrico); ;SALDO Fatt.n. M7201800000901  del 23/02/2018 Consumi servizio idrico VIA PAPA GIOVANNI XXIII periodo nov 2017/gen 2018 - cod. utenza 27000100-01-018;09/03/2018;16893;0;47;1;Spese correnti;3;Acquisto di beni e servizi;2;Acquisto di servizi;5;Utenze e canoni;5;Acqua;09/03/2018
286;12;0;7,44;1.081,65;ALTO TREVIGIANO SERVIZI Srl (servizio idrico); ;SALDO Fatt.n. M7201800000898  del 23/02/2018 Consumi servizio idrico VIA CHIESA periodo nov 2017/gen 2018 - cod. utenza 27000100-01-015;09/03/2018;16893;0;47;1;Spese correnti;3;Acquisto di beni e servizi;2;Acquisto di servizi;5;Utenze e canoni;5;Acqua;09/03/2018
286;13;0;7,45;1.081,65;ALTO TREVIGIANO SERVIZI Srl (servizio idrico); ;SALDO Fatt.n. M7201800000910  del 23/02/2018 Consumi servizio idrico VIA XXV APRILE periodo nov 2017/gen 2018 - cod. utenza 27000100-01-025;09/03/2018;16893;0;47;1;Spese correnti;3;Acquisto di beni e servizi;2;Acquisto di servizi;5;Utenze e canoni;5;Acqua;09/03/2018
286;14;0;12,28;1.081,65;ALTO TREVIGIANO SERVIZI Srl (servizio idrico); ;SALDO Fatt.n. M7201800000888  del 23/02/2018 Consumi servizio idrico DEPURAZIONE VIA RABOSO periodo nov 2017/gen 2018 - cod. utenza 27000100-01-028;09/03/2018;16893;0;47;1;Spese correnti;3;Acquisto di beni e servizi;2;Acquisto di servizi;5;Utenze e canoni;5;Acqua;09/03/2018
286;15;0;13,54;1.081,65;ALTO TREVIGIANO SERVIZI Srl (servizio idrico); ;SALDO Fatt.n. M7201800000899  del 23/02/2018 Consumi servizio idrico VIA CHIESA periodo nov 2017/gen 2018 - cod. utenza 27000100-01-016;09/03/2018;16893;0;47;1;Spese correnti;3;Acquisto di beni e servizi;2;Acquisto di servizi;5;Utenze e canoni;5;Acqua;09/03/2018
286;16;0;15,49;1.081,65;ALTO TREVIGIANO SERVIZI Srl (servizio idrico); ;SALDO Fatt.n. M7201800000914  del 23/02/2018 Consumi servizio idrico VIA LEVADE periodo nov 2017/gen 2018 - cod. utenza 27000100-01-022;09/03/2018;16893;0;47;1;Spese correnti;3;Acquisto di beni e servizi;2;Acquisto di servizi;5;Utenze e canoni;5;Acqua;09/03/2018
286;17;0;18,35;1.081,65;ALTO TREVIGIANO SERVIZI Srl (servizio idrico); ;SALDO Fatt.n. M7201800000902  del 23/02/2018 Consumi servizio idrico PZA ALBERTINI periodo nov 2017/gen 2018 - cod. utenza 27000100-01-019;09/03/2018;16893;0;47;1;Spese correnti;3;Acquisto di beni e servizi;2;Acquisto di servizi;5;Utenze e canoni;5;Acqua;09/03/2018
286;18;0;21,46;1.081,65;ALTO TREVIGIANO SERVIZI Srl (servizio idrico); ;SALDO Fatt.n. M7201800000908  del 23/02/2018 Consumi servizio idrico P.ZA VITTORIO VENETO periodo nov 2017/gen 2018 - cod. utenza 27000100-01-011;09/03/2018;16893;0;47;1;Spese correnti;3;Acquisto di beni e servizi;2;Acquisto di servizi;5;Utenze e canoni;5;Acqua;09/03/2018
286;19;0;85,44;1.081,65;ALTO TREVIGIANO SERVIZI Srl (servizio idrico); ;SALDO Fatt.n. M7201800000903  del 23/02/2018 Consumi servizio idrico P.ZA ALBERTINI periodo nov 2017/gen 2018 - cod. utenza 27000100-01-020;09/03/2018;16893;0;47;1;Spese correnti;3;Acquisto di beni e servizi;2;Acquisto di servizi;5;Utenze e canoni;5;Acqua;09/03/2018
286;20;0;102,59;1.081,65;ALTO TREVIGIANO SERVIZI Srl (servizio idrico); ;SALDO Fatt.n. M7201800000889  del 23/02/2018 Consumi servizio idrico ANTINCENDIO VIA RABOSO periodo nov 2017/gen 2018 - cod. utenza 27000100-01-029;09/03/2018;16893;0;47;1;Spese correnti;3;Acquisto di beni e servizi;2;Acquisto di servizi;5;Utenze e canoni;5;Acqua;09/03/2018
286;21;0;726,69;1.081,65;ALTO TREVIGIANO SERVIZI Srl (servizio idrico); ;SALDO Fatt.n. M7201800000890  del 23/02/2018 Consumi servizio idrico IDRANTI periodo nov 2017/gen 2018 - cod. utenza 27000100-01-006;09/03/2018;16893;0;47;1;Spese correnti;3;Acquisto di beni e servizi;2;Acquisto di servizi;5;Utenze e canoni;5;Acqua;09/03/2018
287;1;0;651,83;651,83;Dolomiti Energia S.p.a.;ZBD1F4B0A3;Fatt.n. 41800734697 del 27/02/2018 sc. 29/03/2018 Energia elettrica MUNICIPIO gennaio 2018;09/03/2018;16511;0;45;1;Spese correnti;3;Acquisto di beni e servizi;2;Acquisto di servizi;5;Utenze e canoni;4;Energia elettrica;09/03/2018
288;1;0;421,46;421,46;Dolomiti Energia S.p.a.;ZBD1F4B0A3;Fatt.n. 41800734695 del 27/02/2018 sc. 29/03/2018 Energia elettrica SCUOLA ELEMENTARE e PALESTRA gennaio 2018;09/03/2018;16561;0;46;1;Spese correnti;3;Acquisto di beni e servizi;2;Acquisto di servizi;5;Utenze e canoni;4;Energia elettrica;09/03/2018
289;1;0;390,23;390,23;Dolomiti Energia S.p.a.;ZBD1F4B0A3;Fatt.n. 41800734693 del 27/02/2018 sc. 29/03/2018 Energia elettrica SCUOLA MEDIA gennaio 2018;09/03/2018;16611;0;47;1;Spese correnti;3;Acquisto di beni e servizi;2;Acquisto di servizi;5;Utenze e canoni;4;Energia elettrica;09/03/2018
290;1;0;210,73;210,73;Dolomiti Energia S.p.a.;ZBD1F4B0A3;Fatt.n. 41800734695 del 27/02/2018 sc. 29/03/2018 Energia elettrica SCUOLA ELEMENTARE e PALESTRA gennaio 2018;09/03/2018;16651;0;48;1;Spese correnti;3;Acquisto di beni e servizi;2;Acquisto di servizi;5;Utenze e canoni;4;Energia elettrica;09/03/2018
291;1;0;257,4;257,4;Dolomiti Energia S.p.a.;ZBD1F4B0A3;Fatt.n. 41800734694 del 27/02/2018 sc. 29/03/2018 Energia elettrica MUSICHIERE gennaio 2018;09/03/2018;16675;0;49;1;Spese correnti;3;Acquisto di beni e servizi;2;Acquisto di servizi;5;Utenze e canoni;4;Energia elettrica;09/03/2018
292;1;0;45,41;45,41;Dolomiti Energia S.p.a.;ZBD1F4B0A3;Fatt.n. 41800734687 del 27/02/2018 sc. 29/03/2018 Energia elettrica EX MAGAZZINO gennaio 2018;09/03/2018;16691;0;50;1;Spese correnti;3;Acquisto di beni e servizi;2;Acquisto di servizi;5;Utenze e canoni;4;Energia elettrica;09/03/2018
293;1;0;81,15;81,15;Dolomiti Energia S.p.a.;ZBD1F4B0A3;Fatt.n. 41800734691 del 27/02/2018 sc. 29/03/2018 Energia elettrica ASSOCIAZIONI gennaio 2018;09/03/2018;16731;0;51;1;Spese correnti;3;Acquisto di beni e servizi;2;Acquisto di servizi;5;Utenze e canoni;4;Energia elettrica;09/03/2018
294;1;0;392,64;392,64;Dolomiti Energia S.p.a.;ZBD1F4B0A3;Fatt.n. 41800734689 del 27/02/2018 sc. 29/03/2018 Energia elettrica SALA POLIFUNZIONALE gennaio 2018;09/03/2018;16761;0;52;1;Spese correnti;3;Acquisto di beni e servizi;2;Acquisto di servizi;5;Utenze e canoni;4;Energia elettrica;09/03/2018
295;1;0;49,21;49,21;Dolomiti Energia S.p.a.;ZBD1F4B0A3;Fatt.n. 41800734696 del 27/02/2018 sc. 29/03/2018 Energia elettrica LOCALI BANDA gennaio 2018;09/03/2018;16821;0;53;1;Spese correnti;3;Acquisto di beni e servizi;2;Acquisto di servizi;5;Utenze e canoni;4;Energia elettrica;09/03/2018
296;1;0;58,71;128,18;Dolomiti Energia S.p.a.;ZBD1F4B0A3;Fatt.n. 41800734690 del 27/02/2018 sc. 29/03/2018 Energia elettrica CIMITERO MORIAGO gennaio 2018;09/03/2018;16941;0;54;1;Spese correnti;3;Acquisto di beni e servizi;2;Acquisto di servizi;5;Utenze e canoni;4;Energia elettrica;09/03/2018
296;2;0;69,47;128,18;Dolomiti Energia S.p.a.;ZBD1F4B0A3;Fatt.n. 41800734688 del 27/02/2018 sc. 29/03/2018 Energia elettrica CIMITERO MOSNIGO gennaio 2018;09/03/2018;16941;0;54;1;Spese correnti;3;Acquisto di beni e servizi;2;Acquisto di servizi;5;Utenze e canoni;4;Energia elettrica;09/03/2018
297;1;0;256,47;256,47;Dolomiti Energia S.p.a.;ZBD1F4B0A3;Fatt.n. 41800734686 del 27/02/2018 sc. 29/03/2018 Energia elettrica ISOLA DEI MORTI gennaio 2018;09/03/2018;16945;0;55;1;Spese correnti;3;Acquisto di beni e servizi;2;Acquisto di servizi;5;Utenze e canoni;4;Energia elettrica;09/03/2018
298;1;0;582,99;582,99;Dolomiti Energia S.p.a.;ZBD1F4B0A3;Fatt.n. 41800734692 del 27/02/2018 sc. 29/03/2018 Energia elettrica IMPIANTI SPORTIVI gennaio 2018;09/03/2018;17001;0;56;1;Spese correnti;3;Acquisto di beni e servizi;2;Acquisto di servizi;5;Utenze e canoni;4;Energia elettrica;09/03/2018
299;1;0;603,58;7.880,16;Dolomiti Energia S.p.a.;ZBD1F4B0A3;Fatt.n. 41800765933 del 27/02/2018 sc. 29/03/2018 Energia elettrica PUBBLICA ILLNE (via Papa Giovanni XXIII) gennaio 2018;09/03/2018;17241;0;57;1;Spese correnti;3;Acquisto di beni e servizi;2;Acquisto di servizi;5;Utenze e canoni;4;Energia elettrica;09/03/2018
299;2;0;7.276,58;7.880,16;Dolomiti Energia S.p.a.;ZBD1F4B0A3;Fatt.n. 41800765932 del 27/02/2018 sc. 29/03/2018 Energia elettrica PUBBLICA ILLNE gennaio 2018;09/03/2018;17241;0;57;1;Spese correnti;3;Acquisto di beni e servizi;2;Acquisto di servizi;5;Utenze e canoni;4;Energia elettrica;09/03/2018
300;1;0;1.161,56;1.161,56;DIPENDENTI COMUNALI - STIPENDI; ;STIPENDI MESE DI: MARZO 18;14/03/2018;15000;0;1;1;Spese correnti;3;Acquisto di beni e servizi;2;Acquisto di servizi;1;Organi e incarichi istituzionali dell'amministrazione;1;Organi istituzionali dell'amministrazione - Indennità;14/03/2018
302;1;0;408,4;408,4;I.N.P.S. SEDE DI TREVISO; ;VERS.CONTRIB. MESE: MARZO 18 A CARICO DELL`ENTE;14/03/2018;15500;0;421;1;Spese correnti;3;Acquisto di beni e servizi;2;Acquisto di servizi;1;Organi e incarichi istituzionali dell'amministrazione;1;Organi istituzionali dell'amministrazione - Indennità;14/03/2018
303;1;0;5.591,60;5.591,60;DIPENDENTI COMUNALI - STIPENDI; ;STIPENDI MESE DI: MARZO 18;14/03/2018;15500;0;421;1;Spese correnti;3;Acquisto di beni e servizi;2;Acquisto di servizi;1;Organi e incarichi istituzionali dell'amministrazione;8;Compensi agli organi istituzionali di revisione, di controllo ed altri incarichi istituzionali dell'amministrazione;14/03/2018
341;1;0;313,92;313,92;BIM PIAVE NUOVE ENERGIE Srl; ;Fatt.n. 9000481 del 12/03/2018 sc. 11/05/2018 Riscaldamento edifici comunali, per elezioni politiche del 04 marzo 2018 vs. det. n. 40 del 06-02-2018 - Scuola Secondaria Moriago 25.31;14/03/2018;15035;0;70;1;Spese correnti;3;Acquisto di beni e servizi;1;Acquisto di beni;2;Altri beni di consumo;10;Beni per consultazioni elettorali;14/03/2018
342;1;0;344,71;344,71;TIM Spa;ZF519442C8;Fatt.n. 7X00617648 del 14/02/2018 sc. 26/04/2018 Spese telefonia mobile 2' bimestre 2018;14/03/2018;15891;0;128;1;Spese correnti;3;Acquisto di beni e servizi;2;Acquisto di servizi;5;Utenze e canoni;2;Telefonia mobile;14/03/2018
343;1;0;57,58;1.414,82;BIM PIAVE NUOVE ENERGIE Srl; ;Fatt.n. 9000160 del 26/02/2018 sc. 27/04/2018 A.t. 2017/18 1' rata: calore, ore extra e acqua calda ottobre/dicembre 2017 - LOCALI BANDA 25.12;14/03/2018;16521;0;115;1;Spese correnti;3;Acquisto di beni e servizi;2;Acquisto di servizi;5;Utenze e canoni;4;Energia elettrica;14/03/2018
343;2;0;539,47;1.414,82;BIM PIAVE NUOVE ENERGIE Srl; ;Fatt.n. 9000159 del 26/02/2018 sc. 27/04/2018 A.t. 2017/18 1' rata: calore, ore extra e acqua calda ottobre/dicembre 2017 - SEDE MUNICIPALE 25.11;14/03/2018;16521;0;115;1;Spese correnti;3;Acquisto di beni e servizi;2;Acquisto di servizi;5;Utenze e canoni;4;Energia elettrica;14/03/2018
343;3;0;817,77;1.414,82;BIM PIAVE NUOVE ENERGIE Srl; ;SALDO Fatt.n. 9000158  del 26/02/2018 Anno termico 2017/2018 - Acconto compentenze per l'esercizio la manutenzione e il controllo dell'impianto termico (Terzo responsabile);14/03/2018;16521;0;115;1;Spese correnti;3;Acquisto di beni e servizi;2;Acquisto di servizi;5;Utenze e canoni;4;Energia elettrica;14/03/2018
344;1;0;264,41;3.093,70;BIM PIAVE NUOVE ENERGIE Srl; ;Fatt.n. 9000158 del 26/02/2018 sc. 27/04/2018 Anno termico 2017/2018 - Acconto compentenze per l'esercizio la manutenzione e il controllo dell'impianto termico (Terzo responsabile);14/03/2018;16571;0;116;1;Spese correnti;3;Acquisto di beni e servizi;2;Acquisto di servizi;5;Utenze e canoni;6;Gas;14/03/2018
344;2;0;2.829,29;3.093,70;BIM PIAVE NUOVE ENERGIE Srl; ;Fatt.n. 9000162 del 26/02/2018 sc. 27/04/2018 A.t. 2017/18 1' rata: calore, ore extra e acqua calda ottobre/dicembre 2017 - SCUOLA ELEMENTARE e PALESTRA 25.32;14/03/2018;16571;0;116;1;Spese correnti;3;Acquisto di beni e servizi;2;Acquisto di servizi;5;Utenze e canoni;6;Gas;14/03/2018
345;1;0;230,4;2.428,30;BIM PIAVE NUOVE ENERGIE Srl; ;Fatt.n. 9000158 del 26/02/2018 sc. 27/04/2018 Anno termico 2017/2018 - Acconto compentenze per l'esercizio la manutenzione e il controllo dell'impianto termico (Terzo responsabile);14/03/2018;16621;0;117;1;Spese correnti;3;Acquisto di beni e servizi;2;Acquisto di servizi;5;Utenze e canoni;6;Gas;14/03/2018
345;2;0;2.197,90;2.428,30;BIM PIAVE NUOVE ENERGIE Srl; ;Fatt.n. 9000161 del 26/02/2018 sc. 27/04/2018 A.t. 2017/18 1' rata: calore, ore extra e acqua calda ottobre/dicembre 2017 - SCUOLA MEDIA 25.31;14/03/2018;16621;0;117;1;Spese correnti;3;Acquisto di beni e servizi;2;Acquisto di servizi;5;Utenze e canoni;6;Gas;14/03/2018
346;1;0;181,31;2.321,69;BIM PIAVE NUOVE ENERGIE Srl; ;Fatt.n. 9000158 del 26/02/2018 sc. 27/04/2018 Anno termico 2017/2018 - Acconto compentenze per l'esercizio la manutenzione e il controllo dell'impianto termico (Terzo responsabile);14/03/2018;16661;0;118;1;Spese correnti;3;Acquisto di beni e servizi;2;Acquisto di servizi;5;Utenze e canoni;6;Gas;14/03/2018
346;2;0;2.140,38;2.321,69;BIM PIAVE NUOVE ENERGIE Srl; ;Fatt.n. 9000162 del 26/02/2018 sc. 27/04/2018 A.t. 2017/18 1' rata: calore, ore extra e acqua calda ottobre/dicembre 2017 - SCUOLA ELEMENTARE e PALESTRA 25.32;14/03/2018;16661;0;118;1;Spese correnti;3;Acquisto di beni e servizi;2;Acquisto di servizi;5;Utenze e canoni;6;Gas;14/03/2018
347;1;0;753,06;753,06;BIM PIAVE NUOVE ENERGIE Srl; ;Fatt.n. 9000160 del 26/02/2018 sc. 27/04/2018 A.t. 2017/18 1' rata: calore, ore extra e acqua calda ottobre/dicembre 2017 - LOCALI BANDA 25.12;14/03/2018;16811;0;121;1;Spese correnti;3;Acquisto di beni e servizi;2;Acquisto di servizi;5;Utenze e canoni;6;Gas;14/03/2018
348;1;0;165;165;ACS ITALIA SRL;Z8C22659EA;Fatt.n. 4/PA del 20/02/2018 sc. 20/02/2018 Site hosting linux liv3 canone anno 2018;14/03/2018;17340;0;68;1;Spese correnti;3;Acquisto di beni e servizi;2;Acquisto di servizi;9;Manutenzione ordinaria e riparazioni;5;Manutenzione ordinaria e riparazioni di attrezzature;14/03/2018
349;1;0;704,55;704,55;I TIGLI2 Coop. Sociale Onlus;ZEE54A92EA;Fatt.n. 117 del 28/02/2018 sc. 31/03/2018 Pulizia STABILI mese di febbraio 2018;14/03/2018;16530;0;71;1;Spese correnti;3;Acquisto di beni e servizi;2;Acquisto di servizi;99;Altri servizi;999;Altri servizi diversi n.a.c.;14/03/2018
350;1;0;832,65;832,65;I TIGLI2 Coop. Sociale Onlus;ZEE54A92EA;Fatt.n. 116 del 28/02/2018 sc. 31/03/2018 Pulizia PALESTRA mese di febbraio 2018;14/03/2018;16670;0;72;1;Spese correnti;3;Acquisto di beni e servizi;2;Acquisto di servizi;99;Altri servizi;999;Altri servizi diversi n.a.c.;14/03/2018
351;1;0;256,2;256,2;I TIGLI2 Coop. Sociale Onlus;ZEE54A92EA;Fatt.n. 117 del 28/02/2018 sc. 31/03/2018 Pulizia STABILI mese di febbraio 2018;14/03/2018;16677;0;73;1;Spese correnti;3;Acquisto di beni e servizi;2;Acquisto di servizi;99;Altri servizi;999;Altri servizi diversi n.a.c.;14/03/2018
352;1;0;219,6;219,6;I TIGLI2 Coop. Sociale Onlus;ZEE54A92EA;Fatt.n. 117 del 28/02/2018 sc. 31/03/2018 Pulizia STABILI mese di febbraio 2018;14/03/2018;16751;0;74;1;Spese correnti;3;Acquisto di beni e servizi;2;Acquisto di servizi;99;Altri servizi;999;Altri servizi diversi n.a.c.;14/03/2018
353;1;0;183;183;PITNEY BOWES ITALIA Srl;Z3F1030374;Fatt.n. BL01801445 del 08/03/2018 sc. 07/04/2018 Canone noleggio;14/03/2018;15083;0;153;1;Spese correnti;3;Acquisto di beni e servizi;2;Acquisto di servizi;5;Utenze e canoni;999;Utenze e canoni per altri servizi n.a.c.;14/03/2018
354;1;0;502,64;502,64;ASCO TLC Spa;ZB21CFE445;Fatt.n. 09006421 del 28/02/2018 sc. 28/03/2018 Asconauta gold e servizio ip pubblico periodo gennaio/febbriao 2018;14/03/2018;16516;0;41;1;Spese correnti;3;Acquisto di beni e servizi;2;Acquisto di servizi;5;Utenze e canoni;999;Utenze e canoni per altri servizi n.a.c.;14/03/2018
355;1;0;58,54;58,54;REPRO Srl; ;Fatt.n. 000008-2018-6 del 28/02/2018 sc. 30/04/2018 Prolunga, pennelli, viti e ancorante;14/03/2018;17191;0;100;1;Spese correnti;3;Acquisto di beni e servizi;1;Acquisto di beni;2;Altri beni di consumo;999;Altri beni e materiali di consumo n.a.c.;14/03/2018
356;1;0;555,16;555,16;DAL ZOTTO Srl; ;Fatt.n. 2/PA del 28/02/2018 sc. 02/04/2018 Stabilizzato e ghiaino;14/03/2018;17230;0;105;1;Spese correnti;3;Acquisto di beni e servizi;1;Acquisto di beni;2;Altri beni di consumo;999;Altri beni e materiali di consumo n.a.c.;14/03/2018
357;1;0;585,6;585,6;SUPERBETON Spa;Z222272A9E;Fatt.n. 226 del 28/02/2018 sc. 28/03/2018 Asfalto a freddo plastico - sacco 25 kg - Asphalt Plus - formulazione strutturale;14/03/2018;17230;0;120;1;Spese correnti;3;Acquisto di beni e servizi;1;Acquisto di beni;2;Altri beni di consumo;999;Altri beni e materiali di consumo n.a.c.;14/03/2018
358;1;0;3.235,75;3.235,75;PRESTI SCAVI Snc di Presti Mirco e Fabrizio;ZCC22104B4;Fatt.n. 3/E del 28/02/2018 sc. 08/04/2018 Interventi spargisale, sistemazione strade e preparazione parchi per installazione giochi;14/03/2018;17231;0;106;1;Spese correnti;3;Acquisto di beni e servizi;2;Acquisto di servizi;9;Manutenzione ordinaria e riparazioni;8;Manutenzione ordinaria e riparazioni di beni immobili;14/03/2018
359;1;0;3.698,32;3.698,32;SOLICUM Snc di Zuan Mario; ;Fatt.n. 24/E del 28/02/2018 sc. 30/04/2018 MANUTENZIONE IMPIANTO ELETTRICO ILLUMINAZIONE PUBBLICA;14/03/2018;17251;0;107;1;Spese correnti;3;Acquisto di beni e servizi;2;Acquisto di servizi;9;Manutenzione ordinaria e riparazioni;8;Manutenzione ordinaria e riparazioni di beni immobili;14/03/2018
360;1;0;198,78;198,78;KUWAIT PETROLEUM ITALIA SPA;Z22175C158;ACCONTO Fatt.n. PJ00116686  del 28/02/2018 Carburante mese di GENNAIO 2018;14/03/2018;17030;0;42;1;Spese correnti;3;Acquisto di beni e servizi;1;Acquisto di beni;2;Altri beni di consumo;2;Carburanti, combustibili e lubrificanti;14/03/2018
361;1;0;151,04;151,04;KUWAIT PETROLEUM ITALIA SPA;Z22175C158;SALDO Fatt.n. PJ00116686  del 28/02/2018 Carburante mese di GENNAIO 2018;14/03/2018;17031;0;43;1;Spese correnti;3;Acquisto di beni e servizi;1;Acquisto di beni;2;Altri beni di consumo;2;Carburanti, combustibili e lubrificanti;14/03/2018
362;1;0;709,19;709,19;SOLUZIONE UFFICIO Srl;ZCC2235001;Fatt.n. 2396/PA/2018 del 08/03/2018 sc. 08/04/2018 Cartucce e toner vari;14/03/2018;15880;0;389;1;Spese correnti;3;Acquisto di beni e servizi;1;Acquisto di beni;2;Altri beni di consumo;1;Carta, cancelleria e stampati;14/03/2018
363;1;0;19.352,86;19.352,86;PALI CAMPION SRL;Z4A2170FBE;Fatt.n. 18P00003 del 28/02/2018 sc. 31/03/2018 Pali per la pubblica illuminazione;14/03/2018;20312;0;378;2;Spese in conto capitale;5;Altre spese in conto capitale;99;Altre spese in conto capitale n.a.c.;99;Altre spese in conto capitale n.a.c.;999;Altre spese in conto capitale n.a.c.;14/03/2018
364;1;0;29.647,14;29.647,14;ZG LIGHTING SRL;Z8E2171458;Fatt.n. 2574786 del 28/02/2018 sc. 30/03/2018 Plafoniere per la pubblica illuminazione;14/03/2018;20312;0;379;2;Spese in conto capitale;5;Altre spese in conto capitale;99;Altre spese in conto capitale n.a.c.;99;Altre spese in conto capitale n.a.c.;999;Altre spese in conto capitale n.a.c.;14/03/2018
365;1;0;19.289,91;19.289,91;LEGNOLANDIA Srl;Z23216FE5E;Fatt.n. FPA2018/0014 del 27/02/2018 sc. 30/04/2018 Fornitura e installazione giochi per parchi comunali;14/03/2018;20323;0;377;2;Spese in conto capitale;2;Investimenti fissi lordi e acquisto di terreni;1;Beni materiali;5;Attrezzature;999;Attrezzature n.a.c.;14/03/2018
366;1;0;623,5;623,5;ZG LIGHTING SRL;Z8E2171458;Fatt.n. 2574786 del 28/02/2018 sc. 30/03/2018 Plafoniere per la pubblica illuminazione;14/03/2018;20323;0;380;2;Spese in conto capitale;2;Investimenti fissi lordi e acquisto di terreni;1;Beni materiali;5;Attrezzature;999;Attrezzature n.a.c.;14/03/2018
367;1;0;960;960;GRUPPO ALPINI DI MORIAGO-PRES. FURLAN DANIELE; ;ATTIVAZIONE SERVIZIO DI VOLONTARIATO VIGILANZA STRADALE ALUNNI PRESSO LE SCUOLE DELL'OBBLIGO DEL COMUNE DI MORIAGO DELLA BATTAGLIA A.S. 2017/18 - MESE DI GENNAIO/FEBBRAIO 2018;14/03/2018;16104;0;332;1;Spese correnti;4;Trasferimenti correnti;4;Trasferimenti correnti a Istituzioni Sociali Private;1;Trasferimenti correnti a Istituzioni Sociali Private;1;Trasferimenti correnti a Istituzioni Sociali Private;14/03/2018
368;1;0;1.000,00;1.000,00;CENTRO RICREATIVO GRUPPO ANZIANI, sigra Elsa Pellegrini; ;ASSEGNAZIONE CONTRIBUTO STRAORDINARIO PER L'ANNO 2018;14/03/2018;16107;0;129;1;Spese correnti;4;Trasferimenti correnti;2;Trasferimenti correnti a Famiglie;5;Altri trasferimenti a famiglie;999;Altri trasferimenti a famiglie n.a.c.;14/03/2018
369;1;0;4.790,00;4.790,00;"ISTITUTO COMPRENSIVO SCUOLA ELEMENTARE/MEDIA ""I.NIEVO"""; ;ASSEGNAZIONE CONTRIBUTO ANNO 2018;14/03/2018;16427;0;130;1;Spese correnti;4;Trasferimenti correnti;1;Trasferimenti correnti a Amministrazioni Pubbliche;2;Trasferimenti correnti a Amministrazioni Locali;999;Trasferimenti correnti a altre Amministrazioni Locali n.a.c.;14/03/2018
371;1;0;247;247;S.E.P.E.L. EDITRICE;Z7422D5A9B;"Fatt.n. 2/1101 del 16/03/2018 sc. 16/04/2018 Abbonamento rivista ""Lo stato civile italiano"" anno 2018";22/03/2018;15060;0;430;1;Spese correnti;3;Acquisto di beni e servizi;1;Acquisto di beni;1;Giornali, riviste e pubblicazioni;1;Giornali e riviste;22/03/2018
372;1;0;2.110,41;2.110,41;EURORISTORAZIONE Srl;67023000EE;Fatt.n. 18CPA00772 del 28/02/2018 sc. 31/03/2018 Pasti ALUNNI mese di febbraio 2018 (n. 523 pasti);22/03/2018;15598;0;37;1;Spese correnti;3;Acquisto di beni e servizi;2;Acquisto di servizi;15;Contratti di servizio pubblico;6;Contratti di servizio per le mense scolastiche;22/03/2018
373;1;0;769,94;769,94;"FONDAZIONE ""CASA PER ANZIANI"" ONLUS"; ;Fatt.n. 10/PA del 27/02/2018 sc. 02/04/2018 Retta ricovero G.V. mese di FEBBRAIO 2018;22/03/2018;15970;0;68;1;Spese correnti;4;Trasferimenti correnti;1;Trasferimenti correnti a Amministrazioni Pubbliche;2;Trasferimenti correnti a Amministrazioni Locali;14;Trasferimenti correnti a Istituti di ricovero e cura a carattere scientifico pubblici n.a.f.;22/03/2018
374;1;0;1.196,35;1.196,35;COOPERATIVA CSA - CENTRO SERVIZI ASSOCIATI;Z741E7298E;Fatt.n. 19/E del 15/02/2018 sc. 31/03/2018 Servizio di assistenza domiciliare mese di GENNAIO 2018 (62,30 ore);22/03/2018;15990;0;184;1;Spese correnti;3;Acquisto di beni e servizi;2;Acquisto di servizi;15;Contratti di servizio pubblico;9;Contratti di servizio di assistenza sociale domiciliare;22/03/2018
375;1;0;58,5;58,5;SERVIZI TREVISO Srl;Z640E5068D;Fatt.n. 34/39 del 20/02/2018 sc. 20/03/2018 Compilazione dichiarazioni sostitutive (certificazioni ISEE) per bonus energia e bonus gas nel periodo lug/dic 2017;22/03/2018;16010;0;309;1;Spese correnti;3;Acquisto di beni e servizi;2;Acquisto di servizi;99;Altri servizi;999;Altri servizi diversi n.a.c.;22/03/2018
376;1;0;12,87;12,87;SERVIZI TREVISO Srl;Z640E5068D;Fatt.n. 34/39 del 20/02/2018 sc. 20/03/2018 Compilazione dichiarazioni sostitutive (certificazioni ISEE) per bonus energia e bonus gas nel periodo lug/dic 2017;22/03/2018;16010;0;333;1;Spese correnti;3;Acquisto di beni e servizi;2;Acquisto di servizi;99;Altri servizi;999;Altri servizi diversi n.a.c.;22/03/2018
377;1;0;238,08;238,08;EURORISTORAZIONE Srl;67023000EE;Fatt.n. 18CPA00773 del 28/02/2018 sc. 31/03/2018 Pasti INSEGNANTI mese di febbraio 2018 (n. 59 pasti);22/03/2018;16437;0;36;1;Spese correnti;3;Acquisto di beni e servizi;1;Acquisto di beni;2;Altri beni di consumo;999;Altri beni e materiali di consumo n.a.c.;22/03/2018
380;1;0;682,77;682,77;ASCOTRADE Spa (metano); ;Fatt.n. 288926 del 15/03/2018 sc. 16/04/2018 Metano MUNICIPIO mese di febbraio 2018;22/03/2018;16521;0;109;1;Spese correnti;3;Acquisto di beni e servizi;2;Acquisto di servizi;5;Utenze e canoni;4;Energia elettrica;22/03/2018
381;1;0;34,04;665,27;TIM Spa; ;Fatt.n. 8E00238193 del 08/03/2018 sc. 16/04/2018 Telefono ASCENSORE gennaio/febbraio 2018;22/03/2018;16541;0;58;1;Spese correnti;3;Acquisto di beni e servizi;2;Acquisto di servizi;5;Utenze e canoni;1;Telefonia fissa;22/03/2018
381;2;0;40,36;665,27;TIM Spa; ;Fatt.n. 8E00235133 del 08/03/2018 sc. 16/04/2018 Telefono FAX gennaio/febbraio 2018;22/03/2018;16541;0;58;1;Spese correnti;3;Acquisto di beni e servizi;2;Acquisto di servizi;5;Utenze e canoni;1;Telefonia fissa;22/03/2018
381;3;0;91,49;665,27;TIM Spa; ;Fatt.n. 8E00240889 del 08/03/2018 sc. 16/04/2018 Telefono MUNICIPIO 3 gennaio/febbraio 2018;22/03/2018;16541;0;58;1;Spese correnti;3;Acquisto di beni e servizi;2;Acquisto di servizi;5;Utenze e canoni;1;Telefonia fissa;22/03/2018
381;4;0;94,86;665,27;TIM Spa; ;Fatt.n. 8E00235805 del 08/03/2018 sc. 16/04/2018 Telefono MUNICIPIO 2 gennaio/febbraio 2018;22/03/2018;16541;0;58;1;Spese correnti;3;Acquisto di beni e servizi;2;Acquisto di servizi;5;Utenze e canoni;1;Telefonia fissa;22/03/2018
381;5;0;404,52;665,27;TIM Spa; ;Fatt.n. 8E00237969 del 08/03/2018 sc. 16/04/2018 Telefono MUNICIPIO 1 gennaio/febbraio 2018;22/03/2018;16541;0;58;1;Spese correnti;3;Acquisto di beni e servizi;2;Acquisto di servizi;5;Utenze e canoni;1;Telefonia fissa;22/03/2018
382;1;0;75,9;75,9;TIM Spa; ;Fatt.n. 8E00235210 del 08/03/2018 sc. 16/04/2018 Telefono SCUOLA ELEMENTARE gennaio/febbraio 2018;22/03/2018;16581;0;59;1;Spese correnti;3;Acquisto di beni e servizi;2;Acquisto di servizi;5;Utenze e canoni;1;Telefonia fissa;22/03/2018
383;1;0;62,23;62,23;TIM Spa; ;Fatt.n. 8E00236219 del 08/03/2018 sc. 16/04/2018 Telefono SCUOLA MEDIA gennaio/febbraio 2018;22/03/2018;16631;0;60;1;Spese correnti;3;Acquisto di beni e servizi;2;Acquisto di servizi;5;Utenze e canoni;1;Telefonia fissa;22/03/2018
384;1;0;802,65;802,65;ASCOTRADE Spa (metano); ;Fatt.n. 286490 del 15/03/2018 sc. 16/04/2018 Metano SALA POLIFUNZIONALE mese di febbraio 2018;22/03/2018;16771;0;114;1;Spese correnti;3;Acquisto di beni e servizi;2;Acquisto di servizi;5;Utenze e canoni;6;Gas;22/03/2018
385;1;0;724;724;T14 ASSOCIATI;ZE5216EB15;Fatt.n. 5/PA del 05/03/2018 sc. 05/04/2018 Progettazione, dl e coordinamento per la sicurezza in fase esecutiva dei lavori riguardanti la fornitura e posa dei serramenti esterni;22/03/2018;17195;0;372;1;Spese correnti;3;Acquisto di beni e servizi;2;Acquisto di servizi;99;Altri servizi;999;Altri servizi diversi n.a.c.;22/03/2018
386;1;0;1.478,09;1.478,09;ACCATRE Srl;Z5C204CFC2;Fatt.n. 1/180378 del 05/03/2018 sc. 30/04/2018 Portale dei dipendenti, service paghe, gestione economica del personale e portale del personale anno 2018;22/03/2018;17340;0;424;1;Spese correnti;3;Acquisto di beni e servizi;2;Acquisto di servizi;9;Manutenzione ordinaria e riparazioni;5;Manutenzione ordinaria e riparazioni di attrezzature;22/03/2018
387;1;0;2.510,00;2.510,00;ACCATRE Srl;Z5C204CFC2;Fatt.n. 1/180378 del 05/03/2018 sc. 30/04/2018 Portale dei dipendenti, service paghe, gestione economica del personale e portale del personale anno 2018;22/03/2018;17341;0;425;1;Spese correnti;3;Acquisto di beni e servizi;2;Acquisto di servizi;5;Utenze e canoni;999;Utenze e canoni per altri servizi n.a.c.;22/03/2018
388;1;0;5.620,00;5.620,00;T14 ASSOCIATI;ZE5216EB15;Fatt.n. 5/PA del 05/03/2018 sc. 05/04/2018 Progettazione, dl e coordinamento per la sicurezza in fase esecutiva dei lavori riguardanti la fornitura e posa dei serramenti esterni;22/03/2018;20354;0;373;2;Spese in conto capitale;2;Investimenti fissi lordi e acquisto di terreni;1;Beni materiali;9;Beni immobili;999;Beni immobili n.a.c.;22/03/2018
389;1;0;225;225;NOVATECH;ZC520BDF9C;ACCONTO Fatt.n. FATTPA 1_18  del 21/03/2018 Assistenza tecnica, installazione e configurazione materiale audio-video presso la Biblioteca;23/03/2018;17340;0;350;1;Spese correnti;3;Acquisto di beni e servizi;2;Acquisto di servizi;9;Manutenzione ordinaria e riparazioni;5;Manutenzione ordinaria e riparazioni di attrezzature;23/03/2018
390;1;0;427,21;427,21;NOVATECH;ZC520BDF9C;SALDO Fatt.n. FATTPA 1_18  del 21/03/2018 Assistenza tecnica, installazione e configurazione materiale audio-video presso la Biblioteca;23/03/2018;17340;0;350;1;Spese correnti;3;Acquisto di beni e servizi;2;Acquisto di servizi;9;Manutenzione ordinaria e riparazioni;5;Manutenzione ordinaria e riparazioni di attrezzature;23/03/2018
391;1;0;231,8;231,8;MAGGIOLI SPA;Z9A1906D51;SALDO Fatt.n. 0002113055  del 16/03/2018 Servizio Enti.it finanza e tributi - abbonamento triennale fascia 1 - annualita' 3;23/03/2018;15545;0;87;1;Spese correnti;3;Acquisto di beni e servizi;2;Acquisto di servizi;17;Servizi finanziari;999;Spese per servizi finanziari n.a.c.;23/03/2018
396;1;0;14.300,00;187.220,00;Grandi Lavori Scarl Consorzio Stabile;7,18E+102;SALDO Fatt.n. 4  del 19/03/2018 Adeguamento sismico della sede municipale. SAL n. 1 - opere realizzate dal subappaltatore RMP di Pigatto Moreno. (lavori finanziati con contributo POR-FESR 2014-2020);03/04/2018;20351;0;262;2;Spese in conto capitale;2;Investimenti fissi lordi e acquisto di terreni;1;Beni materiali;9;Beni immobili;999;Beni immobili n.a.c.;03/04/2018
396;2;0;149.820,00;187.220,00;Grandi Lavori Scarl Consorzio Stabile;7,18E+102;SALDO Fatt.n. 3  del 19/03/2018 Adeguamento sismico della sede municipale. SAL n. 1. Finanziato con contributo POR FESR 2014-2020;03/04/2018;20351;0;262;2;Spese in conto capitale;2;Investimenti fissi lordi e acquisto di terreni;1;Beni materiali;9;Beni immobili;999;Beni immobili n.a.c.;03/04/2018
396;3;0;23.100,00;187.220,00;Grandi Lavori Scarl Consorzio Stabile;7,18E+102;SALDO Fatt.n. 5  del 19/03/2018 Adeguamento sismico della sede municipale. SAL n. 1 - opere realizzate dal subappaltatore New World Costruzioni. (lavori finanziati con contributo POR-FESR 2014-2020);03/04/2018;20351;0;262;2;Spese in conto capitale;2;Investimenti fissi lordi e acquisto di terreni;1;Beni materiali;9;Beni immobili;999;Beni immobili n.a.c.;03/04/2018
397;1;0;932,08;932,08;COMUNITA' EMIGRANTI DI MORIAGO; ;"CONVENZIONE PER LE ATTIVITÀ GIORNALISTICHE, LA STAMPA E LA DISTRIBUZIONE DEL PERIODICO ""QUI MORIAGO"" - RIMBORSO DI PARTE DEI COSTI DEL N. 102 DI DICEMBRE 2017";05/04/2018;16107;0;137;1;Spese correnti;4;Trasferimenti correnti;2;Trasferimenti correnti a Famiglie;5;Altri trasferimenti a famiglie;999;Altri trasferimenti a famiglie n.a.c.;05/04/2018
398;1;0;252,54;252,54;BIGATELLO Sas;Z1415528B9;Fatt.n. FATTPA 9_18 del 30/03/2018 sc. 04/05/2018 Noleggio trimestrale fotocopiatore MP4054;09/04/2018;15013;0;151;1;Spese correnti;3;Acquisto di beni e servizi;2;Acquisto di servizi;7;Utilizzo di beni di terzi;8;Noleggi di impianti e macchinari;09/04/2018
399;1;0;258,98;258,98;BIGATELLO Sas;Z1415528B9;Fatt.n. FATTPA 10_18 del 30/03/2018 sc. 05/05/2018 Costo copia b/n Aficio MP4054 gen/mar 2018;09/04/2018;15013;0;173;1;Spese correnti;3;Acquisto di beni e servizi;2;Acquisto di servizi;7;Utilizzo di beni di terzi;8;Noleggi di impianti e macchinari;09/04/2018
400;1;0;75,91;161,44;MAGGIOLI SPA;Z6422A12EF;Fatt.n. 0002114623 del 23/03/2018 sc. 23/05/2018 Registro notifiche eseguite dal messo su richiesta di altro ente;09/04/2018;15130;0;419;1;Spese correnti;3;Acquisto di beni e servizi;1;Acquisto di beni;2;Altri beni di consumo;1;Carta, cancelleria e stampati;09/04/2018
400;2;0;85,53;161,44;MAGGIOLI SPA;ZC82250B14;Fatt.n. 0002114624 del 23/03/2018 sc. 23/05/2018 Rilegatura serie registri di stato civile, cittadinanza e liste di leva;09/04/2018;15130;0;419;1;Spese correnti;3;Acquisto di beni e servizi;1;Acquisto di beni;2;Altri beni di consumo;1;Carta, cancelleria e stampati;09/04/2018
401;1;0;175;350,55;MAGGIOLI SPA;Z6422A12EF;"Fatt.n. 0005953569 del 23/03/2018 sc. 23/05/2018 Fornitura libri ""I contratti degli enti locali"" e ""Il piano delle performance...""";09/04/2018;15130;0;427;1;Spese correnti;3;Acquisto di beni e servizi;1;Acquisto di beni;2;Altri beni di consumo;1;Carta, cancelleria e stampati;09/04/2018
401;2;0;175,55;350,55;MAGGIOLI SPA;ZC82250B14;Fatt.n. 0002114624 del 23/03/2018 sc. 23/05/2018 Rilegatura serie registri di stato civile, cittadinanza e liste di leva;09/04/2018;15130;0;427;1;Spese correnti;3;Acquisto di beni e servizi;1;Acquisto di beni;2;Altri beni di consumo;1;Carta, cancelleria e stampati;09/04/2018
402;1;0;5.818,91;5.818,91;SOLIGO VIAGGI Sas;6318150E4E;Fatt.n. PA/065 del 29/03/2018 sc. 28/04/2018 Trasporto scolastico mese di MARZO 2018;09/04/2018;15861;0;67;1;Spese correnti;3;Acquisto di beni e servizi;2;Acquisto di servizi;15;Contratti di servizio pubblico;2;Contratti di servizio di trasporto scolastico;09/04/2018
403;1;0;407,71;407,71;Dolomiti Energia S.p.a.;ZBD1F4B0A3;Fatt.n. 41801164725 del 28/03/2018 sc. 27/04/2018 Energia elettrica MUNICIPIO febbraio 2018;09/04/2018;16511;0;45;1;Spese correnti;3;Acquisto di beni e servizi;2;Acquisto di servizi;5;Utenze e canoni;4;Energia elettrica;09/04/2018
404;1;0;424,88;424,88;Dolomiti Energia S.p.a.;ZBD1F4B0A3;Fatt.n. 41801164723 del 28/03/2018 sc. 27/04/2018 Energia elettrica SCUOLA ELEMENTARE e PALESTRA febbraio 2018;09/04/2018;16561;0;46;1;Spese correnti;3;Acquisto di beni e servizi;2;Acquisto di servizi;5;Utenze e canoni;4;Energia elettrica;09/04/2018
405;1;0;392,6;392,6;Dolomiti Energia S.p.a.;ZBD1F4B0A3;Fatt.n. 41801164721 del 28/03/2018 sc. 27/04/2018 Energia elettrica SCUOLA MEDIA febbraio 2018;09/04/2018;16611;0;47;1;Spese correnti;3;Acquisto di beni e servizi;2;Acquisto di servizi;5;Utenze e canoni;4;Energia elettrica;09/04/2018
406;1;0;212,44;212,44;Dolomiti Energia S.p.a.;ZBD1F4B0A3;Fatt.n. 41801164723 del 28/03/2018 sc. 27/04/2018 Energia elettrica SCUOLA ELEMENTARE e PALESTRA febbraio 2018;09/04/2018;16651;0;48;1;Spese correnti;3;Acquisto di beni e servizi;2;Acquisto di servizi;5;Utenze e canoni;4;Energia elettrica;09/04/2018
407;1;0;232,39;232,39;Dolomiti Energia S.p.a.;ZBD1F4B0A3;Fatt.n. 41801164722 del 28/03/2018 sc. 27/04/2018 Energia elettrica MUSICHIERE febbraio 2018;09/04/2018;16675;0;49;1;Spese correnti;3;Acquisto di beni e servizi;2;Acquisto di servizi;5;Utenze e canoni;4;Energia elettrica;09/04/2018
408;1;0;45,41;45,41;Dolomiti Energia S.p.a.;ZBD1F4B0A3;Fatt.n. 41801164715 del 28/03/2018 sc. 27/04/2018 Energia elettrica EX MAGAZZINO febbraio 2018;09/04/2018;16691;0;50;1;Spese correnti;3;Acquisto di beni e servizi;2;Acquisto di servizi;5;Utenze e canoni;4;Energia elettrica;09/04/2018
409;1;0;81,31;81,31;Dolomiti Energia S.p.a.;ZBD1F4B0A3;Fatt.n. 41801164719 del 28/03/2018 sc. 27/04/2018 Energia elettrica ASSOCIAZIONI febbraio 2018;09/04/2018;16731;0;51;1;Spese correnti;3;Acquisto di beni e servizi;2;Acquisto di servizi;5;Utenze e canoni;4;Energia elettrica;09/04/2018
410;1;0;373,72;373,72;Dolomiti Energia S.p.a.;ZBD1F4B0A3;Fatt.n. 41801164717 del 28/03/2018 sc. 27/04/2018 Energia elettrica SALA POLIFUNZIONALE febbraio 2018;09/04/2018;16761;0;52;1;Spese correnti;3;Acquisto di beni e servizi;2;Acquisto di servizi;5;Utenze e canoni;4;Energia elettrica;09/04/2018
411;1;0;49,47;49,47;Dolomiti Energia S.p.a.;ZBD1F4B0A3;Fatt.n. 41801164724 del 28/03/2018 sc. 27/04/2018 Energia elettrica LOCALI BANDA febbraio 2018;09/04/2018;16821;0;53;1;Spese correnti;3;Acquisto di beni e servizi;2;Acquisto di servizi;5;Utenze e canoni;4;Energia elettrica;09/04/2018
412;1;0;56,57;122,76;Dolomiti Energia S.p.a.;ZBD1F4B0A3;Fatt.n. 41801164718 del 28/03/2018 sc. 27/04/2018 Energia elettrica CIMITERO MORIAGO febbraio 2018;09/04/2018;16941;0;54;1;Spese correnti;3;Acquisto di beni e servizi;2;Acquisto di servizi;5;Utenze e canoni;4;Energia elettrica;09/04/2018
412;2;0;66,19;122,76;Dolomiti Energia S.p.a.;ZBD1F4B0A3;Fatt.n. 41801164716 del 28/03/2018 sc. 27/04/2018 Energia elettrica CIMITERO MOSNIGO febbraio 2018;09/04/2018;16941;0;54;1;Spese correnti;3;Acquisto di beni e servizi;2;Acquisto di servizi;5;Utenze e canoni;4;Energia elettrica;09/04/2018
413;1;0;236,89;236,89;Dolomiti Energia S.p.a.;ZBD1F4B0A3;Fatt.n. 41801164714 del 28/03/2018 sc. 27/04/2018 Energia elettrica ISOLA DEI MORTI febbraio 2018;09/04/2018;16945;0;55;1;Spese correnti;3;Acquisto di beni e servizi;2;Acquisto di servizi;5;Utenze e canoni;4;Energia elettrica;09/04/2018
414;1;0;534,95;534,95;Dolomiti Energia S.p.a.;ZBD1F4B0A3;Fatt.n. 41801164720 del 28/03/2018 sc. 27/04/2018 Energia elettrica IMPIANTI SPORTIVI febbraio 2018;09/04/2018;17001;0;56;1;Spese correnti;3;Acquisto di beni e servizi;2;Acquisto di servizi;5;Utenze e canoni;4;Energia elettrica;09/04/2018
415;1;0;81,19;81,19;FERRAMENTA BORTOLUZZI GINA MARIA; ;Fatt.n. FATTPA 3_17 del 30/12/2017 sc. 04/05/2018 Nastro adesivo, spray, flssometro...;09/04/2018;17191;0;100;1;Spese correnti;3;Acquisto di beni e servizi;1;Acquisto di beni;2;Altri beni di consumo;999;Altri beni e materiali di consumo n.a.c.;09/04/2018
416;1;0;102,48;102,48;BIGATELLO Sas;ZC41AD13C2;Fatt.n. FATTPA 8_18 del 30/03/2018 sc. 04/05/2018 Noleggio trimestrale Ricoh MPC2051 gen/mar 2018;09/04/2018;17193;0;308;1;Spese correnti;3;Acquisto di beni e servizi;2;Acquisto di servizi;7;Utilizzo di beni di terzi;8;Noleggi di impianti e macchinari;09/04/2018
417;1;0;541,29;541,29;BIGATELLO Sas;ZC41AD13C2;Fatt.n. FATTPA 11_18 del 30/03/2018 sc. 05/05/2018 Costo copia b/n e colori Ricoh MPC2051 gen/mar 2018;09/04/2018;17193;0;101;1;Spese correnti;3;Acquisto di beni e servizi;2;Acquisto di servizi;7;Utilizzo di beni di terzi;8;Noleggi di impianti e macchinari;09/04/2018
418;1;0;1.166,19;1.166,19;DAL ZOTTO Srl; ;Fatt.n. 3/PA del 31/03/2018 sc. 03/05/2018 Ghiaino e stabilizzato;09/04/2018;17230;0;105;1;Spese correnti;3;Acquisto di beni e servizi;1;Acquisto di beni;2;Altri beni di consumo;999;Altri beni e materiali di consumo n.a.c.;09/04/2018
419;1;0;482,12;7.031,79;Dolomiti Energia S.p.a.;ZBD1F4B0A3;Fatt.n. 41801175211 del 28/03/2018 sc. 27/04/2018 Energia elettrica PUBBLICA ILLNE (via Papa Giovanni XXIII) febbraio 2018;09/04/2018;17241;0;57;1;Spese correnti;3;Acquisto di beni e servizi;2;Acquisto di servizi;5;Utenze e canoni;4;Energia elettrica;09/04/2018
419;2;0;6.549,67;7.031,79;Dolomiti Energia S.p.a.;ZBD1F4B0A3;Fatt.n. 41801175210 del 28/03/2018 sc. 27/04/2018 Energia elettrica PUBBLICA ILLNE febbraio 2018;09/04/2018;17241;0;57;1;Spese correnti;3;Acquisto di beni e servizi;2;Acquisto di servizi;5;Utenze e canoni;4;Energia elettrica;09/04/2018
420;1;0;450;900;"PARROCCHIA ""SAN MARTINO VESCOVO"""; ;ASSEGNAZIONE CONTRIBUTI PER LA REALIZZAZIONE DI UNA RASSEGNA TEATRALE A SCOPO BENEFICO;09/04/2018;16418;0;138;1;Spese correnti;4;Trasferimenti correnti;2;Trasferimenti correnti a Famiglie;5;Altri trasferimenti a famiglie;999;Altri trasferimenti a famiglie n.a.c.;09/04/2018
420;2;0;450;900;PARROCCHIA 'SAN LEONARDO'; ;ASSEGNAZIONE CONTRIBUTI PER LA REALIZZAZIONE DI UNA RASSEGNA TEATRALE A SCOPO BENEFICO;09/04/2018;16418;0;138;1;Spese correnti;4;Trasferimenti correnti;2;Trasferimenti correnti a Famiglie;5;Altri trasferimenti a famiglie;999;Altri trasferimenti a famiglie n.a.c.;09/04/2018
421;1;0;7.245,60;7.245,60;"AZIENDA ULSS N. 2 ""Marca Trevigiana"""; ;Servizio di assistenza scolastica polivalente 1° trim. 2018;09/04/2018;15940;0;141;1;Spese correnti;4;Trasferimenti correnti;1;Trasferimenti correnti a Amministrazioni Pubbliche;2;Trasferimenti correnti a Amministrazioni Locali;21;Trasferimenti correnti a Aziende sanitarie locali  a titolo di finanziamento di livelli di assistenza superiori ai livelli essenziali di assistenza (LEA);09/04/2018
422;1;0;1.848,91;1.848,91;"AZIENDA ULSS N. 2 ""Marca Trevigiana"""; ;Trasporto alunni disabili quota associativa 1° trim. 2018;09/04/2018;15950;0;140;1;Spese correnti;4;Trasferimenti correnti;1;Trasferimenti correnti a Amministrazioni Pubbliche;2;Trasferimenti correnti a Amministrazioni Locali;21;Trasferimenti correnti a Aziende sanitarie locali  a titolo di finanziamento di livelli di assistenza superiori ai livelli essenziali di assistenza (LEA);09/04/2018
423;1;0;12.138,00;12.138,00;"AZIENDA ULSS N. 2 ""Marca Trevigiana"""; ;Quota associativa indistinta 1° trim. 2018;09/04/2018;15960;0;139;1;Spese correnti;4;Trasferimenti correnti;1;Trasferimenti correnti a Amministrazioni Pubbliche;2;Trasferimenti correnti a Amministrazioni Locali;21;Trasferimenti correnti a Aziende sanitarie locali  a titolo di finanziamento di livelli di assistenza superiori ai livelli essenziali di assistenza (LEA);09/04/2018
424;1;0;125;16.142,13;B&S ITALIA SPA; ;Rimborso diritti amministrativi ad  12,50 per operazione/polizza;12/04/2018;15900;0;143;1;Spese correnti;10;Altre spese correnti;4;Premi di assicurazione;1;Premi di assicurazione contro i danni;999;Altri premi di assicurazione contro i danni;12/04/2018
424;2;0;149;16.142,13;B&S ITALIA SPA;Z8C22E5B18;Polizza Helvetia polizza All Risk nr. 05/45581299 - appendite per immobile in locazione;12/04/2018;15900;0;143;1;Spese correnti;10;Altre spese correnti;4;Premi di assicurazione;1;Premi di assicurazione contro i danni;999;Altri premi di assicurazione contro i danni;12/04/2018
424;3;0;220;16.142,13;B&S ITALIA SPA;ZE222E5ABE;Polizza RCA 30/136069775 - targa AFL172;12/04/2018;15900;0;143;1;Spese correnti;10;Altre spese correnti;4;Premi di assicurazione;1;Premi di assicurazione contro i danni;999;Altri premi di assicurazione contro i danni;12/04/2018
424;4;0;325,54;16.142,13;B&S ITALIA SPA;ZE222E5ABE;Polizza RCA n. 30/136076495 targa YA628AL;12/04/2018;15900;0;143;1;Spese correnti;10;Altre spese correnti;4;Premi di assicurazione;1;Premi di assicurazione contro i danni;999;Altri premi di assicurazione contro i danni;12/04/2018
424;5;0;330,45;16.142,13;B&S ITALIA SPA;ZE222E5ABE;RCA polizza n. 30/136069822 targa CV094RD;12/04/2018;15900;0;143;1;Spese correnti;10;Altre spese correnti;4;Premi di assicurazione;1;Premi di assicurazione contro i danni;999;Altri premi di assicurazione contro i danni;12/04/2018
424;6;0;381;16.142,13;B&S ITALIA SPA;ZE222E5ABE;Polizza RCA nr. 30/136076631 targa FC097MV;12/04/2018;15900;0;143;1;Spese correnti;10;Altre spese correnti;4;Premi di assicurazione;1;Premi di assicurazione contro i danni;999;Altri premi di assicurazione contro i danni;12/04/2018
424;7;0;710,14;16.142,13;B&S ITALIA SPA;ZE222E5ABE;Polizza RCA n. 30/136076787 targa CW964ZW;12/04/2018;15900;0;143;1;Spese correnti;10;Altre spese correnti;4;Premi di assicurazione;1;Premi di assicurazione contro i danni;999;Altri premi di assicurazione contro i danni;12/04/2018
424;8;0;900;16.142,13;B&S ITALIA SPA;Z0122E5AE3;Polizza n. 131/57633 Unipol Sai ard senza rca;12/04/2018;15900;0;143;1;Spese correnti;10;Altre spese correnti;4;Premi di assicurazione;1;Premi di assicurazione contro i danni;999;Altri premi di assicurazione contro i danni;12/04/2018
424;9;0;1.000,00;16.142,13;B&S ITALIA SPA;Z5322E5A70;Polizza 77/158967799 Unipol Sai Infortuni;12/04/2018;15900;0;143;1;Spese correnti;10;Altre spese correnti;4;Premi di assicurazione;1;Premi di assicurazione contro i danni;999;Altri premi di assicurazione contro i danni;12/04/2018
424;10;0;5.801,00;16.142,13;B&S ITALIA SPA;ZB022E5AFE;Polizza Unipol Sai RCT/O;12/04/2018;15900;0;143;1;Spese correnti;10;Altre spese correnti;4;Premi di assicurazione;1;Premi di assicurazione contro i danni;999;Altri premi di assicurazione contro i danni;12/04/2018
424;11;0;6.200,00;16.142,13;B&S ITALIA SPA;Z8C22E5B18;Polizza Helvetia polizza All Risk nr. 05/45581299;12/04/2018;15900;0;143;1;Spese correnti;10;Altre spese correnti;4;Premi di assicurazione;1;Premi di assicurazione contro i danni;999;Altri premi di assicurazione contro i danni;12/04/2018
425;1;0;1.161,56;1.161,56;DIPENDENTI COMUNALI - STIPENDI; ;STIPENDI MESE DI: APRILE 18;16/04/2018;15000;0;1;1;Spese correnti;3;Acquisto di beni e servizi;2;Acquisto di servizi;1;Organi e incarichi istituzionali dell'amministrazione;1;Organi istituzionali dell'amministrazione - Indennità;16/04/2018
463;1;0;2.160,00;2.160,00;MARCON GIANCARLO;Z710CBB73;SALDO Fatt.n. 000001-2018-FE  del 11/04/2018 Elaborazione dati e gestione adempimenti vari in materia di IVA e IRAP anno 2017;16/04/2018;15545;0;358;1;Spese correnti;3;Acquisto di beni e servizi;2;Acquisto di servizi;17;Servizi finanziari;999;Spese per servizi finanziari n.a.c.;16/04/2018
465;1;0;287,04;287,04;KUWAIT PETROLEUM ITALIA SPA;Z22175C158;ACCONTO Fatt.n. PJ00120749  del 31/03/2018 Carburante automezzi mese di MARZO 2018;16/04/2018;17030;0;42;1;Spese correnti;3;Acquisto di beni e servizi;1;Acquisto di beni;2;Altri beni di consumo;2;Carburanti, combustibili e lubrificanti;16/04/2018
466;1;0;218,04;218,04;KUWAIT PETROLEUM ITALIA SPA;Z22175C158;SALDO Fatt.n. PJ00120749  del 31/03/2018 Carburante automezzi mese di MARZO 2018;16/04/2018;17031;0;43;1;Spese correnti;3;Acquisto di beni e servizi;1;Acquisto di beni;2;Altri beni di consumo;2;Carburanti, combustibili e lubrificanti;16/04/2018
467;1;0;22,19;44,38;"ISTITUTO COMPRENSIVO CONEGLIANO 2 ""G.B. CIMA""";Z1B1FBCDD3;Scelta alternativa libri di testo alunno K.L.E.;16/04/2018;16422;0;267;1;Spese correnti;3;Acquisto di beni e servizi;1;Acquisto di beni;2;Altri beni di consumo;999;Altri beni e materiali di consumo n.a.c.;16/04/2018
467;2;0;22,19;44,38;"ISTITUTO COMPRENSIVO CONEGLIANO 2 ""G.B. CIMA""";Z1B1FBCDD3;Scelta alternativa libri di testo alunno S.A.;16/04/2018;16422;0;267;1;Spese correnti;3;Acquisto di beni e servizi;1;Acquisto di beni;2;Altri beni di consumo;999;Altri beni e materiali di consumo n.a.c.;16/04/2018
468;1;0;131,89;131,89;COMUNE DI MONTEBELLUNA; ;FUNZIONAMENTO DELLA SOTTOCOMMISSIONE ELETTORALE MANDAMENTALE N. 9 CON SEDE IN MONTEBELLUNA PER L'ANNO 2017;16/04/2018;15140;0;395;1;Spese correnti;4;Trasferimenti correnti;1;Trasferimenti correnti a Amministrazioni Pubbliche;2;Trasferimenti correnti a Amministrazioni Locali;3;Trasferimenti correnti a Comuni;16/04/2018
471;1;0;500,2;500,2;SOLUZIONE Srl;Z171D2CCD4;Fatt.n. 0002101042 del 30/03/2018 sc. 30/04/2018 Aggiornamento servizi ragioneria, personale e affari generali anno 2018;16/04/2018;15060;0;86;1;Spese correnti;3;Acquisto di beni e servizi;1;Acquisto di beni;1;Giornali, riviste e pubblicazioni;1;Giornali e riviste;16/04/2018
472;1;0;2.183,04;2.183,04;EURORISTORAZIONE Srl;67023000EE;Fatt.n. 18CPA01152 del 31/03/2018 sc. 30/04/2018 Pasti ALUNNI mese di marzo 2018;16/04/2018;15598;0;37;1;Spese correnti;3;Acquisto di beni e servizi;2;Acquisto di servizi;15;Contratti di servizio pubblico;6;Contratti di servizio per le mense scolastiche;16/04/2018
473;1;0;73,45;73,45;PROCED Srl; ;Fatt.n. 000575 del 28/03/2018 sc. 31/05/2018 Timbri e tamponcini ad uso degli uffici;16/04/2018;15880;0;389;1;Spese correnti;3;Acquisto di beni e servizi;1;Acquisto di beni;2;Altri beni di consumo;1;Carta, cancelleria e stampati;16/04/2018
474;1;0;258,25;258,25;EURORISTORAZIONE Srl;67023000EE;Fatt.n. 18CPA01153 del 31/03/2018 sc. 30/04/2018 Pasti INSEGNANTI mese di marzo 2018;16/04/2018;16437;0;36;1;Spese correnti;3;Acquisto di beni e servizi;1;Acquisto di beni;2;Altri beni di consumo;999;Altri beni e materiali di consumo n.a.c.;16/04/2018
475;1;0;896,7;896,7;I TIGLI2 Coop. Sociale Onlus;ZEE54A92EA;Fatt.n. 200 del 31/03/2018 sc. 30/04/2018 Pulizia STABILI mese di marzo 2018;16/04/2018;16530;0;71;1;Spese correnti;3;Acquisto di beni e servizi;2;Acquisto di servizi;99;Altri servizi;999;Altri servizi diversi n.a.c.;16/04/2018
476;1;0;997,35;997,35;I TIGLI2 Coop. Sociale Onlus;ZEE54A92EA;Fatt.n. 199 del 31/03/2018 sc. 30/04/2018 Pulizia PALESTRA mese di marzo 2018;16/04/2018;16670;0;72;1;Spese correnti;3;Acquisto di beni e servizi;2;Acquisto di servizi;99;Altri servizi;999;Altri servizi diversi n.a.c.;16/04/2018
477;1;0;292,8;292,8;I TIGLI2 Coop. Sociale Onlus;ZEE54A92EA;Fatt.n. 200 del 31/03/2018 sc. 30/04/2018 Pulizia STABILI mese di marzo 2018;16/04/2018;16677;0;73;1;Spese correnti;3;Acquisto di beni e servizi;2;Acquisto di servizi;99;Altri servizi;999;Altri servizi diversi n.a.c.;16/04/2018
478;1;0;549;549;EUROINFISSI Sas;ZCA22C71E2;Fatt.n. 01.E.18 del 23/03/2018 sc. 26/04/2018 Fornitura di un nuovo vetrocamera e accessori per porta sicurezza Sala Polifunzionale;16/04/2018;16750;0;86;1;Spese correnti;3;Acquisto di beni e servizi;2;Acquisto di servizi;9;Manutenzione ordinaria e riparazioni;8;Manutenzione ordinaria e riparazioni di beni immobili;16/04/2018
479;1;0;219,6;219,6;I TIGLI2 Coop. Sociale Onlus;ZEE54A92EA;Fatt.n. 200 del 31/03/2018 sc. 30/04/2018 Pulizia STABILI mese di marzo 2018;16/04/2018;16751;0;74;1;Spese correnti;3;Acquisto di beni e servizi;2;Acquisto di servizi;99;Altri servizi;999;Altri servizi diversi n.a.c.;16/04/2018
480;1;0;606,1;606,1;ALFABET di Sgarbossa Sante & C Snc;Z80229FB1B;"Fatt.n. 3-PA del 30/03/2018 sc. 29/05/2018 Realizzazione 180 quaderni ad anelli per la ""Festa degli alberi 2018""";16/04/2018;16896;0;125;1;Spese correnti;3;Acquisto di beni e servizi;2;Acquisto di servizi;99;Altri servizi;999;Altri servizi diversi n.a.c.;16/04/2018
481;1;0;111,02;111,02;SOLICUM Snc di Zuan Mario; ;Fatt.n. 31/E del 30/03/2018 sc. 31/05/2018 FATTURA MANUTENZIONE IMPIANTO ELETTRICO C/O EDIFICI COMUNALI.;16/04/2018;17015;0;93;1;Spese correnti;3;Acquisto di beni e servizi;2;Acquisto di servizi;9;Manutenzione ordinaria e riparazioni;8;Manutenzione ordinaria e riparazioni di beni immobili;16/04/2018
482;1;0;799,71;799,71;EUROPIAVE Sas di Battistella L. & C.;ZA921DDE26;Fatt.n. 4/PA del 13/04/2018 sc. 31/05/2018 Riparazione trattorino rasaerba;16/04/2018;17022;0;94;1;Spese correnti;3;Acquisto di beni e servizi;2;Acquisto di servizi;9;Manutenzione ordinaria e riparazioni;1;Manutenzione ordinaria e riparazioni di mezzi di trasporto ad uso civile, di sicurezza e ordine pubblico;16/04/2018
483;1;0;53,98;53,98;PROCED Srl; ;Fatt.n. 000575 del 28/03/2018 sc. 31/05/2018 Timbri e tamponcini ad uso degli uffici;16/04/2018;17190;0;60;1;Spese correnti;3;Acquisto di beni e servizi;1;Acquisto di beni;2;Altri beni di consumo;999;Altri beni e materiali di consumo n.a.c.;16/04/2018
484;1;0;227,93;227,93;REPRO Srl; ;Fatt.n. 000011-2018-6 del 31/03/2018 sc. 31/05/2018 Malta pronta, mattone, rubinetto, piastra;16/04/2018;17230;0;105;1;Spese correnti;3;Acquisto di beni e servizi;1;Acquisto di beni;2;Altri beni di consumo;999;Altri beni e materiali di consumo n.a.c.;16/04/2018
485;1;0;493,43;493,43;SOLICUM Snc di Zuan Mario; ;Fatt.n. 30/E del 30/03/2018 sc. 31/05/2018 FATTURA MANUTENZIONE IMPIANTO ELETTRICO ILLUMINAZIONE PUBBLICA.;16/04/2018;17251;0;107;1;Spese correnti;3;Acquisto di beni e servizi;2;Acquisto di servizi;9;Manutenzione ordinaria e riparazioni;8;Manutenzione ordinaria e riparazioni di beni immobili;16/04/2018
486;1;0;15.494,00;15.494,00;HALLEY VENETO Srl;Z442121B5C;Fatt.n. 1/180329 del 20/03/2018 sc. 20/04/2018 Canone di manutenzione software applicativo, assistenza immedia, e-government;16/04/2018;17341;0;38;1;Spese correnti;3;Acquisto di beni e servizi;2;Acquisto di servizi;5;Utenze e canoni;999;Utenze e canoni per altri servizi n.a.c.;16/04/2018
487;1;0;549;549;ACCATRE Srl;Z2522649EB;Fatt.n. 1/180586 del 09/04/2018 sc. 31/05/2018 Certificazione unica per i professionisti per l'anno 2018;16/04/2018;17341;0;119;1;Spese correnti;3;Acquisto di beni e servizi;2;Acquisto di servizi;5;Utenze e canoni;999;Utenze e canoni per altri servizi n.a.c.;16/04/2018
488;1;0;3.023,10;3.023,10;ANDREATTA STEFANO - OFFICINA MECCANICA;Z5F228BE58;Fatt.n. 1/E del 12/03/2018 sc. 11/04/2018 Taglio lamine in ferro e saldatura e riparazione oggetti ed attrezzi vari;16/04/2018;20303;0;122;2;Spese in conto capitale;5;Altre spese in conto capitale;99;Altre spese in conto capitale n.a.c.;99;Altre spese in conto capitale n.a.c.;999;Altre spese in conto capitale n.a.c.;16/04/2018
489;1;0;288,88;288,88;MEROTTO BAU Srl;709679085E;"Fatt.n. FATTPA 11_18 del 22/03/2018 sc. 22/03/2018 Realizzazione cappotto esterno con opere accessorie al centro infanzia ""Il Sorriso"" - STATO FINALE";16/04/2018;20322;0;187;2;Spese in conto capitale;2;Investimenti fissi lordi e acquisto di terreni;3;Beni immateriali;99;Spese di investimento per beni immateriali n.a.c.;1;Spese di investimento per beni immateriali n.a.c.;16/04/2018
490;1;0;683,2;683,2;PRESTI SCAVI Snc di Presti Mirco e Fabrizio;ZCC22104B4;ACCONTO Fatt.n. 6/E  del 31/03/2018 Interventi spargisale, scavo e reinterro fosse mortuarie, sistemazione strade sterrate;16/04/2018;16932;0;90;1;Spese correnti;3;Acquisto di beni e servizi;2;Acquisto di servizi;99;Altri servizi;999;Altri servizi diversi n.a.c.;16/04/2018
491;1;0;1.179,74;7.570,10;PRESTI SCAVI Snc di Presti Mirco e Fabrizio;ZCC22104B4;SALDO Fatt.n. 6/E  del 31/03/2018 Interventi spargisale, scavo e reinterro fosse mortuarie, sistemazione strade sterrate;16/04/2018;17231;0;106;1;Spese correnti;3;Acquisto di beni e servizi;2;Acquisto di servizi;9;Manutenzione ordinaria e riparazioni;8;Manutenzione ordinaria e riparazioni di beni immobili;16/04/2018
491;2;0;1.937,36;7.570,10;PRESTI SCAVI Snc di Presti Mirco e Fabrizio;ZCC22104B4;SALDO Fatt.n. 5/E  del 31/03/2018 Sistemazione parchi giochi;16/04/2018;17231;0;106;1;Spese correnti;3;Acquisto di beni e servizi;2;Acquisto di servizi;9;Manutenzione ordinaria e riparazioni;8;Manutenzione ordinaria e riparazioni di beni immobili;16/04/2018
491;3;0;4.453,00;7.570,10;PRESTI SCAVI Snc di Presti Mirco e Fabrizio;Z9C208631E;SALDO Fatt.n. 4/E  del 26/03/2018 Sfalcio erba cigli stradali e taglio siepi periodo lug/dic 2017;16/04/2018;17231;0;106;1;Spese correnti;3;Acquisto di beni e servizi;2;Acquisto di servizi;9;Manutenzione ordinaria e riparazioni;8;Manutenzione ordinaria e riparazioni di beni immobili;16/04/2018
492;1;0;7.076,00;7.076,00;BOXXAPPS Srl;ZCA1EBDB42;SALDO Fatt.n. 1/180165  del 27/03/2018 Servizi x-server, x-firewall e x-antivirus per l'anno 2018;16/04/2018;17341;0;188;1;Spese correnti;3;Acquisto di beni e servizi;2;Acquisto di servizi;5;Utenze e canoni;999;Utenze e canoni per altri servizi n.a.c.;16/04/2018
493;1;0;44;44;PREFETTURA DI TREVISO; ;impegno di spesa acquisto carte identita n. 100;18/04/2018;15130;0;146;1;Spese correnti;3;Acquisto di beni e servizi;1;Acquisto di beni;2;Altri beni di consumo;1;Carta, cancelleria e stampati;18/04/2018
494;1;0;11.871,65;30.737,78;SOLICUM Snc di Zuan Mario;Z6B21574FF;"SALDO Fatt.n. 34/E  del 16/04/2018 MESSA IN SICUREZZA E ADEGUAMENTO ANTINCENDIO - OPERE ELETTRICHE PALESTRA DELLA SCUOLA ""E. DE AMICIS""";26/04/2018;20325;0;398;2;Spese in conto capitale;2;Investimenti fissi lordi e acquisto di terreni;3;Beni immateriali;99;Spese di investimento per beni immateriali n.a.c.;1;Spese di investimento per beni immateriali n.a.c.;26/04/2018
494;2;0;18.866,13;30.737,78;SOLICUM Snc di Zuan Mario;Z6B21574FF;"SALDO Fatt.n. 33/E  del 16/04/2018 OPERE ELETTRICHE PALESTRA DELLA SCUOLA ""E. DE AMICIS"" - FORNITURA E POSA DI NUOVI APPARECCHI ILLUMINAZIONE A LED - DM 16/02/16 INTERVENTO 1.F";26/04/2018;20325;0;398;2;Spese in conto capitale;2;Investimenti fissi lordi e acquisto di terreni;3;Beni immateriali;99;Spese di investimento per beni immateriali n.a.c.;1;Spese di investimento per beni immateriali n.a.c.;26/04/2018
495;1;0;900,44;900,44;"FONDAZIONE ""CASA PER ANZIANI"" ONLUS"; ;Fatt.n. 18/PA del 30/03/2018 sc. 30/03/2018 Retta di ricovero G.V. mese di MARZO 2018;27/04/2018;15970;0;68;1;Spese correnti;4;Trasferimenti correnti;1;Trasferimenti correnti a Amministrazioni Pubbliche;2;Trasferimenti correnti a Amministrazioni Locali;14;Trasferimenti correnti a Istituti di ricovero e cura a carattere scientifico pubblici n.a.f.;27/04/2018
496;1;0;10,98;10,98;CIA SERVIZI TREVISO Srl;Z640E5068D;Fatt.n. 0000004/PA del 26/03/2018 sc. 31/03/2018 Servizi di consulenza pratiche bonus gas/energia elaborate nel corso del 2017;27/04/2018;16010;0;333;1;Spese correnti;3;Acquisto di beni e servizi;2;Acquisto di servizi;99;Altri servizi;999;Altri servizi diversi n.a.c.;27/04/2018
497;1;0;11.550,00;11.550,00;COOPERATIVA ITACA Scarl;Z2A1C0EC38;"Fatt.n. 607/PA del 31/03/2018 sc. 30/04/2018 Realizzazione progetto ""Young destination"" all'interno dell'iniziativa regionale ""Fotogrammi veneti"": 4^ acconto";27/04/2018;16102;0;378;1;Spese correnti;3;Acquisto di beni e servizi;2;Acquisto di servizi;99;Altri servizi;999;Altri servizi diversi n.a.c.;27/04/2018
498;1;0;19,64;19,64;PROVINCIA DI TREVISO;7366017585;SERVIZIO TRASPORTO SCOLASTICO DEGLI ALUNNI DELLA LOCALE SCUOLA PRIMARIA. ANNI SCOLASTICI  2018/19, 2019/20 E 2020/21. RIMBORSO SPESE ANAC;27/04/2018;15101;0;75;1;Spese correnti;3;Acquisto di beni e servizi;2;Acquisto di servizi;11;Prestazioni professionali e specialistiche;999;Altre prestazioni professionali e specialistiche n.a.c.;27/04/2018
500;1;0;352,63;352,63;TIM Spa;ZF519442C8;SALDO Fatt.n. 7X01805761  del 16/04/2018 Telefonia mobile 3^ bim. 2018;27/04/2018;15891;0;128;1;Spese correnti;3;Acquisto di beni e servizi;2;Acquisto di servizi;5;Utenze e canoni;2;Telefonia mobile;27/04/2018
503;1;0;2.457,50;2.457,50;B&S ITALIA SPA;ZD423248DA;Copertura assicurativa Ente per RC Patrimoniale CIG ZD423248DA;09/05/2018;15900;0;150;1;Spese correnti;10;Altre spese correnti;4;Premi di assicurazione;1;Premi di assicurazione contro i danni;999;Altri premi di assicurazione contro i danni;09/05/2018
504;1;0;904;904;GRUPPO ALPINI DI MORIAGO-PRES. FURLAN DANIELE; ;SERVIZIO DI VOLONTARIATO VIGILANZA STRADALE ALUNNI PRESSO LE SCUOLE DELL'OBBLIGO DEL COMUNE DI MORIAGO DELLA BATTAGLIA ANNO SCOLASTICO 2017/2018.  PAGAMENTO CONTRIBUTO RELATIVO AL SERVIZIO SVOLTO NEI MESI DI MARZO ED APRILE 2018 COME DA RICHIESTSA PR;09/05/2018;16104;0;332;1;Spese correnti;4;Trasferimenti correnti;4;Trasferimenti correnti a Istituzioni Sociali Private;1;Trasferimenti correnti a Istituzioni Sociali Private;1;Trasferimenti correnti a Istituzioni Sociali Private;09/05/2018
505;1;0;1.220,90;1.220,90;PANSOLIN MARIAGRAZIA - DIPENDENTE COMUNALE; ;ELEZIONI DEL SINDACO E DEL CONSIGLIO COMUNALE DI DOMENICA 10-06-2018 - IMPEGNO DI SPESA E LIQUIDAZIONE PER SPEDIZIONE CARTOLINE-AVVISO AGLI ELETTORI RESIDENTI ALL'ESTERO.;14/05/2018;15035;0;155;1;Spese correnti;3;Acquisto di beni e servizi;1;Acquisto di beni;2;Altri beni di consumo;10;Beni per consultazioni elettorali;14/05/2018
506;1;0;2.600,00;2.600,00;CONSORZIO DI BONIFICA PIAVE; ;A 020181002517330 CF 00486670268 - Contributo bonifica, per irrigazione e concessione anno 2018;14/05/2018;15920;0;157;1;Spese correnti;4;Trasferimenti correnti;1;Trasferimenti correnti a Amministrazioni Pubbliche;2;Trasferimenti correnti a Amministrazioni Locali;18;Trasferimenti correnti a Consorzi di enti locali;14/05/2018
507;1;0;500;500;CONSORZIO DI BONIFICA PIAVE; ;A 020181002517330 CF 00486670268 - Contributo bonifica, per irrigazione e concessione anno 2018;14/05/2018;15690;0;423;1;Spese correnti;10;Altre spese correnti;99;Altre spese correnti n.a.c.;99;Altre spese correnti n.a.c.;999;Altre spese correnti n.a.c.;14/05/2018
508;1;0;70,56;70,56;CONSORZIO DI BONIFICA PIAVE; ;A 020181002517330 CF 00486670268 - Contributo bonifica, per irrigazione e concessione anno 2018;14/05/2018;17231;0;106;1;Spese correnti;3;Acquisto di beni e servizi;2;Acquisto di servizi;9;Manutenzione ordinaria e riparazioni;8;Manutenzione ordinaria e riparazioni di beni immobili;14/05/2018
509;1;0;2.500,00;2.500,00;PITNEY BOWES ITALIA Srl; ;LIQUIDAZONE PER AFFRANCATRICE POSTALE DM110I DELLA PITNEY BOWES SRL DI MILANO.;14/05/2018;15081;0;158;1;Spese correnti;3;Acquisto di beni e servizi;2;Acquisto di servizi;16;Servizi amministrativi;2;Spese postali;14/05/2018
510;1;0;12.138,00;12.138,00;"AZIENDA ULSS N. 2 ""Marca Trevigiana"""; ;"SERVIZI SOCIALI ANNO 2018: GESTIONE ASSOCIATA, TRASPORTO DISABILI, ASSISTENZA POLIVALENTE A PORTATORI DI HANDICAP. IMPEGNO E LIQUIDAZIONE DI SPESA A FAVORE DELL' ""AZIENDA ULSS N. 2 MARCA TREVIGIANA"" DISTRETTO DI PIEVE DI SOLIGO PER IL II^ TRIMESTRE 2";15/05/2018;15960;0;162;1;Spese correnti;4;Trasferimenti correnti;1;Trasferimenti correnti a Amministrazioni Pubbliche;2;Trasferimenti correnti a Amministrazioni Locali;21;Trasferimenti correnti a Aziende sanitarie locali  a titolo di finanziamento di livelli di assistenza superiori ai livelli essenziali di assistenza (LEA);15/05/2018
511;1;0;1.848,91;1.848,91;"AZIENDA ULSS N. 2 ""Marca Trevigiana"""; ;"SERVIZI SOCIALI ANNO 2018: GESTIONE ASSOCIATA, TRASPORTO DISABILI, ASSISTENZA POLIVALENTE A PORTATORI DI HANDICAP. IMPEGNO E LIQUIDAZIONE DI SPESA A FAVORE DELL' ""AZIENDA ULSS N. 2 MARCA TREVIGIANA"" DISTRETTO DI PIEVE DI SOLIGO PER IL II^ TRIMESTRE 2";15/05/2018;15950;0;163;1;Spese correnti;4;Trasferimenti correnti;1;Trasferimenti correnti a Amministrazioni Pubbliche;2;Trasferimenti correnti a Amministrazioni Locali;21;Trasferimenti correnti a Aziende sanitarie locali  a titolo di finanziamento di livelli di assistenza superiori ai livelli essenziali di assistenza (LEA);15/05/2018
512;1;0;7.245,60;7.245,60;"AZIENDA ULSS N. 2 ""Marca Trevigiana"""; ;"SERVIZI SOCIALI ANNO 2018: GESTIONE ASSOCIATA, TRASPORTO DISABILI, ASSISTENZA POLIVALENTE A PORTATORI DI HANDICAP. IMPEGNO E LIQUIDAZIONE DI SPESA A FAVORE DELL' ""AZIENDA ULSS N. 2 MARCA TREVIGIANA"" DISTRETTO DI PIEVE DI SOLIGO PER IL II^ TRIMESTRE 2";15/05/2018;15940;0;164;1;Spese correnti;4;Trasferimenti correnti;1;Trasferimenti correnti a Amministrazioni Pubbliche;2;Trasferimenti correnti a Amministrazioni Locali;21;Trasferimenti correnti a Aziende sanitarie locali  a titolo di finanziamento di livelli di assistenza superiori ai livelli essenziali di assistenza (LEA);15/05/2018
513;1;0;25;25;COMUNE DI PIEVE DI SOLIGO; ;Convenzione per la progettazione e la realizzazione di interventi in materia di politiche giovanili. Impegno di spesa e versamento quota di partecipazione per l'utilizzo del centro giovani Giove a favore del Comune di pieve di Soligo per l'anno 2018.;15/05/2018;16025;0;165;1;Spese correnti;4;Trasferimenti correnti;2;Trasferimenti correnti a Famiglie;5;Altri trasferimenti a famiglie;999;Altri trasferimenti a famiglie n.a.c.;15/05/2018
514;1;0;140,59;140,59;ANCI VENETO; ;ADESIONE ALL'ASSOCIAZIONE REGIONALE COMUNI DEL VENETO (ANCI VENETO) PER L'ANNO 2018. IMPEGNO DI SPESA E LIQUIDAZIONE.;15/05/2018;15003;0;166;1;Spese correnti;4;Trasferimenti correnti;1;Trasferimenti correnti a Amministrazioni Pubbliche;2;Trasferimenti correnti a Amministrazioni Locali;999;Trasferimenti correnti a altre Amministrazioni Locali n.a.c.;15/05/2018
515;1;0;265,62;265,62;PILLON MARIKA  ECONOMO COMUNALE; ;Rimborso bolletta N.    25 del  24-02-18 Acquisto federe, lenzuola, coperte ecc per letti militari seggi elettorali del 4.3.2018 - scontr.fisc.n. 2131 0041/013/032 del 20.2.2018 Bennet Spa di Pieve di Soligo (TV);16/05/2018;15130;0;167;1;Spese correnti;3;Acquisto di beni e servizi;1;Acquisto di beni;2;Altri beni di consumo;1;Carta, cancelleria e stampati;16/05/2018
516;1;0;64;64;PILLON MARIKA  ECONOMO COMUNALE; ;"Rimborso bolletta N.    14 del  06-02-18 Pagamento volume ""Legge di bilancio 2018"" - Maggioli Spa - ricevuta fiscale n. 4900452 del 31.1.2018 pagato con economato in data 6.2.2018";16/05/2018;15880;0;168;1;Spese correnti;3;Acquisto di beni e servizi;1;Acquisto di beni;2;Altri beni di consumo;1;Carta, cancelleria e stampati;16/05/2018
517;1;0;20;80;PILLON MARIKA  ECONOMO COMUNALE; ;Rimborso bolletta N.    19 del  15-02-18 Ricariche schede sim - una per stabile Casa del Musichiere e una per magazzino IPC come da scontr.fisc.n. 4 e n. 5 del 15.2.2018 Lineauto e Casa di Dorigo Igino di Pieve di Soligo (TV);16/05/2018;15891;0;133;1;Spese correnti;3;Acquisto di beni e servizi;2;Acquisto di servizi;5;Utenze e canoni;2;Telefonia mobile;16/05/2018
517;2;0;30;80;PILLON MARIKA  ECONOMO COMUNALE; ;"Rimborso bolletta N.     6 del  16-01-18 Ricarica SIM ""Moriago Racconta"" - come da ricevuta transazione automatica Intesa Sanpaolo n. 842210 del 16.1.2018";16/05/2018;15891;0;133;1;Spese correnti;3;Acquisto di beni e servizi;2;Acquisto di servizi;5;Utenze e canoni;2;Telefonia mobile;16/05/2018
517;3;0;30;80;PILLON MARIKA  ECONOMO COMUNALE; ;"Rimborso bolletta N.    35 del  26-03-18 Ricarica SIM ""Moriago Racconta"" - come da ricevuta transazione automatica Intesa Sanpaolo n. 913601 del 26.3..2018";16/05/2018;15891;0;133;1;Spese correnti;3;Acquisto di beni e servizi;2;Acquisto di servizi;5;Utenze e canoni;2;Telefonia mobile;16/05/2018
518;1;0;7,3;245,4;PILLON MARIKA  ECONOMO COMUNALE; ;Rimborso bolletta N.     3 del  13-01-18 Rinfresco per inaugurazione mostra di pittura Sozza - Festival della Cultura 2017/2018 - come da scontrino fiscale n. 88 del 13.1.2018 Panificio Persico di Moriago della Battaglia - TV;16/05/2018;16105;0;169;1;Spese correnti;3;Acquisto di beni e servizi;2;Acquisto di servizi;99;Altri servizi;999;Altri servizi diversi n.a.c.;16/05/2018
518;2;0;8;245,4;PILLON MARIKA  ECONOMO COMUNALE; ;Rimborso bolletta N.     5 del  15-01-18 Acquisto stampati per Festival della Cultura - come da scontrino fiscale n. 20 del 15.1.2018 Cartoleria Mi.Da di Farra di Soligo - TV;16/05/2018;16105;0;169;1;Spese correnti;3;Acquisto di beni e servizi;2;Acquisto di servizi;99;Altri servizi;999;Altri servizi diversi n.a.c.;16/05/2018
518;3;0;8,5;245,4;PILLON MARIKA  ECONOMO COMUNALE; ;"Rimborso bolletta N.    16 del  10-02-18 Fornitura rinfresco (pane) offerto dall'Amministrazione comunale nel corso inaugurazione mostra festival della cultura ""Lo scatto del tempo. Scontr.fisc.n. 152  del 10.2.2018 Panificio Collanega di Moriago";16/05/2018;16105;0;169;1;Spese correnti;3;Acquisto di beni e servizi;2;Acquisto di servizi;99;Altri servizi;999;Altri servizi diversi n.a.c.;16/05/2018
518;4;0;9,5;245,4;PILLON MARIKA  ECONOMO COMUNALE; ;Rimborso bolletta N.    13 del  06-02-18 Diritti pubbliche affissioni pagati al Comune di Pieve di Soligo - mediante ccp n. 1039788680 Tesoreria Pieve di S. Tem 512/20187MB/Pieve  8,00 +  1,50 diritti ccp del 6.2.2018;16/05/2018;16105;0;169;1;Spese correnti;3;Acquisto di beni e servizi;2;Acquisto di servizi;99;Altri servizi;999;Altri servizi diversi n.a.c.;16/05/2018
518;5;0;9,5;245,4;PILLON MARIKA  ECONOMO COMUNALE; ;Rimborso bolletta N.    33 del  23-03-18 Pagamento diritti pubbliche affissioni per mostra Grillos come da dichiarazione Abaco Spa  n. 684/2018/Pieve di Soligo - pagamento mediante ccp - del 23.3.2018;16/05/2018;16105;0;169;1;Spese correnti;3;Acquisto di beni e servizi;2;Acquisto di servizi;99;Altri servizi;999;Altri servizi diversi n.a.c.;16/05/2018
518;6;0;10;245,4;PILLON MARIKA  ECONOMO COMUNALE; ;Rimborso bolletta N.     2 del  13-01-18 Rinfresco (pane)  per inaugurazione mostra di pittura Sozza - Festival della Cultura 2017/2018 - come da scontrino fiscale n. 153 del 13.1.2018 Panificio Collanega di Moriago della Battaglia - TV;16/05/2018;16105;0;169;1;Spese correnti;3;Acquisto di beni e servizi;2;Acquisto di servizi;99;Altri servizi;999;Altri servizi diversi n.a.c.;16/05/2018
518;7;0;18,87;245,4;PILLON MARIKA  ECONOMO COMUNALE; ;"Rimborso bolletta N.    15 del  10-02-18 Fornitura rinfresco (affettato misto) offerto dall'Amministrazione comunale nel corso inaugurazione mostra festival della cultura ""Lo scatto del tempo. Scontr.fisc.n. 213  del 10.2.2018 Colomberotto Spa di";16/05/2018;16105;0;169;1;Spese correnti;3;Acquisto di beni e servizi;2;Acquisto di servizi;99;Altri servizi;999;Altri servizi diversi n.a.c.;16/05/2018
518;8;0;20;245,4;PILLON MARIKA  ECONOMO COMUNALE; ;Rimborso bolletta N.     9 del  30-01-18 Fornitura pizzette per incontri presso la sede municipale dei bambini frequentanti la scuola elementare - incontro cittadinanza attiva del 30.1.2018 - scontrino fisc.n. 42 del 30.1.2018 Panificio Collanega;16/05/2018;16105;0;169;1;Spese correnti;3;Acquisto di beni e servizi;2;Acquisto di servizi;99;Altri servizi;999;Altri servizi diversi n.a.c.;16/05/2018
518;9;0;20;245,4;PILLON MARIKA  ECONOMO COMUNALE; ;Rimborso bolletta N.    10 del  31-01-18 Fornitura pizzette per incontri presso la sede municipale dei bambini frequentanti la scuola elementare - incontro cittadinanza attiva del 31.1.2018 - scontrino fisc.n. 56 del 31.1.2018 Panificio Collanega;16/05/2018;16105;0;169;1;Spese correnti;3;Acquisto di beni e servizi;2;Acquisto di servizi;99;Altri servizi;999;Altri servizi diversi n.a.c.;16/05/2018
518;10;0;20,49;245,4;PILLON MARIKA  ECONOMO COMUNALE; ;Rimborso bolletta N.     7 del  27-01-18 Fornitura bibite per incontri presso la sede municipale dei bambini frequentanti la scuola elementare - incontro cittadinanza attiva del 30.1.2018 - scontrino fisc.n. 93 del 27.1.2018 Alì di Vidor;16/05/2018;16105;0;169;1;Spese correnti;3;Acquisto di beni e servizi;2;Acquisto di servizi;99;Altri servizi;999;Altri servizi diversi n.a.c.;16/05/2018
518;11;0;21;245,4;PILLON MARIKA  ECONOMO COMUNALE; ;Rimborso bolletta N.    32 del  23-03-18 Pagamento diritti pubbliche affissioni per mostra Grillos come da dichiarazione Abaco n. 684/2018/Comuni vari del 23.3.2018;16/05/2018;16105;0;169;1;Spese correnti;3;Acquisto di beni e servizi;2;Acquisto di servizi;99;Altri servizi;999;Altri servizi diversi n.a.c.;16/05/2018
518;12;0;30;245,4;PILLON MARIKA  ECONOMO COMUNALE; ;Rimborso bolletta N.     4 del  13-01-18 Versamento diritti pubbliche affissioni per mostra di pittura Sozza festival del cultura - dichiarazione Abaco n. 281/2018/Comuni vari del 8.1.2018;16/05/2018;16105;0;169;1;Spese correnti;3;Acquisto di beni e servizi;2;Acquisto di servizi;99;Altri servizi;999;Altri servizi diversi n.a.c.;16/05/2018
518;13;0;30;245,4;PILLON MARIKA  ECONOMO COMUNALE; ;Rimborso bolletta N.    12 del  01-02-18 Versamento diritti pubbliche affissioni per mostra fotografica - festival del cultura - dichiarazione Abaco n. 512/2018/Comuni vari del 30.1.2018;16/05/2018;16105;0;169;1;Spese correnti;3;Acquisto di beni e servizi;2;Acquisto di servizi;99;Altri servizi;999;Altri servizi diversi n.a.c.;16/05/2018
518;14;0;32,24;245,4;PILLON MARIKA  ECONOMO COMUNALE; ;Rimborso bolletta N.     1 del  13-01-18 Rinfresco (affettati)  per inaugurazione mostra di pittura Sozza - Festival della Cultura 2017/2018 - come da scontrino fiscale n. 209 del 13.1.2018 Colomberotto Spa di Moriago della Battaglia - TV;16/05/2018;16105;0;169;1;Spese correnti;3;Acquisto di beni e servizi;2;Acquisto di servizi;99;Altri servizi;999;Altri servizi diversi n.a.c.;16/05/2018
519;1;0;21,6;96,95;PILLON MARIKA  ECONOMO COMUNALE; ;Rimborso bolletta N.     8 del  28-01-18 Acquisto n. 2 volumi della costituzione per la cittadinanza attiva - CCR - come da scontr.fisc.n. 146 del 28.1.2018 Libreria Lovat di Villorba - TV;16/05/2018;16151;0;170;1;Spese correnti;3;Acquisto di beni e servizi;2;Acquisto di servizi;99;Altri servizi;999;Altri servizi diversi n.a.c.;16/05/2018
519;2;0;75,35;96,95;PILLON MARIKA  ECONOMO COMUNALE; ;Rimborso bolletta N.    30 del  23-03-18 Spese organizzazione da politiche giovanili lab. asili da parte del C.C.R.i (S.F. n. 22 20.3.18 Cart. Battivello di Pieve di S. - S.F. n. 18 del 23.3.18 n. 36 del 15.3.18 e n. 38 del 13.3.18 Emitex di Pieve;16/05/2018;16151;0;170;1;Spese correnti;3;Acquisto di beni e servizi;2;Acquisto di servizi;99;Altri servizi;999;Altri servizi diversi n.a.c.;16/05/2018
520;1;0;37,02;161,26;PILLON MARIKA  ECONOMO COMUNALE; ;Rimborso bolletta N.    22 del  15-02-18 Pagamento bollo veicolo comunale in dotazione polizia locale targato YA628AL  scadenza 31.1.2019 - effettuato mediante esattore Aci di Valdobbiadene (TV);16/05/2018;17022;0;171;1;Spese correnti;3;Acquisto di beni e servizi;2;Acquisto di servizi;9;Manutenzione ordinaria e riparazioni;1;Manutenzione ordinaria e riparazioni di mezzi di trasporto ad uso civile, di sicurezza e ordine pubblico;16/05/2018
520;2;0;62,12;161,26;PILLON MARIKA  ECONOMO COMUNALE; ;Rimborso bolletta N.    20 del  15-02-18 Pagamento bollo veicolo comunale targato FC097MV scadenza 31.1.2019 - effettuato mediante esattore Aci di Valdobbiadene (TV);16/05/2018;17022;0;171;1;Spese correnti;3;Acquisto di beni e servizi;2;Acquisto di servizi;9;Manutenzione ordinaria e riparazioni;1;Manutenzione ordinaria e riparazioni di mezzi di trasporto ad uso civile, di sicurezza e ordine pubblico;16/05/2018
520;3;0;62,12;161,26;PILLON MARIKA  ECONOMO COMUNALE; ;Rimborso bolletta N.    21 del  15-02-18 Pagamento bollo veicolo comunale targato CW964ZW  scadenza 31.1.2019 - effettuato mediante esattore Aci di Valdobbiadene (TV);16/05/2018;17022;0;171;1;Spese correnti;3;Acquisto di beni e servizi;2;Acquisto di servizi;9;Manutenzione ordinaria e riparazioni;1;Manutenzione ordinaria e riparazioni di mezzi di trasporto ad uso civile, di sicurezza e ordine pubblico;16/05/2018
521;1;0;20;40;PILLON MARIKA  ECONOMO COMUNALE; ;Rimborso bolletta N.    23 del  15-02-18 Fornitura straordinaria carburante non a mezzo conv. Mepa causa malfunzionamento self service con scheda - dichiarazione Breda Chiara datata 15.2.2018;16/05/2018;17030;0;42;1;Spese correnti;3;Acquisto di beni e servizi;1;Acquisto di beni;2;Altri beni di consumo;2;Carburanti, combustibili e lubrificanti;16/05/2018
521;2;0;20;40;PILLON MARIKA  ECONOMO COMUNALE; ;Rimborso bolletta N.    26 del  24-02-18 Fornitura straordinaria carburante non a mezzo conv. Mepa causa malfunzionamento self service con scheda - dichiarazione Pillon Marika datata 22.2.2018 Corso TV marcacontabile tra bilancio e rendiconto;16/05/2018;17030;0;42;1;Spese correnti;3;Acquisto di beni e servizi;1;Acquisto di beni;2;Altri beni di consumo;2;Carburanti, combustibili e lubrificanti;16/05/2018
522;1;0;5;10;PILLON MARIKA  ECONOMO COMUNALE; ;Rimborso bolletta N.    17 del  14-02-18 Spesa per lavaggio auto polizia locale - scontr.fisc.n. 5 del 14.2.2018 Autolavaggio De Lazzari Flavio di Postioma (TV);16/05/2018;17031;0;43;1;Spese correnti;3;Acquisto di beni e servizi;1;Acquisto di beni;2;Altri beni di consumo;2;Carburanti, combustibili e lubrificanti;16/05/2018
522;2;0;5;10;PILLON MARIKA  ECONOMO COMUNALE; ;Rimborso bolletta N.    29 del  20-03-18 Lavaggio auto polizia locale - scontr.fisc.n. 12 del 20.3.2018 Autolavaggio De Lazzari Flavio di Postioma (TV);16/05/2018;17031;0;43;1;Spese correnti;3;Acquisto di beni e servizi;1;Acquisto di beni;2;Altri beni di consumo;2;Carburanti, combustibili e lubrificanti;16/05/2018
523;1;0;50;345,5;PILLON MARIKA  ECONOMO COMUNALE; ;Rimborso bolletta N.    18 del  15-02-18 Acquisto cassettina pronto soccorso per sede comunale - scontr.fisc. N. 9 del 15.2.2018 Fanti Ferramenta snc di Vendramini V. di Sernaglia della Batt. (TV);16/05/2018;17190;0;60;1;Spese correnti;3;Acquisto di beni e servizi;1;Acquisto di beni;2;Altri beni di consumo;999;Altri beni e materiali di consumo n.a.c.;16/05/2018
523;2;0;86;345,5;PILLON MARIKA  ECONOMO COMUNALE; ;Rimborso bolletta N.    24 del  24-02-18 Acquisto cassettine pronto soccorso per stabili comunali minori - scontr.fisc. N. 8 del 20.2.2018 Fanti Ferramenta snc di Vendramini V. di Sernaglia della Batt. (TV);16/05/2018;17190;0;60;1;Spese correnti;3;Acquisto di beni e servizi;1;Acquisto di beni;2;Altri beni di consumo;999;Altri beni e materiali di consumo n.a.c.;16/05/2018
523;3;0;209,5;345,5;PILLON MARIKA  ECONOMO COMUNALE; ;Rimborso bolletta N.    27 del  24-02-18 Fornitura n. 2 supporti parete per monitor per Casa del Musichiere - festival della cultura - e convertitore, come da scontrini fisc. SME di Susegana (TV) n. 28  e n. 4 del 24.2.2018;16/05/2018;17190;0;60;1;Spese correnti;3;Acquisto di beni e servizi;1;Acquisto di beni;2;Altri beni di consumo;999;Altri beni e materiali di consumo n.a.c.;16/05/2018
524;1;0;5,2;131,2;PILLON MARIKA  ECONOMO COMUNALE; ;Rimborso bolletta N.    31 del  23-03-18 Acquisto sacco da 25kg convime per aree verdi comunali - S.F. n. 6 del 23.3.18 Gruppo Manara Spa di Colbertaldo di Vidor (TV);16/05/2018;17191;0;172;1;Spese correnti;3;Acquisto di beni e servizi;1;Acquisto di beni;2;Altri beni di consumo;999;Altri beni e materiali di consumo n.a.c.;16/05/2018
524;2;0;16,5;131,2;PILLON MARIKA  ECONOMO COMUNALE; ;Rimborso bolletta N.    28 del  27-02-18 Acquisto di n. 2 mezzi pali 0-10 h. 400 per montaggio giochi aree verdi comunali come da scontr.fisc.n. 7 del 27.2.2018 Gruppo Manara spa di Colbertaldo di Vidor (TV);16/05/2018;17191;0;172;1;Spese correnti;3;Acquisto di beni e servizi;1;Acquisto di beni;2;Altri beni di consumo;999;Altri beni e materiali di consumo n.a.c.;16/05/2018
524;3;0;29,5;131,2;PILLON MARIKA  ECONOMO COMUNALE; ;Rimborso bolletta N.    11 del  01-02-18 Fornitura lama per cesoia trancia in dotazione operai comunali - come da scontr.fisc. N. 5 del 1.2.2018 Consorzio Agrario TV/BL di Col San Martino - TV;16/05/2018;17191;0;172;1;Spese correnti;3;Acquisto di beni e servizi;1;Acquisto di beni;2;Altri beni di consumo;999;Altri beni e materiali di consumo n.a.c.;16/05/2018
524;4;0;80;131,2;PILLON MARIKA  ECONOMO COMUNALE; ;Rimborso bolletta N.    34 del  26-03-18 Acqusto sementi per aree verdi comunali - scontr.fisc.n. 36 del 26.3.2018 Consorzio Agrario TV e BL di Col San Martino (TV);16/05/2018;17191;0;172;1;Spese correnti;3;Acquisto di beni e servizi;1;Acquisto di beni;2;Altri beni di consumo;999;Altri beni e materiali di consumo n.a.c.;16/05/2018
525;1;0;1.161,56;1.161,56;DIPENDENTI COMUNALI - STIPENDI; ;STIPENDI MESE DI: MAGGIO 18;18/05/2018;15000;0;1;1;Spese correnti;3;Acquisto di beni e servizi;2;Acquisto di servizi;1;Organi e incarichi istituzionali dell'amministrazione;1;Organi istituzionali dell'amministrazione - Indennità;18/05/2018
565;1;0;72;72;KUWAIT PETROLEUM ITALIA SPA;Z22175C158;ACCONTO Fatt.n. PJ00124793  del 30/04/2018 Carburante mese di APRILE 2018;21/05/2018;17031;0;43;1;Spese correnti;3;Acquisto di beni e servizi;1;Acquisto di beni;2;Altri beni di consumo;2;Carburanti, combustibili e lubrificanti;21/05/2018
566;1;0;379,76;379,76;KUWAIT PETROLEUM ITALIA SPA;Z22175C158;SALDO Fatt.n. PJ00124793  del 30/04/2018 Carburante mese di APRILE 2018;21/05/2018;17030;0;42;1;Spese correnti;3;Acquisto di beni e servizi;1;Acquisto di beni;2;Altri beni di consumo;2;Carburanti, combustibili e lubrificanti;21/05/2018
567;1;0;634,4;634,4;MANGANELLA GIANCARLO;ZA422A67D6;SALDO Fatt.n. FATTPA 2_18  del 17/04/2018 Denuncia annuale ad Agenzia delle Dogane di n. 2 impianti fotovoltaici e trasmissione al GSE;21/05/2018;17160;0;126;1;Spese correnti;3;Acquisto di beni e servizi;2;Acquisto di servizi;11;Prestazioni professionali e specialistiche;999;Altre prestazioni professionali e specialistiche n.a.c.;21/05/2018
569;1;0;442;442;HALLEY VENETO Srl;ZAB22583B4;Fatt.n. 1/180548 del 16/05/2018 sc. 16/06/2018 Avviamento postazione C.I.E.;21/05/2018;15070;0;428;1;Spese correnti;3;Acquisto di beni e servizi;2;Acquisto di servizi;4;Acquisto di servizi per formazione e addestramento del personale dell'ente;999;Acquisto di servizi per altre spese per formazione e addestramento n.a.c.;21/05/2018
570;1;0;79,51;884,71;SICURITALIA S.P.A.;Z391F0B0BF;Fatt.n. 9117001564 del 13/04/2018 sc. 13/05/2018 Servizio di pronto intervento c/o MUSICHIERE;21/05/2018;15181;0;215;1;Spese correnti;3;Acquisto di beni e servizi;2;Acquisto di servizi;99;Altri servizi;999;Altri servizi diversi n.a.c.;21/05/2018
570;2;0;84,18;884,71;SICURITALIA S.P.A.;Z391F0B0BF;Fatt.n. 9117001539 del 03/04/2018 sc. 03/05/2018 Servizio di pronto intervento c/o MUNICIPIO (sede provvisoria);21/05/2018;15181;0;215;1;Spese correnti;3;Acquisto di beni e servizi;2;Acquisto di servizi;99;Altri servizi;999;Altri servizi diversi n.a.c.;21/05/2018
570;3;0;721,02;884,71;SICURITALIA S.P.A.;Z391F0B0BF;Fatt.n. 9117001404 del 03/04/2018 sc. 03/05/2018 Vigilanza stabili comunali;21/05/2018;15181;0;215;1;Spese correnti;3;Acquisto di beni e servizi;2;Acquisto di servizi;99;Altri servizi;999;Altri servizi diversi n.a.c.;21/05/2018
571;1;0;5.225,69;5.225,69;SOLIGO VIAGGI Sas;6318150E4E;Fatt.n. PA/103 del 28/04/2018 sc. 28/05/2018 Trasporto scolastico mese di APRILE 2018;21/05/2018;15861;0;67;1;Spese correnti;3;Acquisto di beni e servizi;2;Acquisto di servizi;15;Contratti di servizio pubblico;2;Contratti di servizio di trasporto scolastico;21/05/2018
572;1;0;315,15;315,15;"FONDAZIONE ""CASA PER ANZIANI"" ONLUS"; ;Fatt.n. 26/PA del 30/04/2018 sc. 30/04/2018 Retta di ricovero G.V. mese di APRILE 2018;21/05/2018;15970;0;173;1;Spese correnti;4;Trasferimenti correnti;1;Trasferimenti correnti a Amministrazioni Pubbliche;2;Trasferimenti correnti a Amministrazioni Locali;14;Trasferimenti correnti a Istituti di ricovero e cura a carattere scientifico pubblici n.a.f.;21/05/2018
573;1;0;144,08;144,08;Dolomiti Energia S.p.a.;ZBD1F4B0A3;Fatt.n. 41801462610 del 24/04/2018 sc. 24/05/2018 Energia elettrica MUNICIPIO marzo 2018;21/05/2018;16511;0;45;1;Spese correnti;3;Acquisto di beni e servizi;2;Acquisto di servizi;5;Utenze e canoni;4;Energia elettrica;21/05/2018
576;1;0;709,87;709,87;ASCOTRADE Spa (metano); ;Fatt.n. 433822 del 16/04/2018 sc. 17/05/2018 Metano MUNICIPIO mese di marzo 2018;21/05/2018;16521;0;109;1;Spese correnti;3;Acquisto di beni e servizi;2;Acquisto di servizi;5;Utenze e canoni;4;Energia elettrica;21/05/2018
577;1;0;400,61;400,61;Dolomiti Energia S.p.a.;ZBD1F4B0A3;Fatt.n. 41801462608 del 24/04/2018 sc. 24/05/2018 Energia elettrica SCUOLA ELEMENTARE e PALESTRA marzo 2018;21/05/2018;16561;0;46;1;Spese correnti;3;Acquisto di beni e servizi;2;Acquisto di servizi;5;Utenze e canoni;4;Energia elettrica;21/05/2018
578;1;0;2.664,54;2.664,54;BIM PIAVE NUOVE ENERGIE Srl; ;Fatt.n. 9000652 del 23/04/2018 sc. 22/06/2018 A.t. 2017/18 - 2' rata calore, ore extra e acqua calda gennaio/febbraio 2018 - Scuola Primaria/Palestra 25.32;21/05/2018;16571;0;110;1;Spese correnti;3;Acquisto di beni e servizi;2;Acquisto di servizi;5;Utenze e canoni;6;Gas;21/05/2018
579;1;0;339,62;339,62;Dolomiti Energia S.p.a.;ZBD1F4B0A3;Fatt.n. 41801462606 del 24/04/2018 sc. 24/05/2018 Energia elettrica SCUOLA MEDIA marzo 2018;21/05/2018;16611;0;47;1;Spese correnti;3;Acquisto di beni e servizi;2;Acquisto di servizi;5;Utenze e canoni;4;Energia elettrica;21/05/2018
580;1;0;2.034,47;2.034,47;BIM PIAVE NUOVE ENERGIE Srl; ;Fatt.n. 9000651 del 23/04/2018 sc. 22/06/2018 A.t. 2017/18 - 2' rata calore, ore extra e acqua calda gennaio/febbraio 2018 - Scuola Secondaria Moriago 25.31;21/05/2018;16621;0;111;1;Spese correnti;3;Acquisto di beni e servizi;2;Acquisto di servizi;5;Utenze e canoni;6;Gas;21/05/2018
581;1;0;200,3;200,3;Dolomiti Energia S.p.a.;ZBD1F4B0A3;Fatt.n. 41801462608 del 24/04/2018 sc. 24/05/2018 Energia elettrica SCUOLA ELEMENTARE e PALESTRA marzo 2018;21/05/2018;16651;0;48;1;Spese correnti;3;Acquisto di beni e servizi;2;Acquisto di servizi;5;Utenze e canoni;4;Energia elettrica;21/05/2018
582;1;0;2.185,14;2.185,14;BIM PIAVE NUOVE ENERGIE Srl; ;Fatt.n. 9000652 del 23/04/2018 sc. 22/06/2018 A.t. 2017/18 - 2' rata calore, ore extra e acqua calda gennaio/febbraio 2018 - Scuola Primaria/Palestra 25.32;21/05/2018;16661;0;112;1;Spese correnti;3;Acquisto di beni e servizi;2;Acquisto di servizi;5;Utenze e canoni;6;Gas;21/05/2018
583;1;0;213,84;213,84;Dolomiti Energia S.p.a.;ZBD1F4B0A3;Fatt.n. 41801462607 del 24/04/2018 sc. 24/05/2018 Energia elettrica MUSICHIERE marzo 2018;21/05/2018;16675;0;49;1;Spese correnti;3;Acquisto di beni e servizi;2;Acquisto di servizi;5;Utenze e canoni;4;Energia elettrica;21/05/2018
584;1;0;16,11;393,4;ASCOTRADE Spa (metano); ;Fatt.n. 544032 del 20/04/2018 sc. 04/06/2018 Metano MUSICHIERE 2B mese di marzo 2018;21/05/2018;16676;0;113;1;Spese correnti;3;Acquisto di beni e servizi;2;Acquisto di servizi;5;Utenze e canoni;6;Gas;21/05/2018
584;2;0;377,29;393,4;ASCOTRADE Spa (metano); ;Fatt.n. 544033 del 20/04/2018 sc. 04/06/2018 Metano MUSICHIERE mese di marzo 2018;21/05/2018;16676;0;113;1;Spese correnti;3;Acquisto di beni e servizi;2;Acquisto di servizi;5;Utenze e canoni;6;Gas;21/05/2018
585;1;0;45,41;45,41;Dolomiti Energia S.p.a.;ZBD1F4B0A3;Fatt.n. 41801462601 del 24/04/2018 sc. 24/05/2018 Energia elettrica EX MAGAZZINO marzo 2018;21/05/2018;16691;0;50;1;Spese correnti;3;Acquisto di beni e servizi;2;Acquisto di servizi;5;Utenze e canoni;4;Energia elettrica;21/05/2018
586;1;0;83,44;83,44;Dolomiti Energia S.p.a.;ZBD1F4B0A3;Fatt.n. 41801462604 del 24/04/2018 sc. 24/05/2018 Energia elettrica ASSOCIAZIONI marzo 2018;21/05/2018;16731;0;51;1;Spese correnti;3;Acquisto di beni e servizi;2;Acquisto di servizi;5;Utenze e canoni;4;Energia elettrica;21/05/2018
587;1;0;401,05;401,05;Dolomiti Energia S.p.a.;ZBD1F4B0A3;Fatt.n. 41801462602 del 24/04/2018 sc. 24/05/2018 Energia elettrica SALA POLIFUNZIONALE marzo 2018;21/05/2018;16761;0;52;1;Spese correnti;3;Acquisto di beni e servizi;2;Acquisto di servizi;5;Utenze e canoni;4;Energia elettrica;21/05/2018
588;1;0;842,04;842,04;ASCOTRADE Spa (metano); ;Fatt.n. 431424 del 16/04/2018 sc. 17/05/2018 Metano SALA POLIFUNZIONALE mese di marzo 2018;21/05/2018;16771;0;114;1;Spese correnti;3;Acquisto di beni e servizi;2;Acquisto di servizi;5;Utenze e canoni;6;Gas;21/05/2018
589;1;0;567,23;567,23;BIM PIAVE NUOVE ENERGIE Srl; ;Fatt.n. 9000650 del 23/04/2018 sc. 22/06/2018 A.t. 2017/18 - 2' rata calore, ore extra e acqua calda gennaio/febbraio 2018 - Locali banda 25.12;21/05/2018;16811;0;115;1;Spese correnti;3;Acquisto di beni e servizi;2;Acquisto di servizi;5;Utenze e canoni;6;Gas;21/05/2018
590;1;0;49,69;49,69;Dolomiti Energia S.p.a.;ZBD1F4B0A3;Fatt.n. 41801462609 del 24/04/2018 sc. 24/05/2018 Energia elettrica LOCALI BANDA marzo 2018;21/05/2018;16821;0;53;1;Spese correnti;3;Acquisto di beni e servizi;2;Acquisto di servizi;5;Utenze e canoni;4;Energia elettrica;21/05/2018
591;1;0;57,24;57,24;Dolomiti Energia S.p.a.;ZBD1F4B0A3;Fatt.n. 41801462603 del 24/04/2018 sc. 24/05/2018 Energia elettrica CIMITERO MORIAGO marzo 2018;21/05/2018;16941;0;54;1;Spese correnti;3;Acquisto di beni e servizi;2;Acquisto di servizi;5;Utenze e canoni;4;Energia elettrica;21/05/2018
592;1;0;254,82;254,82;Dolomiti Energia S.p.a.;ZBD1F4B0A3;Fatt.n. 41801462600 del 24/04/2018 sc. 24/05/2018 Energia elettrica ISOLA DEI MORTI marzo 2018;21/05/2018;16945;0;55;1;Spese correnti;3;Acquisto di beni e servizi;2;Acquisto di servizi;5;Utenze e canoni;4;Energia elettrica;21/05/2018
593;1;0;609,6;609,6;Dolomiti Energia S.p.a.;ZBD1F4B0A3;Fatt.n. 41801462605 del 24/04/2018 sc. 24/05/2018 Energia elettrica IMPIANTI SPORTIVI marzo 2018;21/05/2018;17001;0;56;1;Spese correnti;3;Acquisto di beni e servizi;2;Acquisto di servizi;5;Utenze e canoni;4;Energia elettrica;21/05/2018
594;1;0;1.602,10;1.602,10;ASCOTRADE Spa (metano); ;Fatt.n. 519977 del 20/04/2018 sc. 04/06/2018 Metano IMPIANTI SPORTIVI mese di marzo 2018;21/05/2018;17011;0;116;1;Spese correnti;3;Acquisto di beni e servizi;2;Acquisto di servizi;5;Utenze e canoni;6;Gas;21/05/2018
595;1;0;1.720,20;1.720,20;TERMOIDRAULICA CINEL ALESSANDRO; ;Fatt.n. 0000001/PA del 30/03/2018 sc. 23/05/2018 Interventi vari agli impianti termici degli stabili comunali nel corso del 2017;21/05/2018;17015;0;54;1;Spese correnti;3;Acquisto di beni e servizi;2;Acquisto di servizi;9;Manutenzione ordinaria e riparazioni;8;Manutenzione ordinaria e riparazioni di beni immobili;21/05/2018
596;1;0;87,6;87,6;REPRO Srl; ;Fatt.n. 000014-2018-6 del 30/04/2018 sc. 30/06/2018 Materiale vario ad uso del personale operaio;21/05/2018;17200;0;103;1;Spese correnti;3;Acquisto di beni e servizi;1;Acquisto di beni;2;Altri beni di consumo;4;Vestiario;21/05/2018
597;1;0;198,38;198,38;REPRO Srl; ;Fatt.n. 000014-2018-6 del 30/04/2018 sc. 30/06/2018 Materiale vario ad uso del personale operaio;21/05/2018;17230;0;105;1;Spese correnti;3;Acquisto di beni e servizi;1;Acquisto di beni;2;Altri beni di consumo;999;Altri beni e materiali di consumo n.a.c.;21/05/2018
598;1;0;477,73;6.919,53;Dolomiti Energia S.p.a.;ZBD1F4B0A3;Fatt.n. 41801445216 del 24/04/2018 sc. 24/05/2018 Energia elettrica PUBBLICA ILLNE (via Papa Giovanni XXIII) marzo 2018;21/05/2018;17241;0;57;1;Spese correnti;3;Acquisto di beni e servizi;2;Acquisto di servizi;5;Utenze e canoni;4;Energia elettrica;21/05/2018
598;2;0;6.441,80;6.919,53;Dolomiti Energia S.p.a.;ZBD1F4B0A3;Fatt.n. 41801445215 del 24/04/2018 sc. 24/05/2018 Energia elettrica PUBBLICA ILLNE marzo 2018;21/05/2018;17241;0;57;1;Spese correnti;3;Acquisto di beni e servizi;2;Acquisto di servizi;5;Utenze e canoni;4;Energia elettrica;21/05/2018
599;1;0;239,96;239,96;HALLEY VENETO Srl;ZAB22583B4;Fatt.n. 1/180548 del 16/05/2018 sc. 16/06/2018 Avviamento postazione C.I.E.;21/05/2018;17340;0;68;1;Spese correnti;3;Acquisto di beni e servizi;2;Acquisto di servizi;9;Manutenzione ordinaria e riparazioni;5;Manutenzione ordinaria e riparazioni di attrezzature;21/05/2018
600;1;0;355,04;355,04;HALLEY VENETO Srl;ZAB22583B4;Fatt.n. 1/180548 del 16/05/2018 sc. 16/06/2018 Avviamento postazione C.I.E.;21/05/2018;17340;0;429;1;Spese correnti;3;Acquisto di beni e servizi;2;Acquisto di servizi;9;Manutenzione ordinaria e riparazioni;5;Manutenzione ordinaria e riparazioni di attrezzature;21/05/2018
601;1;0;1.207,80;1.207,80;CECCATO IGOR;Z2522D30B9;Fatt.n. 1/E del 12/04/2018 sc. 31/05/2018 FORNITURA MATERIALE AUDIO E VIDEO PER IMPLEMENTAZIONE IMPIANTO ALLA CASA DEL MUSICHIERE;21/05/2018;20303;0;134;2;Spese in conto capitale;5;Altre spese in conto capitale;99;Altre spese in conto capitale n.a.c.;99;Altre spese in conto capitale n.a.c.;999;Altre spese in conto capitale n.a.c.;21/05/2018
602;1;0;9.913,06;9.913,06;ALBERTIN & COMPANY Srl;Z59216EE87;Fatt.n. FATTPA 13_18 del 02/05/2018 sc. 02/06/2018 Progetto def/esec, coordinamento sicurezza in fase di progettazione dei lavori di efficientamento energetico pubblica illuminazione;21/05/2018;20313;0;375;2;Spese in conto capitale;5;Altre spese in conto capitale;99;Altre spese in conto capitale n.a.c.;99;Altre spese in conto capitale n.a.c.;999;Altre spese in conto capitale n.a.c.;21/05/2018
603;1;0;732;732;DE NARDI RENZO;Z882324AEB;SALDO Fatt.n. 2/PA  del 08/05/2018 LAVORI DI SEGNALETICA GIOCO TENNIS CON FORNITURA DI MATERIALE DI CONSUMO - NASTRO E COLORE -;21/05/2018;20303;0;142;2;Spese in conto capitale;5;Altre spese in conto capitale;99;Altre spese in conto capitale n.a.c.;99;Altre spese in conto capitale n.a.c.;999;Altre spese in conto capitale n.a.c.;21/05/2018
604;1;0;387,96;387,96;TERMOIDRAULICA CINEL ALESSANDRO; ;SALDO Fatt.n. 0000002/PA  del 30/03/2018 Sostituzione rubinetti, riparazione scarichi dei lavandini e controllo generale c/o PALESTRA;21/05/2018;16641;0;43;1;Spese correnti;3;Acquisto di beni e servizi;2;Acquisto di servizi;9;Manutenzione ordinaria e riparazioni;8;Manutenzione ordinaria e riparazioni di beni immobili;21/05/2018
605;1;0;1.493,04;1.493,04;COOPERATIVA CSA - CENTRO SERVIZI ASSOCIATI;Z741E7298E;SALDO Fatt.n. 37/E  del 24/04/2018 Assistenza domiciliare mese di MARZO 2018 (78 ore);21/05/2018;15990;0;184;1;Spese correnti;3;Acquisto di beni e servizi;2;Acquisto di servizi;15;Contratti di servizio pubblico;9;Contratti di servizio di assistenza sociale domiciliare;21/05/2018
606;1;0;96,38;96,38;MEDICASL Snc;Z6B226F7B3;SALDO Fatt.n. 28/E  del 23/04/2018 Fornitura coppia elettrodi per defibrillatore Primedic HeartSave;21/05/2018;16641;0;84;1;Spese correnti;3;Acquisto di beni e servizi;2;Acquisto di servizi;9;Manutenzione ordinaria e riparazioni;8;Manutenzione ordinaria e riparazioni di beni immobili;21/05/2018
607;1;0;2.806,00;8.418,00;INDUSTRIE ARREDO S.R.L.; ;Fatt.n. 186 del 07/03/2018 sc. 12/03/2018 AFFITTO DAL 10/03/18 AL 9/04/18;22/05/2018;17194;0;78;1;Spese correnti;3;Acquisto di beni e servizi;2;Acquisto di servizi;7;Utilizzo di beni di terzi;1;Locazione di beni immobili;22/05/2018
607;2;0;2.806,00;8.418,00;INDUSTRIE ARREDO S.R.L.; ;Fatt.n. 290 del 03/05/2018 sc. 10/05/2018 AFFITTO DAL 10/05/18 AL 9/06/18;22/05/2018;17194;0;78;1;Spese correnti;3;Acquisto di beni e servizi;2;Acquisto di servizi;7;Utilizzo di beni di terzi;1;Locazione di beni immobili;22/05/2018
607;3;0;2.806,00;8.418,00;INDUSTRIE ARREDO S.R.L.; ;Fatt.n. 273 del 12/04/2018 sc. 30/06/2018 AFFITTO DAL 10/04/18 AL 9/05/18;22/05/2018;17194;0;78;1;Spese correnti;3;Acquisto di beni e servizi;2;Acquisto di servizi;7;Utilizzo di beni di terzi;1;Locazione di beni immobili;22/05/2018
608;1;0;396,5;396,5;INDUSTRIE ARREDO S.R.L.; ;Fatt.n. 273 del 12/04/2018 sc. 30/06/2018 AFFITTO DAL 10/04/18 AL 9/05/18;22/05/2018;17195;0;102;1;Spese correnti;3;Acquisto di beni e servizi;2;Acquisto di servizi;99;Altri servizi;999;Altri servizi diversi n.a.c.;22/05/2018
609;1;0;5,27;5,27;ENEL ENERGIA SPA - MERCATO ITALIA;736328355A;Fatt.n. 004810721959 del 07/05/2018 sc. 14/06/2018 Energia elettrica aprile 2018 MUNICIPIO;23/05/2018;16511;0;45;1;Spese correnti;3;Acquisto di beni e servizi;2;Acquisto di servizi;5;Utenze e canoni;4;Energia elettrica;23/05/2018
610;1;0;373,31;373,31;BIM PIAVE NUOVE ENERGIE Srl; ;Fatt.n. 9000649 del 23/04/2018 sc. 22/06/2018 A.t. 2017/18 - 2' rata calore e ore extra periodo ott/nov 2017 - Sede Municipale 25.11;23/05/2018;16521;0;109;1;Spese correnti;3;Acquisto di beni e servizi;2;Acquisto di servizi;5;Utenze e canoni;4;Energia elettrica;23/05/2018
611;1;0;162,93;162,93;BIM PIAVE NUOVE ENERGIE Srl; ;Fatt.n. 9000649 del 23/04/2018 sc. 22/06/2018 A.t. 2017/18 - 2' rata calore e ore extra periodo ott/nov 2017 - Sede Municipale 25.11;23/05/2018;16521;0;115;1;Spese correnti;3;Acquisto di beni e servizi;2;Acquisto di servizi;5;Utenze e canoni;4;Energia elettrica;23/05/2018
612;1;0;284,29;284,29;ENEL ENERGIA SPA - MERCATO ITALIA;736328355A;Fatt.n. 004810721962 del 07/05/2018 sc. 14/06/2018 Energia elettrica aprile 2018 SCUOLA PRIMARIA e PALESTRA;23/05/2018;16561;0;46;1;Spese correnti;3;Acquisto di beni e servizi;2;Acquisto di servizi;5;Utenze e canoni;4;Energia elettrica;23/05/2018
613;1;0;154,68;154,68;ENEL ENERGIA SPA - MERCATO ITALIA;736328355A;Fatt.n. 004810721969 del 07/05/2018 sc. 14/06/2018 Energia elettrica aprile 2018 SCUOLA MEDIA;23/05/2018;16611;0;47;1;Spese correnti;3;Acquisto di beni e servizi;2;Acquisto di servizi;5;Utenze e canoni;4;Energia elettrica;23/05/2018
614;1;0;142,14;142,14;ENEL ENERGIA SPA - MERCATO ITALIA;736328355A;Fatt.n. 004810721962 del 07/05/2018 sc. 14/06/2018 Energia elettrica aprile 2018 SCUOLA PRIMARIA e PALESTRA;23/05/2018;16651;0;48;1;Spese correnti;3;Acquisto di beni e servizi;2;Acquisto di servizi;5;Utenze e canoni;4;Energia elettrica;23/05/2018
615;1;0;106,05;106,05;ENEL ENERGIA SPA - MERCATO ITALIA;736328355A;Fatt.n. 004810721960 del 07/05/2018 sc. 14/06/2018 Energia elettrica aprile 2018 MUSICHIERE;23/05/2018;16675;0;49;1;Spese correnti;3;Acquisto di beni e servizi;2;Acquisto di servizi;5;Utenze e canoni;4;Energia elettrica;23/05/2018
616;1;0;34,21;34,21;ENEL ENERGIA SPA - MERCATO ITALIA;736328355A;Fatt.n. 004810722933 del 07/05/2018 sc. 14/06/2018 Energia elettrica aprile 2018 EX MAGAZZINO;23/05/2018;16691;0;50;1;Spese correnti;3;Acquisto di beni e servizi;2;Acquisto di servizi;5;Utenze e canoni;4;Energia elettrica;23/05/2018
617;1;0;72,04;72,04;ENEL ENERGIA SPA - MERCATO ITALIA;736328355A;Fatt.n. 004810721970 del 07/05/2018 sc. 14/06/2018 Energia elettrica aprile 2018 ASSOCIAZIONI;23/05/2018;16731;0;51;1;Spese correnti;3;Acquisto di beni e servizi;2;Acquisto di servizi;5;Utenze e canoni;4;Energia elettrica;23/05/2018
618;1;0;389,72;389,72;ENEL ENERGIA SPA - MERCATO ITALIA;ZBD1F4B0A3;Fatt.n. 004810721971 del 07/05/2018 sc. 14/06/2018 Energia elettrica aprile 2018 SALA POLIFUNZIONALE;23/05/2018;16761;0;52;1;Spese correnti;3;Acquisto di beni e servizi;2;Acquisto di servizi;5;Utenze e canoni;4;Energia elettrica;23/05/2018
619;1;0;36,6;36,6;ENEL ENERGIA SPA - MERCATO ITALIA;736328355A;Fatt.n. 004810722938 del 07/05/2018 sc. 14/06/2018 Energia elettrica aprile 2018 LOCALI BANDA;23/05/2018;16821;0;53;1;Spese correnti;3;Acquisto di beni e servizi;2;Acquisto di servizi;5;Utenze e canoni;4;Energia elettrica;23/05/2018
620;1;0;39,5;39,5;ENEL ENERGIA SPA - MERCATO ITALIA;736328355A;Fatt.n. 004810722941 del 07/05/2018 sc. 14/06/2018 Energia elettrica aprile 2018 CIMITERO MORIAGO;23/05/2018;16941;0;54;1;Spese correnti;3;Acquisto di beni e servizi;2;Acquisto di servizi;5;Utenze e canoni;4;Energia elettrica;23/05/2018
621;1;0;277,16;277,16;ENEL ENERGIA SPA - MERCATO ITALIA;736328355A;Fatt.n. 004810721966 del 07/05/2018 sc. 14/06/2018 Energia elettrica aprile 2018 ISOLA DEI MORTI;23/05/2018;16945;0;55;1;Spese correnti;3;Acquisto di beni e servizi;2;Acquisto di servizi;5;Utenze e canoni;4;Energia elettrica;23/05/2018
622;1;0;321,82;321,82;ENEL ENERGIA SPA - MERCATO ITALIA;736328355A;Fatt.n. 004810721965 del 07/05/2018 sc. 14/06/2018 Energia elettrica aprile 2018 IMPIANTI SPORTIVI;23/05/2018;17001;0;56;1;Spese correnti;3;Acquisto di beni e servizi;2;Acquisto di servizi;5;Utenze e canoni;4;Energia elettrica;23/05/2018
623;1;0;17,65;3.912,39;ENEL ENERGIA SPA - MERCATO ITALIA;ZBD1F4B0A3;Fatt.n. 004810745420 del 07/05/2018 sc. 14/06/2018 Energia elettrica aprile 2018 PUBBLICA ILLNE (videosorveglianza);23/05/2018;17241;0;57;1;Spese correnti;3;Acquisto di beni e servizi;2;Acquisto di servizi;5;Utenze e canoni;4;Energia elettrica;23/05/2018
623;2;0;22,67;3.912,39;ENEL ENERGIA SPA - MERCATO ITALIA;736328355A;Fatt.n. 004810745421 del 07/05/2018 sc. 14/06/2018 Energia elettrica aprile 2018 PUBBLICA ILLNE (P.za Albertini);23/05/2018;17241;0;57;1;Spese correnti;3;Acquisto di beni e servizi;2;Acquisto di servizi;5;Utenze e canoni;4;Energia elettrica;23/05/2018
623;3;0;46,52;3.912,39;ENEL ENERGIA SPA - MERCATO ITALIA;ZBD1F4B0A3;Fatt.n. 004810752558 del 07/05/2018 sc. 14/06/2018 Energia elettrica aprile 2018 PUBBLICA ILLNE (fotovoltaico);23/05/2018;17241;0;57;1;Spese correnti;3;Acquisto di beni e servizi;2;Acquisto di servizi;5;Utenze e canoni;4;Energia elettrica;23/05/2018
623;4;0;90,6;3.912,39;ENEL ENERGIA SPA - MERCATO ITALIA;736328355A;Fatt.n. 004810722939 del 07/05/2018 sc. 14/06/2018 Energia elettrica aprile 2018 PUBBLICA ILLNE (via Monte Grappa Sn);23/05/2018;17241;0;57;1;Spese correnti;3;Acquisto di beni e servizi;2;Acquisto di servizi;5;Utenze e canoni;4;Energia elettrica;23/05/2018
623;5;0;143,5;3.912,39;ENEL ENERGIA SPA - MERCATO ITALIA;ZBD1F4B0A3;Fatt.n. 004810721961 del 07/05/2018 sc. 14/06/2018 Energia elettrica aprile 2018 PUBBLICA ILLNE (via Montello);23/05/2018;17241;0;57;1;Spese correnti;3;Acquisto di beni e servizi;2;Acquisto di servizi;5;Utenze e canoni;4;Energia elettrica;23/05/2018
623;6;0;209,74;3.912,39;ENEL ENERGIA SPA - MERCATO ITALIA;ZBD1F4B0A3;Fatt.n. 004810721968 del 07/05/2018 sc. 14/06/2018 Energia elettrica aprile 2018 PUBBLICA ILLNE (via Calmentera);23/05/2018;17241;0;57;1;Spese correnti;3;Acquisto di beni e servizi;2;Acquisto di servizi;5;Utenze e canoni;4;Energia elettrica;23/05/2018
623;7;0;227,09;3.912,39;ENEL ENERGIA SPA - MERCATO ITALIA;736328355A;Fatt.n. 004810722940 del 07/05/2018 sc. 14/06/2018 Energia elettrica aprile 2018 PUBBLICA ILLNE (via Roma);23/05/2018;17241;0;57;1;Spese correnti;3;Acquisto di beni e servizi;2;Acquisto di servizi;5;Utenze e canoni;4;Energia elettrica;23/05/2018
623;8;0;227,09;3.912,39;ENEL ENERGIA SPA - MERCATO ITALIA;ZBD1F4B0A3;Fatt.n. 004810722942 del 07/05/2018 sc. 14/06/2018 Energia elettrica aprile 2018 PUBBLICA ILLNE (via Todoverto);23/05/2018;17241;0;57;1;Spese correnti;3;Acquisto di beni e servizi;2;Acquisto di servizi;5;Utenze e canoni;4;Energia elettrica;23/05/2018
623;9;0;280,44;3.912,39;ENEL ENERGIA SPA - MERCATO ITALIA;ZBD1F4B0A3;Fatt.n. 004810722936 del 07/05/2018 sc. 14/06/2018 Energia elettrica aprile 2018 PUBBLICA ILLNE (viale Europa Unita);23/05/2018;17241;0;57;1;Spese correnti;3;Acquisto di beni e servizi;2;Acquisto di servizi;5;Utenze e canoni;4;Energia elettrica;23/05/2018
623;10;0;288,57;3.912,39;ENEL ENERGIA SPA - MERCATO ITALIA;736328355A;Fatt.n. 004810721963 del 07/05/2018 sc. 14/06/2018 Energia elettrica aprile 2018 PUBBLICA ILLNE (viale Europa Unita);23/05/2018;17241;0;57;1;Spese correnti;3;Acquisto di beni e servizi;2;Acquisto di servizi;5;Utenze e canoni;4;Energia elettrica;23/05/2018
623;11;0;305,37;3.912,39;ENEL ENERGIA SPA - MERCATO ITALIA;ZBD1F4B0A3;Fatt.n. 004810724579 del 07/05/2018 sc. 14/06/2018 Energia elettrica aprile 2018 PUBBLICA ILLNE (via S. Gaetano);23/05/2018;17241;0;57;1;Spese correnti;3;Acquisto di beni e servizi;2;Acquisto di servizi;5;Utenze e canoni;4;Energia elettrica;23/05/2018
623;12;0;341,64;3.912,39;ENEL ENERGIA SPA - MERCATO ITALIA;ZBD1F4B0A3;Fatt.n. 004810721967 del 07/05/2018 sc. 14/06/2018 Energia elettrica aprile 2018 PUBBLICA ILLNE (via Faveri);23/05/2018;17241;0;57;1;Spese correnti;3;Acquisto di beni e servizi;2;Acquisto di servizi;5;Utenze e canoni;4;Energia elettrica;23/05/2018
623;13;0;342,44;3.912,39;ENEL ENERGIA SPA - MERCATO ITALIA;ZBD1F4B0A3;Fatt.n. 004810722934 del 07/05/2018 sc. 14/06/2018 Energia elettrica aprile 2018 PUBBLICA ILLNE (via Levade);23/05/2018;17241;0;57;1;Spese correnti;3;Acquisto di beni e servizi;2;Acquisto di servizi;5;Utenze e canoni;4;Energia elettrica;23/05/2018
623;14;0;358,9;3.912,39;ENEL ENERGIA SPA - MERCATO ITALIA;736328355A;Fatt.n. 004810722937 del 07/05/2018 sc. 14/06/2018 Energia elettrica aprile 2018 PUBBLICA ILLNE (via Papa Giovanni XXIII);23/05/2018;17241;0;57;1;Spese correnti;3;Acquisto di beni e servizi;2;Acquisto di servizi;5;Utenze e canoni;4;Energia elettrica;23/05/2018
623;15;0;488,79;3.912,39;ENEL ENERGIA SPA - MERCATO ITALIA;ZBD1F4B0A3;Fatt.n. 004810722935 del 07/05/2018 sc. 14/06/2018 Energia elettrica aprile 2018 PUBBLICA ILLNE (P.za Vittoria 10X);23/05/2018;17241;0;57;1;Spese correnti;3;Acquisto di beni e servizi;2;Acquisto di servizi;5;Utenze e canoni;4;Energia elettrica;23/05/2018
623;16;0;521,38;3.912,39;ENEL ENERGIA SPA - MERCATO ITALIA;ZBD1F4B0A3;Fatt.n. 004810721964 del 07/05/2018 sc. 14/06/2018 Energia elettrica aprile 2018 PUBBLICA ILLNE (via Monte Grappa 128X);23/05/2018;17241;0;57;1;Spese correnti;3;Acquisto di beni e servizi;2;Acquisto di servizi;5;Utenze e canoni;4;Energia elettrica;23/05/2018
624;1;0;502,64;502,64;ASCO TLC Spa;ZB21CFE445;Fatt.n. 09012993 del 30/04/2018 sc. 30/05/2018 Asconauta gold e servizio ip pubblico periodo marzo/aprile 2018;23/05/2018;16516;0;41;1;Spese correnti;3;Acquisto di beni e servizi;2;Acquisto di servizi;5;Utenze e canoni;999;Utenze e canoni per altri servizi n.a.c.;23/05/2018
625;1;0;704,55;704,55;I TIGLI2 Coop. Sociale Onlus;ZEE54A92EA;Fatt.n. 272 del 30/04/2018 sc. 31/05/2018 Pulizia STABILI mese di aprile 2018;23/05/2018;16530;0;71;1;Spese correnti;3;Acquisto di beni e servizi;2;Acquisto di servizi;99;Altri servizi;999;Altri servizi diversi n.a.c.;23/05/2018
626;1;0;256,2;256,2;I TIGLI2 Coop. Sociale Onlus;ZEE54A92EA;Fatt.n. 272 del 30/04/2018 sc. 31/05/2018 Pulizia STABILI mese di aprile 2018;23/05/2018;16677;0;73;1;Spese correnti;3;Acquisto di beni e servizi;2;Acquisto di servizi;99;Altri servizi;999;Altri servizi diversi n.a.c.;23/05/2018
627;1;0;164,7;164,7;I TIGLI2 Coop. Sociale Onlus;ZEE54A92EA;Fatt.n. 272 del 30/04/2018 sc. 31/05/2018 Pulizia STABILI mese di aprile 2018;23/05/2018;16751;0;74;1;Spese correnti;3;Acquisto di beni e servizi;2;Acquisto di servizi;99;Altri servizi;999;Altri servizi diversi n.a.c.;23/05/2018
628;1;0;1,07;119,95;Dolomiti Energia S.p.a.;ZBD1F4B0A3;Fatt.n. 41801820485 del 23/05/2018 sc. 22/06/2018 Energia elettrica CIMITERO MOSNIGO conguaglio periodo febbraio/marzo 2018;23/05/2018;16941;0;54;1;Spese correnti;3;Acquisto di beni e servizi;2;Acquisto di servizi;5;Utenze e canoni;4;Energia elettrica;23/05/2018
628;2;0;63,5;119,95;Dolomiti Energia S.p.a.;ZBD1F4B0A3;Fatt.n. 41801674862 del 16/05/2018 sc. 15/06/2018 Energia elettrica CIMITERO MOSNIGO mese di marzo 2018;23/05/2018;16941;0;54;1;Spese correnti;3;Acquisto di beni e servizi;2;Acquisto di servizi;5;Utenze e canoni;4;Energia elettrica;23/05/2018
628;3;0;55,38;119,95;ENEL ENERGIA SPA - MERCATO ITALIA;736328355A;Fatt.n. 004810773762 del 08/05/2018 sc. 10/06/2018 Energia elettrica aprile 2018 CIMITERO MOSNIGO;23/05/2018;16941;0;54;1;Spese correnti;3;Acquisto di beni e servizi;2;Acquisto di servizi;5;Utenze e canoni;4;Energia elettrica;23/05/2018
629;1;0;456,77;456,77;PENSIONE BORGOCHIARO di Barel Michela;Z9F2392B2D;Fatt.n. FATTPA 40_18 del 17/05/2018 sc. 18/06/2018 Permanenza presso canile consortile periodo gen/apr 2018;23/05/2018;17080;0;96;1;Spese correnti;3;Acquisto di beni e servizi;2;Acquisto di servizi;99;Altri servizi;999;Altri servizi diversi n.a.c.;23/05/2018
630;1;0;176,9;176,9;TECNOTENDA Srl; ;SALDO Fatt.n. 02/PA  del 15/05/2018 Cambio spago su n. 2 tende verticali e cambio carrelli;23/05/2018;16551;0;81;1;Spese correnti;3;Acquisto di beni e servizi;2;Acquisto di servizi;9;Manutenzione ordinaria e riparazioni;8;Manutenzione ordinaria e riparazioni di beni immobili;23/05/2018
633;1;0;67,34;67,34;MAGGIOLI SPA;ZC5233A7BD;Fatt.n. 0002119400 del 30/04/2018 sc. 30/06/2018 Manifesto di convocazione dei comizi con firma del Sindaco;28/05/2018;15031;0;160;1;Spese correnti;3;Acquisto di beni e servizi;2;Acquisto di servizi;99;Altri servizi;4;Altre spese per consultazioni elettorali dell'ente;28/05/2018
634;1;0;1.932,86;1.932,86;EURORISTORAZIONE Srl;67023000EE;Fatt.n. 18CPA01562 del 30/04/2018 sc. 31/05/2018 Pasti ALUNNI mese di aprile 2018 (n. 479 pasti);28/05/2018;15598;0;37;1;Spese correnti;3;Acquisto di beni e servizi;2;Acquisto di servizi;15;Contratti di servizio pubblico;6;Contratti di servizio per le mense scolastiche;28/05/2018
635;1;0;213,87;213,87;EURORISTORAZIONE Srl;67023000EE;Fatt.n. 18CPA01563 del 30/04/2018 sc. 31/05/2018 Pasti INSEGNANTI mese di aprile 2018 (n. 53 pasti);28/05/2018;16437;0;36;1;Spese correnti;3;Acquisto di beni e servizi;1;Acquisto di beni;2;Altri beni di consumo;999;Altri beni e materiali di consumo n.a.c.;28/05/2018
636;1;0;281,67;281,67;ASCOTRADE Spa (metano); ;Fatt.n. 610729 del 15/05/2018 sc. 18/06/2018 Metano MUNICIPIO mese di aprile 2018;28/05/2018;16521;0;109;1;Spese correnti;3;Acquisto di beni e servizi;2;Acquisto di servizi;5;Utenze e canoni;4;Energia elettrica;28/05/2018
637;1;0;69,98;1.142,44;TIM Spa; ;Fatt.n. 8E00440417 del 09/05/2018 sc. 15/06/2018 Telefono ASCENSORE marzo/aprile 2018;28/05/2018;16541;0;58;1;Spese correnti;3;Acquisto di beni e servizi;2;Acquisto di servizi;5;Utenze e canoni;1;Telefonia fissa;28/05/2018
637;2;0;76,6;1.142,44;TIM Spa; ;Fatt.n. 8E00445369 del 09/05/2018 sc. 15/06/2018 Telefono FAX marzo/aprile 2018;28/05/2018;16541;0;58;1;Spese correnti;3;Acquisto di beni e servizi;2;Acquisto di servizi;5;Utenze e canoni;1;Telefonia fissa;28/05/2018
637;3;0;182,76;1.142,44;TIM Spa; ;Fatt.n. 8E00443648 del 09/05/2018 sc. 15/06/2018 Telefono MUNICIPIO 3 marzo/aprile 2018;28/05/2018;16541;0;58;1;Spese correnti;3;Acquisto di beni e servizi;2;Acquisto di servizi;5;Utenze e canoni;1;Telefonia fissa;28/05/2018
637;4;0;198,13;1.142,44;TIM Spa; ;Fatt.n. 8E00437372 del 09/05/2018 sc. 15/06/2018 Telefono MUNICIPIO 2 marzo/aprile 2018;28/05/2018;16541;0;58;1;Spese correnti;3;Acquisto di beni e servizi;2;Acquisto di servizi;5;Utenze e canoni;1;Telefonia fissa;28/05/2018
637;5;0;614,97;1.142,44;TIM Spa; ;Fatt.n. 8E00443695 del 09/05/2018 sc. 15/06/2018 Telefono MUNICIPIO 1 marzo/aprile 2018;28/05/2018;16541;0;58;1;Spese correnti;3;Acquisto di beni e servizi;2;Acquisto di servizi;5;Utenze e canoni;1;Telefonia fissa;28/05/2018
638;1;0;149,5;149,5;TIM Spa; ;Fatt.n. 8E00440038 del 09/05/2018 sc. 15/06/2018 Telefono SC. ELEMENTARE marzo/aprile 2018;28/05/2018;16581;0;59;1;Spese correnti;3;Acquisto di beni e servizi;2;Acquisto di servizi;5;Utenze e canoni;1;Telefonia fissa;28/05/2018
